Workbook

Sheet 【準備】登録
A2: 対抗戦名称 | D2: 第 | E2: 8 | F2: 回 | G2: 神奈滋 | I2: 対抗戦 | K2: ( | L2: =COUNTA(C20:D27) -> 6 | M2: 名 | N2: 対抗 ）
A4: 開催日 | D4: 2017-10-22 | AG4: 固定 | AH4: 第1節 | AJ4: 第2節 | AL4: 第3節
AG5: 1 | AH5: 2 | AI5: 3 | AJ5: 2 | AK5: 3 | AL5: 2 | AM5: 3
A6: 会場 | D6: キングスポット | J6: （ | K6: 奈良 | M6: ） | AG6: =C17 -> 兵庫 | AH6: =F17 -> 滋賀 | AI6: =I17 -> 奈良 | AJ6: =F17 -> 滋賀 | AK6: =I17 -> 奈良 | AL6: =F17 -> 滋賀 | AM6: =I17 -> 奈良
AG7: 1 | AH7: 1 | AI7: 1 | AJ7: 7 | AK7: 5 | AL7: 6 | AM7: 3 | AN7: ←対戦順の変更をする場合
A8: 点数 | D8: 男性 | F8: ： | G8: M | I8: 180 | J8: 点 | AG8: 2 | AH8: 2 | AI8: 2 | AJ8: 1 | AK8: 6 | AL8: 7 | AM8: 4
D9: 女性 | F9: ： | G9: W | I9: 140 | J9: 点 | AG9: 3 | AH9: 3 | AI9: 3 | AJ9: 2 | AK9: 7 | AL9: 1 | AM9: 5
AG14: 4 | AH14: 4 | AI14: 4 | AJ14: 3 | AK14: 1 | AL14: 2 | AM14: 6
A15: 出場選手 | AG15: 5 | AH15: 5 | AI15: 5 | AJ15: 4 | AK15: 2 | AL15: 3 | AM15: 7
A16: 前回順位 | AG16: 6 | AH16: 6 | AI16: 6 | AJ16: 5 | AK16: 3 | AL16: 4 | AM16: 1
A17: クラブ名 | C17: 兵庫 | F17: 滋賀 | I17: 奈良 | AG17: 7 | AH17: 7 | AI17: 7 | AJ17: 6 | AK17: 4 | AL17: 5 | AM17: 2
A18: 番手 | C18: 選手名 | E18: 点数 | F18: 選手名 | H18: 点数 | I18: 選手名 | K18: 点数 | AG18: =IF(C27="","",AG17+1) ->  | AH18: =AG18 ->  | AI18: =AG18 ->  | AJ18: =IF(F27="","",1) ->  | AK18: =IF(I27="","",AK17+1) ->  | AL18: =IF(F27="","",AL17+1) ->  | AM18: =IF(I27="","",AM17+1) -> 
C19: 2 | F19: 1 | I19: 3
A20: 1 | C20: 宮本 一 | E20: 180 | F20: 大橋 義治 | H20: 180 | I20: 田尻 哲司 | K20: 180 | AG20: 1 | AH20: 1 | AI20: 1 | AJ20: 2 | AK20: 3 | AL20: 3 | AM20: 5
A21: 2 | C21: 鐵山 泰三 | E21: 180 | F21: 大橋 正寛 | H21: 180 | I21: 吉向 翔平 | K21: 180 | AG21: 2 | AH21: 2 | AI21: 2 | AJ21: 3 | AK21: 4 | AL21: 4 | AM21: 6
A22: 3 | C22: 中尾 亮太 | E22: 180 | F22: 西峰 久祐 | H22: 180 | I22: 巽 大地 | K22: 180 | AG22: 3 | AH22: 3 | AI22: 3 | AJ22: 4 | AK22: 5 | AL22: 5 | AM22: 7
A23: 4 | C23: 平井 洸志 | E23: 180 | F23: 山中 康寛 | H23: 180 | I23: 山田 晃司 | K23: 180 | AG23: 4 | AH23: 4 | AI23: 4 | AJ23: 5 | AK23: 6 | AL23: 6 | AM23: 1
A24: 5 | C24: 堂園 雅也 | E24: 180 | F24: 御手洗 茂 | H24: 180 | I24: 鷲尾 隆杜 | K24: 180 | AG24: 5 | AH24: 5 | AI24: 5 | AJ24: 6 | AK24: 7 | AL24: 7 | AM24: 2
A25: 6 | C25: 藤中 健太郎 | E25: 180 | F25: 高島 太一 | H25: 180 | I25: 長谷川 進 | K25: 180 | AG25: 6 | AH25: 6 | AI25: 6 | AJ25: 7 | AK25: 1 | AL25: 1 | AM25: 3
A26: 7 | AG26: 7 | AH26: 7 | AI26: 7 | AJ26: 1 | AK26: 2 | AL26: 2 | AM26: 4
A27: 8
C54: 大橋 義治 | F54: 宮本 一 | I54: 近藤 拓馬
C55: 大橋 正寛 | F55: 鐵山 泰三 | I55: 吉向 翔平
C56: 西峰 久祐 | F56: 中尾 亮太 | I56: 巽 大地
C57: 山中 康寛 | F57: 平井 洸志 | I57: 山田 晃司
C58: 御手洗 茂 | F58: 堂園 雅也 | I58: 鷲尾 隆杜
C59: 高島 太一 | F59: 藤中 健太郎 | I59: 長谷川 進

Sheet ●【進行】結果入力表
B1: 試合進行は、基本的にこのシートのみで行います。
A8: 節 | B8: G-No | C8: 所属A | D8: 選手名A | E8: HR | F8: 得点 | G8: 得点 | H8: HR | I8: 選手名B | J8: 所属B | L8: レフリー
A9: 第1節 | B9: 1 | C9: =IF(【準備】登録!C17="","",【準備】登録!C17) -> 兵庫 | D9: =IF(【準備】登録!$C$20="","",【準備】登録!$C$20) -> 宮本 一 | F9: W | G9: 52 | I9: =IF(【準備】登録!$I$20="","",【準備】登録!$I$20) -> 田尻 哲司 | J9: =IF(【準備】登録!I17="","",【準備】登録!I17) -> 奈良 | L9: =J17 -> 滋賀 | M9: =I17 -> 大橋 義治
A10: 第1節 | B10: 2 | C10: =$C$9 -> 兵庫 | D10: =IF(【準備】登録!$C$21="","",【準備】登録!$C$21) -> 鐵山 泰三 | F10: 26 | G10: W | I10: =IF(【準備】登録!$I$21="","",【準備】登録!$I$21) -> 吉向 翔平 | J10: =$J$9 -> 奈良 | L10: 滋賀 | M10: 大橋 正寛
A11: 第1節 | B11: 3 | C11: 兵庫 | D11: =IF(【準備】登録!$C$22="","",【準備】登録!$C$22) -> 中尾 亮太 | F11: 24 | G11: W | I11: =IF(【準備】登録!$I$22="","",【準備】登録!$I$22) -> 巽 大地 | J11: 奈良 | L11: 滋賀 | M11: 西峰 久祐
A12: 第1節 | B12: =IF(【準備】登録!$L$2>=4,4,"") -> 4 | C12: 兵庫 | D12: =IF(【準備】登録!$C$23="","",【準備】登録!$C$23) -> 平井 洸志 | F12: 24 | G12: W | I12: =IF(【準備】登録!$I$23="","",【準備】登録!$I$23) -> 山田 晃司 | J12: 奈良 | L12: 滋賀 | M12: 山中 康寛
A13: 第1節 | B13: =IF(【準備】登録!$L$2>=5,5,"") -> 5 | C13: 兵庫 | D13: =IF(【準備】登録!$C$24="","",【準備】登録!$C$24) -> 堂園 雅也 | F13: W | G13: 155 | I13: =IF(【準備】登録!$I$24="","",【準備】登録!$I$24) -> 鷲尾 隆杜 | J13: 奈良 | L13: 滋賀 | M13: 御手洗 茂
A14: 第1節 | B14: =IF(【準備】登録!$L$2>=6,6,"") -> 6 | C14: 兵庫 | D14: =IF(【準備】登録!$C$25="","",【準備】登録!$C$25) -> 藤中 健太郎 | F14: W | G14: 164 | I14: =IF(【準備】登録!$I$25="","",【準備】登録!$I$25) -> 長谷川 進 | J14: 奈良 | L14: 滋賀 | M14: 高島 太一
A15: 第1節 | B15: =IF(【準備】登録!$L$2>=7,7,"") ->  | C15: 兵庫 | J15: 奈良 | L15: =J23 -> 滋賀 | M15: =I23 -> 0
A16: 第1節 | B16: =IF(【準備】登録!$L$2>=8,8,"") ->  | C16: 兵庫 | J16: 奈良 | L16: 滋賀 | M16: 0
A17: 第1節 | B17: =IF(B15="",7,IF(B16="",8,9)) -> 7 | C17: 兵庫 | D17: =D9 -> 宮本 一 | F17: W | G17: 176 | I17: =IF(【準備】登録!$F$20="","",【準備】登録!$F$20) -> 大橋 義治 | J17: =$C$25 -> 滋賀 | L17: =J9 -> 奈良 | M17: =I9 -> 田尻 哲司
A18: 第1節 | B18: =B17+1 -> 8 | C18: 兵庫 | D18: 鐵山 泰三 | F18: W | G18: 159 | I18: =IF(【準備】登録!$F$21="","",【準備】登録!$F$21) -> 大橋 正寛 | J18: 滋賀 | L18: 奈良 | M18: 吉向 翔平
A19: 第1節 | B19: =B18+1 -> 9 | C19: 兵庫 | D19: 中尾 亮太 | F19: 153 | G19: W | I19: =IF(【準備】登録!$F$22="","",【準備】登録!$F$22) -> 西峰 久祐 | J19: 滋賀 | L19: 奈良 | M19: 巽 大地
A20: 第1節 | B20: =B19+1 -> 10 | C20: 兵庫 | D20: 平井 洸志 | F20: 102 | G20: W | I20: =IF(【準備】登録!$F$23="","",【準備】登録!$F$23) -> 山中 康寛 | J20: 滋賀 | L20: 奈良 | M20: 山田 晃司
A21: 第1節 | B21: =B20+1 -> 11 | C21: 兵庫 | D21: 堂園 雅也 | F21: W | G21: 95 | I21: =IF(【準備】登録!$F$24="","",【準備】登録!$F$24) -> 御手洗 茂 | J21: 滋賀 | L21: 奈良 | M21: 鷲尾 隆杜
A22: 第1節 | B22: =B21+1 -> 12 | C22: 兵庫 | D22: 藤中 健太郎 | F22: 84 | G22: W | I22: =IF(【準備】登録!$F$25="","",【準備】登録!$F$25) -> 高島 太一 | J22: 滋賀 | L22: 奈良 | M22: 長谷川 進
A23: 第1節 | B23: =IF(B15="","",B22+1) ->  | C23: 兵庫 | J23: 滋賀 | L23: =J15 -> 奈良 | M23: =I15 -> 0
A24: 第1節 | B24: =IF(B23="","",B23+1) ->  | C24: 兵庫 | J24: 滋賀 | L24: 奈良 | M24: 0
A25: 第1節 | B25: =IF(B23="",B22+1,IF(B24="",B23+1)) -> 13 | C25: =IF(【準備】登録!F17="","",【準備】登録!F17) -> 滋賀 | D25: =I17 -> 大橋 義治 | F25: W | G25: 172 | I25: =I9 -> 田尻 哲司 | J25: =$J$9 -> 奈良 | L25: =C9 -> 兵庫 | M25: =D17 -> 宮本 一
A26: 第1節 | B26: =B25+1 -> 14 | C26: =$C$25 -> 滋賀 | D26: 大橋 正寛 | F26: W | G26: 137 | I26: 吉向 翔平 | J26: 奈良 | L26: 兵庫 | M26: 鐵山 泰三
A27: 第1節 | B27: =B26+1 -> 15 | C27: 滋賀 | D27: 西峰 久祐 | F27: W | G27: 160 | I27: 巽 大地 | J27: 奈良 | L27: 兵庫 | M27: 中尾 亮太
A28: 第1節 | B28: =B27+1 -> 16 | C28: 滋賀 | D28: 山中 康寛 | F28: 78 | G28: W | H28: 102 | I28: 山田 晃司 | J28: 奈良 | L28: 兵庫 | M28: 平井 洸志
A29: 第1節 | B29: =B28+1 -> 17 | C29: 滋賀 | D29: 御手洗 茂 | F29: 31 | G29: W | H29: 105 | I29: 鷲尾 隆杜 | J29: 奈良 | L29: 兵庫 | M29: 堂園 雅也
A30: 第1節 | B30: =B29+1 -> 18 | C30: 滋賀 | D30: 高島 太一 | F30: W | G30: 108 | I30: 長谷川 進 | J30: 奈良 | L30: 兵庫 | M30: 藤中 健太郎
A31: 第1節 | B31: =IF(B23="","",B30+1) ->  | C31: 滋賀 | J31: 奈良 | L31: =C15 -> 兵庫 | M31: =D23 -> 0
A32: 第1節 | B32: =IF(B31="","",B31+1) ->  | C32: 滋賀 | J32: 奈良 | L32: 兵庫 | M32: 0
A33: 第2節 | B33: =IF(B31="",B30+1,IF(B32="",B31+1)) -> 19 | C33: =$C$9 -> 兵庫 | D33: =D41 -> 堂園 雅也 | F33: W | G33: 73 | I33: =IF(【準備】登録!$I$23="","",【準備】登録!$I$23) -> 山田 晃司 | J33: 奈良 | L33: =J41 -> 滋賀 | M33: =I41 -> 高島 太一
A34: 第2節 | B34: =B33+1 -> 20 | C34: 兵庫 | D34: 藤中 健太郎 | F34: 88 | G34: W | I34: =IF(【準備】登録!$I$24="","",【準備】登録!$I$24) -> 鷲尾 隆杜 | J34: 奈良 | L34: =J42 -> 滋賀 | M34: =I42 -> 大橋 義治
A35: 第2節 | B35: =B34+1 -> 21 | C35: 兵庫 | D35: 宮本 一 | E35: 108 | F35: W | G35: 50 | I35: =IF(【準備】登録!$I$25="","",【準備】登録!$I$25) -> 長谷川 進 | J35: 奈良 | L35: 滋賀 | M35: 大橋 正寛
A36: 第2節 | B36: =B35+1 -> 22 | C36: 兵庫 | D36: 鐵山 泰三 | E36: 100 | F36: W | G36: 53 | I36: =IF(【準備】登録!$I$20="","",【準備】登録!$I$20) -> 田尻 哲司 | J36: 奈良 | L36: 滋賀 | M36: 西峰 久祐
A37: 第2節 | B37: =B36+1 -> 23 | C37: 兵庫 | D37: 中尾 亮太 | F37: 53 | G37: W | I37: =IF(【準備】登録!$I$21="","",【準備】登録!$I$21) -> 吉向 翔平 | J37: 奈良 | L37: 滋賀 | M37: 山中 康寛
A38: 第2節 | B38: =B37+1 -> 24 | C38: 兵庫 | D38: 平井 洸志 | F38: W | G38: 91 | I38: =IF(【準備】登録!$I$22="","",【準備】登録!$I$22) -> 巽 大地 | J38: 奈良 | L38: 滋賀 | M38: 御手洗 茂
A39: 第2節 | B39: =IF(B31="","",B38+1) ->  | C39: 兵庫 | J39: 奈良 | L39: 滋賀 | M39: 0
A40: 第2節 | B40: =IF(B39="","",B39+1) ->  | C40: 兵庫 | J40: 奈良 | L40: 滋賀 | M40: 0
A41: 第2節 | B41: =IF(B39="",B38+1,IF(B40="",B39+1)) -> 25 | C41: 兵庫 | D41: =IF($D$9="","",【準備】登録!$C$24) -> 堂園 雅也 | F41: 156 | G41: W | I41: =IF($D$9="","",【準備】登録!$F$25) -> 高島 太一 | J41: =$C$25 -> 滋賀 | L41: =J33 -> 奈良 | M41: =I33 -> 山田 晃司
A42: 第2節 | B42: =B41+1 -> 26 | C42: 兵庫 | D42: =IF($D$9="","",IF(【準備】登録!C27="",【準備】登録!C25,【準備】登録!$C$26)) -> 藤中 健太郎 | F42: 24 | G42: W | I42: =IF($D$9="","",【準備】登録!$F$20) -> 大橋 義治 | J42: 滋賀 | L42: =J34 -> 奈良 | M42: =I34 -> 鷲尾 隆杜
A43: 第2節 | B43: =B42+1 -> 27 | C43: 兵庫 | D43: =IF($D$9="","",【準備】登録!$C$20) -> 宮本 一 | F43: W | G43: 156 | I43: =IF($D$9="","",【準備】登録!$F$21) -> 大橋 正寛 | J43: 滋賀 | L43: 奈良 | M43: 長谷川 進
A44: 第2節 | B44: =B43+1 -> 28 | C44: 兵庫 | D44: =IF($D$9="","",【準備】登録!$C$21) -> 鐵山 泰三 | F44: W | G44: 62 | I44: =IF($D$9="","",【準備】登録!$F$22) -> 西峰 久祐 | J44: 滋賀 | L44: 奈良 | M44: 田尻 哲司
A45: 第2節 | B45: =B44+1 -> 29 | C45: 兵庫 | D45: =IF($D$9="","",【準備】登録!$C$22) -> 中尾 亮太 | F45: 149 | G45: W | I45: =IF($D$9="","",【準備】登録!$F$23) -> 山中 康寛 | J45: 滋賀 | L45: 奈良 | M45: 吉向 翔平
A46: 第2節 | B46: =B45+1 -> 30 | C46: 兵庫 | D46: =IF($D$9="","",【準備】登録!$C$23) -> 平井 洸志 | F46: W | G46: 88 | I46: =IF($D$9="","",【準備】登録!$F$24) -> 御手洗 茂 | J46: 滋賀 | L46: 奈良 | M46: 巽 大地
A47: 第2節 | B47: =IF(B39="","",B46+1) ->  | C47: 兵庫 | J47: 滋賀 | L47: 奈良 | M47: 0
A48: 第2節 | B48: =IF(B47="","",B47+1) ->  | C48: 兵庫 | J48: 滋賀 | L48: 奈良 | M48: 0
A49: 第2節 | B49: =IF(B47="",B46+1,IF(B48="",B47+1)) -> 31 | C49: =$C$25 -> 滋賀 | D49: =I41 -> 高島 太一 | F49: 100 | G49: W | I49: =I33 -> 山田 晃司 | J49: =$J$9 -> 奈良 | L49: =C41 -> 兵庫 | M49: =D41 -> 堂園 雅也
A50: 第2節 | B50: =B49+1 -> 32 | C50: 滋賀 | D50: =I42 -> 大橋 義治 | F50: W | G50: 57 | I50: 鷲尾 隆杜 | J50: 奈良 | L50: =C42 -> 兵庫 | M50: =D42 -> 藤中 健太郎
A51: 第2節 | B51: =B50+1 -> 33 | C51: 滋賀 | D51: 大橋 正寛 | F51: W | G51: 96 | I51: 長谷川 進 | J51: 奈良 | L51: 兵庫 | M51: 宮本 一
A52: 第2節 | B52: =B51+1 -> 34 | C52: 滋賀 | D52: 西峰 久祐 | F52: W | G52: 65 | I52: 田尻 哲司 | J52: 奈良 | L52: 兵庫 | M52: 鐵山 泰三
A53: 第2節 | B53: =B52+1 -> 35 | C53: 滋賀 | D53: 山中 康寛 | F53: 135 | G53: W | I53: 吉向 翔平 | J53: 奈良 | L53: 兵庫 | M53: 中尾 亮太
A54: 第2節 | B54: =B53+1 -> 36 | C54: 滋賀 | D54: 御手洗 茂 | F54: 96 | G54: W | I54: 巽 大地 | J54: 奈良 | L54: 兵庫 | M54: 平井 洸志
A55: 第2節 | B55: =IF(B47="","",B54+1) ->  | C55: 滋賀 | J55: 奈良 | L55: 兵庫 | M55: 0
A56: 第2節 | B56: =IF(B55="","",B55+1) ->  | C56: 滋賀 | J56: 奈良 | L56: 兵庫 | M56: 0
A57: 第3節 | B57: =IF(B55="",B54+1,IF(B56="",B55+1)) -> 37 | C57: =$C$9 -> 兵庫 | D57: =D65 -> 中尾 亮太 | F57: W | G57: 99 | I57: =IF($D$9="","",【準備】登録!$I$20) -> 田尻 哲司 | J57: 奈良 | L57: =J65 -> 滋賀 | M57: =I65 -> 御手洗 茂
A58: 第3節 | B58: =B57+1 -> 38 | C58: 兵庫 | D58: 平井 洸志 | F58: W | G58: 124 | I58: =IF($D$9="","",【準備】登録!$I$21) -> 吉向 翔平 | J58: 奈良 | L58: =J66 -> 滋賀 | M58: =I66 -> 高島 太一
A59: 第3節 | B59: =B58+1 -> 39 | C59: 兵庫 | D59: 堂園 雅也 | E59: 110 | F59: W | G59: 42 | I59: =IF($D$9="","",【準備】登録!$I$22) -> 巽 大地 | J59: 奈良 | L59: 滋賀 | M59: 大橋 義治
A60: 第3節 | B60: =B59+1 -> 40 | C60: 兵庫 | D60: 藤中 健太郎 | E60: 107 | F60: W | G60: 164 | I60: =IF($D$9="","",【準備】登録!$I$23) -> 山田 晃司 | J60: 奈良 | L60: 滋賀 | M60: 大橋 正寛
A61: 第3節 | B61: =B60+1 -> 41 | C61: 兵庫 | D61: 宮本 一 | F61: W | G61: 112 | I61: =IF($D$9="","",【準備】登録!$I$24) -> 鷲尾 隆杜 | J61: 奈良 | L61: 滋賀 | M61: 西峰 久祐
A62: 第3節 | B62: =B61+1 -> 42 | C62: 兵庫 | D62: 鐵山 泰三 | F62: W | G62: 58 | I62: =IF($D$9="","",【準備】登録!$I$25) -> 長谷川 進 | J62: 奈良 | L62: 滋賀 | M62: 山中 康寛
A63: 第3節 | B63: =IF(B55="","",B62+1) ->  | C63: 兵庫 | J63: 奈良 | L63: 滋賀 | M63: 0
A64: 第3節 | B64: =IF(B63="","",B63+1) ->  | C64: 兵庫 | J64: 奈良 | L64: 滋賀 | M64: 0
A65: 第3節 | B65: =IF(B63="",B62+1,IF(B64="",B63+1)) -> 43 | C65: 兵庫 | D65: =IF($D$9="","",【準備】登録!$C$22) -> 中尾 亮太 | F65: W | G65: 61 | I65: =IF($D$9="","",【準備】登録!$F$24) -> 御手洗 茂 | J65: =$C$25 -> 滋賀 | L65: =J57 -> 奈良 | M65: =I57 -> 田尻 哲司
A66: 第3節 | B66: =B65+1 -> 44 | C66: 兵庫 | D66: =IF($D$9="","",IF(【準備】登録!C27="",【準備】登録!C23,【準備】登録!$C$24)) -> 平井 洸志 | F66: 45 | G66: W | I66: =IF($D$9="","",IF(【準備】登録!F27="",【準備】登録!F25,【準備】登録!$F$26)) -> 高島 太一 | J66: 滋賀 | L66: =J58 -> 奈良 | M66: =I58 -> 吉向 翔平
A67: 第3節 | B67: =B66+1 -> 45 | C67: 兵庫 | D67: =IF($D$9="","",IF(【準備】登録!C27="",【準備】登録!C24,【準備】登録!$C$25)) -> 堂園 雅也 | F67: 88 | G67: W | I67: =IF($D$9="","",【準備】登録!$F$20) -> 大橋 義治 | J67: 滋賀 | L67: 奈良 | M67: 巽 大地
A68: 第3節 | B68: =B67+1 -> 46 | C68: 兵庫 | D68: =IF($D$9="","",IF(【準備】登録!C27="",【準備】登録!C25,【準備】登録!$C$26)) -> 藤中 健太郎 | F68: W | G68: 17 | I68: =IF($D$9="","",【準備】登録!$F$21) -> 大橋 正寛 | J68: 滋賀 | L68: 奈良 | M68: 山田 晃司
A69: 第3節 | B69: =B68+1 -> 47 | C69: 兵庫 | D69: =IF($D$9="","",【準備】登録!$C$20) -> 宮本 一 | F69: W | G69: 120 | I69: =IF($D$9="","",【準備】登録!$F$22) -> 西峰 久祐 | J69: 滋賀 | L69: 奈良 | M69: 鷲尾 隆杜
A70: 第3節 | B70: =B69+1 -> 48 | C70: 兵庫 | D70: =IF($D$9="","",【準備】登録!$C$21) -> 鐵山 泰三 | F70: 178 | G70: W | I70: =IF($D$9="","",【準備】登録!$F$23) -> 山中 康寛 | J70: 滋賀 | L70: 奈良 | M70: 長谷川 進
A71: 第3節 | B71: =IF(B63="","",B70+1) ->  | C71: 兵庫 | J71: 滋賀 | L71: 奈良 | M71: 0
A72: 第3節 | B72: =IF(B71="","",B71+1) ->  | C72: 兵庫 | J72: 滋賀 | L72: 奈良 | M72: 0
A73: 第3節 | B73: =IF(B71="",B70+1,IF(B72="",B71+1)) -> 49 | C73: =$C$25 -> 滋賀 | D73: =I65 -> 御手洗 茂 | F73: 134 | G73: W | I73: =I57 -> 田尻 哲司 | J73: =$J$9 -> 奈良 | L73: =C65 -> 兵庫 | M73: =D65 -> 中尾 亮太
A74: 第3節 | B74: =B73+1 -> 50 | C74: 滋賀 | D74: =I66 -> 高島 太一 | F74: 132 | G74: W | I74: 吉向 翔平 | J74: 奈良 | L74: =C66 -> 兵庫 | M74: =D66 -> 平井 洸志
A75: 第3節 | B75: =B74+1 -> 51 | C75: 滋賀 | D75: 大橋 義治 | F75: W | G75: 39 | I75: 巽 大地 | J75: 奈良 | L75: 兵庫 | M75: 堂園 雅也
A76: 第3節 | B76: =B75+1 -> 52 | C76: 滋賀 | D76: 大橋 正寛 | F76: 75 | G76: W | I76: 山田 晃司 | J76: 奈良 | L76: 兵庫 | M76: 藤中 健太郎
A77: 第3節 | B77: =B76+1 -> 53 | C77: 滋賀 | D77: 西峰 久祐 | F77: W | G77: 89 | I77: 鷲尾 隆杜 | J77: 奈良 | L77: 兵庫 | M77: 宮本 一
A78: 第3節 | B78: =B77+1 -> 54 | C78: 滋賀 | D78: 山中 康寛 | F78: 80 | G78: W | I78: 長谷川 進 | J78: 奈良 | L78: 兵庫 | M78: 鐵山 泰三
A79: 第3節 | B79: =IF(B71="","",B78+1) ->  | C79: 滋賀 | J79: 奈良 | L79: 兵庫 | M79: 0
A80: 第3節 | B80: =IF(B79="","",B79+1) ->  | C80: 滋賀 | J80: 奈良 | L80: 兵庫 | M80: 0

Sheet ●【結果】総合結果表
B1: =●【結果】個人成績表!A1 -> 第8回 神奈滋対抗戦 (奈良；キングスポット)
AK4: =【準備】登録!D4 -> 2017-10-22
B6: MVP | F6: =IF(ISERROR(VLOOKUP(1,●【結果】個人成績表!CI6:CK8,3,FALSE)),"",VLOOKUP(1,●【結果】個人成績表!CI6:CK8,3,FALSE)) -> 宮本 一 | Y6: VP | AC6: =IF(ISERROR(VLOOKUP(2,●【結果】個人成績表!CI6:CK8,3,FALSE)),"",VLOOKUP(2,●【結果】個人成績表!CI6:CK8,3,FALSE)) -> 大橋 義治
B8: HR | F8: =IF(VLOOKUP(1,●【結果】個人成績表!$BX$6:$CA$33,4,FALSE)<100,"",VLOOKUP(1,●【結果】個人成績表!$BX$6:$CA$33,2,FALSE)) -> 堂園 雅也 | N8: =IF(VLOOKUP(1,●【結果】個人成績表!$BX$6:$CA$33,4,FALSE)<100,"","("&VLOOKUP(1,●【結果】個人成績表!$BX$6:$CA$33,3,FALSE)&") "&VLOOKUP(1,●【結果】個人成績表!$BX$6:$CA$33,4,FALSE)&" p") -> (兵庫) 110 p | Y8: VP | AC8: =IF(ISERROR(VLOOKUP(3,●【結果】個人成績表!CI6:CK8,3,FALSE)),"",VLOOKUP(3,●【結果】個人成績表!CI6:CK8,3,FALSE)) -> 吉向 翔平
E12: =B16 -> 兵庫 | K12: =B22 -> 滋賀 | Q12: =B28 -> 奈良 | W12: W | AA12: L | AE12: TP | AK12: RK
AI13: (TP) | AJ13: TP
E14: W | H14: L | K14: W | N14: L | Q14: W | T14: L
B16: =IF(【準備】登録!C17="","",【準備】登録!C17) -> 兵庫 | K16: =IF(●【結果】個人成績表!R14="","",●【結果】個人成績表!R14-Q16) -> 3 | N16: =IF(●【結果】個人成績表!S14="","",●【結果】個人成績表!S14-T16) -> 3 | Q16: =●【結果】個人成績表!H14 -> 3 | T16: =●【結果】個人成績表!I14 -> 3 | W16: =IF(Q16="","",SUM(Q16:S21,K16:M21)) -> 22 | AA16: =IF(T16="","",SUM(T16:V21,N16:P21)) -> 14 | AE16: =IF(●【結果】個人成績表!BH14=0,"","("&●【結果】個人成績表!BH14&")") -> (5154) | AI16: =●【結果】個人成績表!BH14 -> 5154 | AJ16: =●【結果】個人成績表!CF14 -> 5154 | AK16: =IF(AE18="","",RANK(W$16:W$33,W$16:W$33,0)) -> 1
K18: =IF(●【結果】個人成績表!AL14="","",●【結果】個人成績表!AL14-●【結果】個人成績表!AB14) -> 3 | N18: =IF(●【結果】個人成績表!AM14="","",●【結果】個人成績表!AM14-●【結果】個人成績表!AC14) -> 3 | Q18: =IF(●【結果】個人成績表!AB14="","",●【結果】個人成績表!AB14-●【結果】個人成績表!R14) -> 4 | T18: =IF(●【結果】個人成績表!AC14="","",●【結果】個人成績表!AC14-●【結果】個人成績表!S14) -> 2 | AE18: =IF(●【結果】個人成績表!CF14=0,"",●【結果】個人成績表!CF14) -> 5154
K20: =IF(●【結果】個人成績表!BF14="","",●【結果】個人成績表!BF14-●【結果】個人成績表!AV14) -> 3 | N20: =IF(●【結果】個人成績表!BG14="","",●【結果】個人成績表!BG14-●【結果】個人成績表!AW14) -> 3 | Q20: =IF(●【結果】個人成績表!AV14="","",●【結果】個人成績表!AV14-●【結果】個人成績表!AL14) -> 6 | T20: =IF(●【結果】個人成績表!AW14="","",●【結果】個人成績表!AW14-●【結果】個人成績表!AM14) -> 0
B22: =IF(【準備】登録!F17="","",【準備】登録!F17) -> 滋賀 | E22: =N16 -> 3 | H22: =K16 -> 3 | Q22: =IF(●【結果】個人成績表!R24="","",●【結果】個人成績表!R24-●【結果】個人成績表!H24) -> 4 | T22: =IF(●【結果】個人成績表!S24="","",●【結果】個人成績表!S24-●【結果】個人成績表!I24) -> 2 | W22: =IF(E22="","",SUM(E22:G27,Q22:S27)) -> 18 | AA22: =IF(H22="","",SUM(H22:J27,T22:V27)) -> 18 | AE22: =IF(●【結果】個人成績表!BH24=0,"","("&●【結果】個人成績表!BH24&")") -> (5035) | AI22: =●【結果】個人成績表!BH24 -> 5035 | AJ22: =●【結果】個人成績表!CF24 -> 5035 | AK22: =IF(AE24="","",RANK(W$16:W$33,W$16:W$33,0)) -> 2
E24: =N18 -> 3 | H24: =K18 -> 3 | Q24: =IF(●【結果】個人成績表!AL24="","",●【結果】個人成績表!AL24-●【結果】個人成績表!AB24) -> 3 | T24: =IF(●【結果】個人成績表!AM24="","",●【結果】個人成績表!AM24-●【結果】個人成績表!AC24) -> 3 | AE24: =IF(●【結果】個人成績表!CF24=0,"",●【結果】個人成績表!CF24) -> 5035
E26: =N20 -> 3 | H26: =K20 -> 3 | Q26: =IF(●【結果】個人成績表!BF24="","",●【結果】個人成績表!BF24-●【結果】個人成績表!AV24) -> 2 | T26: =IF(●【結果】個人成績表!BG24="","",●【結果】個人成績表!BG24-●【結果】個人成績表!AW24) -> 4
B28: =IF(【準備】登録!I17="","",【準備】登録!I17) -> 奈良 | E28: =●【結果】個人成績表!H34 -> 3 | H28: =●【結果】個人成績表!I34 -> 3 | K28: =T22 -> 2 | N28: =Q22 -> 4 | W28: =IF(E28="","",SUM(E28:G33,K28:M33)) -> 14 | AA28: =IF(H28="","",SUM(H28:J33,N28:P33)) -> 22 | AE28: =IF(●【結果】個人成績表!BH34=0,"","("&●【結果】個人成績表!BH34&")") -> (4680) | AI28: =●【結果】個人成績表!BH34 -> 4680 | AJ28: =●【結果】個人成績表!CF34 -> 4680 | AK28: =IF(AE30="","",RANK(W$16:W$33,W$16:W$33,0)) -> 3
E30: =T18 -> 2 | H30: =Q18 -> 4 | K30: =T24 -> 3 | N30: =Q24 -> 3 | AE30: =IF(●【結果】個人成績表!CF34=0,"",●【結果】個人成績表!CF34) -> 4680
E32: =T20 -> 0 | H32: =Q20 -> 6 | K32: =T26 -> 4 | N32: =Q26 -> 2
D34: ※ | E34: TPの上段（ ）内の数字は、ハンデによる換算をしていない得点を示す。

Sheet ●【結果】個人成績表
A1: =【準備】登録!D2&【準備】登録!E2&【準備】登録!F2&" "&【準備】登録!G2&【準備】登録!I2&" "&"("&【準備】登録!K6&"；"&【準備】登録!D6&")" -> 第8回 神奈滋対抗戦 (奈良；キングスポット)
BM2: =【準備】登録!D4 -> 2017-10-22
F4: =●【進行】結果入力表!A9 -> 第1節 | X4: =●【進行】結果入力表!A33 -> 第2節 | AR4: =●【進行】結果入力表!A57 -> 第3節 | BL4: 順 | BM4: HR記録 | BT4: HR | BW4: HR_Point | BX4: Rank | BY4: 氏名 | BZ4: クラブ | CA4: MAX | CC4: Rank | CD4: 途中経過
A5: =IF(【準備】登録!C17="","",【準備】登録!C17) -> 兵庫 | B5: 選手名 | E5: 持点 | F5: =A25 -> 奈良 | H5: W | I5: L | J5: TP | L5: TP | N5: =A15 -> 滋賀 | P5: W | Q5: L | R5: W | S5: L | T5: TP | V5: TP | X5: =F5 -> 奈良 | Z5: W | AA5: L | AB5: W | AC5: L | AD5: TP | AF5: TP | AH5: =N5 -> 滋賀 | AJ5: W | AK5: L | AL5: W | AM5: L | AN5: TP | AP5: TP | AR5: =F5 -> 奈良 | AT5: W | AU5: L | AV5: W | AW5: L | AX5: TP | AZ5: TP | BB5: =N5 -> 滋賀 | BD5: W | BE5: L | BF5: W | BG5: L | BH5: TP | BJ5: TP | BL5: R | BM5: 1G | BN5: 2G | BO5: 3G | BP5: 4G | BQ5: 5G | BR5: 6G | BT5: A | BU5: B | BV5: P | CD5: W | CE5: L | CF5: TP | CG5: R_P | CJ5: MVP、VP
B6: =IF(【準備】登録!$C$20=0,"",【準備】登録!$C$20) -> 宮本 一 | E6: =【準備】登録!E20 -> 180 | F6: =IFERROR(VLOOKUP($F$4&$A$5&F$5&$B6,結果リスト!$A:$F,6,FALSE),"") -> W | H6: =IF(F6="","",IF(F6="w",1,0)) -> 1 | I6: =IF(F6="","",IF(F6="w",0,1)) -> 0 | J6: =IF(F6="","",IF(F6="w",E6,F6)) -> 180 | L6: =IF($F6="","",J6/$E6*180) -> 180 | N6: =IFERROR(VLOOKUP($F$4&$A$5&N$5&$B6,結果リスト!$A:$F,6,FALSE),"") -> W | P6: =IF(N6="","",IF(N6="w",1,0)) -> 1 | Q6: =IF(N6="","",IF(N6="w",0,1)) -> 0 | R6: =IF(N6="","",SUM(H6,P6)) -> 2 | S6: =IF(N6="","",SUM(I6,Q6)) -> 0 | T6: =IF(N6="","",IF(N6="w",E6+J6,N6+J6)) -> 360 | V6: =IF($N6="","",T6/$E6*180) -> 360 | X6: =IFERROR(VLOOKUP($X$4&$A$5&X$5&$B6,結果リスト!$A:$F,6,FALSE),"") -> W | Z6: =IF(X6="","",IF(X6="w",1,0)) -> 1 | AA6: =IF(X6="","",IF(X6="w",0,1)) -> 0 | AB6: =IF(X6="","",SUM(R6,Z6)) -> 3 | AC6: =IF(X6="","",SUM(S6,AA6)) -> 0 | AD6: =IF(X6="","",IF(X6="w",T6+E6,X6+T6)) -> 540 | AF6: =IF($X6="","",AD6/$E6*180) -> 540 | AH6: =IFERROR(VLOOKUP($X$4&$A$5&AH$5&$B6,結果リスト!$A:$F,6,FALSE),"") -> W | AJ6: =IF(AH6="","",IF(AH6="w",1,0)) -> 1 | AK6: =IF(AH6="","",IF(AH6="w",0,1)) -> 0 | AL6: =IF(AH6="","",SUM(AB6,AJ6)) -> 4 | AM6: =IF(AH6="","",SUM(AC6,AK6)) -> 0 | AN6: =IF(AH6="","",IF(AH6="w",AD6+E6,AH6+AD6)) -> 720 | AP6: =IF($AH6="","",AN6/$E6*180) -> 720 | AR6: =IFERROR(VLOOKUP($AR$4&$A$5&AR$5&$B6,結果リスト!$A:$F,6,FALSE),"") -> W | AT6: =IF(AR6="","",IF(AR6="w",1,0)) -> 1 | AU6: =IF(AR6="","",IF(AR6="w",0,1)) -> 0 | AV6: =IF(AR6="","",IF(AR6="w",AL6+1,AL6)) -> 5 | AW6: =IF(AR6="","",IF(AR6="w",AM6,AM6+1)) -> 0 | AX6: =IF(AR6="","",IF(AR6="w",AN6+E6,AR6+AN6)) -> 900 | AZ6: =IF($AR6="","",AX6/$E6*180) -> 900 | BB6: =IFERROR(VLOOKUP($AR$4&$A$5&BB$5&$B6,結果リスト!$A:$F,6,FALSE),"") -> W | BD6: =IF(BB6="","",IF(BB6="w",1,0)) -> 1 | BE6: =IF(BB6="","",IF(BB6="w",0,1)) -> 0 | BF6: =IF(BB6="","",IF(BB6="w",AV6+1,AV6)) -> 6 | BG6: =IF(BB6="","",IF(BB6="w",AW6,AW6+1)) -> 0 | BH6: =IF(BB6="","",IF(BB6="w",AX6+E6,BB6+AX6)) -> 1080 | BJ6: =IF($BB6="","",BH6/$E6*180) -> 1080 | BL6: =IF(SUM(H6:I6,R6:S6)=0,"",IF(B$12="",RANK($CG$6:$CG$12,$CG$6:$CG$12,0),RANK($CG$6:$CG$13,$CG$6:$CG$13,0))) -> 1 | BM6: =IF(●【進行】結果入力表!E9="","",●【進行】結果入力表!E9) ->  | BN6: =IF(●【進行】結果入力表!E17="","",●【進行】結果入力表!E17) ->  | BO6: =IF(●【進行】結果入力表!E35="","",●【進行】結果入力表!E35) -> 108 | BP6: =IF(●【進行】結果入力表!E43="","",●【進行】結果入力表!E43) ->  | BQ6: =IFERROR(VLOOKUP(B6,●【進行】結果入力表!$D$57:$E$64,2,FALSE),"") -> 0 | BR6: =IF(●【進行】結果入力表!E69="","",●【進行】結果入力表!E69) ->  | BT6: =COUNTIF($BM6:$BR6,BT$5) -> 0 | BU6: =COUNTIF($BM6:$BR6,BU$5) -> 0 | BV6: =MAX($BM6:$BR6) -> 108 | BW6: =BT6*10000+BU6*1000+BV6 -> 108 | BX6: =RANK(BW6,$BW$6:$BW$33) -> 2 | BY6: =B6 -> 宮本 一 | BZ6: =$A$5 -> 兵庫 | CA6: =IF(BT6>0,"A"&E6,IF(BU6>0,"B"&E6,BV6)) -> 108 | CD6: =COUNTIF(F6:BC6,"w") -> 6 | CE6: =COUNT(F6,N6,AH6,X6,AR6,BB6) -> 0 | CF6: =CD6*180+SUM(F6,N6,AH6,X6,AR6,BB6)*180/E6 -> 1080 | CG6: =CD6*100000+CF6 -> 601080 | CI6: =RANK(CL6,CL6:CL8) -> 1 | CJ6: =A5 -> 兵庫 | CK6: =VLOOKUP(1,BL6:CG13,14,FALSE) -> 宮本 一 | CL6: =VLOOKUP(1,BL6:CG13,22,FALSE) -> 601080
B7: =IF(【準備】登録!$C$20=0,"",【準備】登録!$C$21) -> 鐵山 泰三 | E7: =【準備】登録!E21 -> 180 | F7: =IFERROR(VLOOKUP($F$4&$A$5&F$5&$B7,結果リスト!$A:$F,6,FALSE),"") -> 26 | H7: =IF(F7="","",IF(F7="w",1,0)) -> 0 | I7: =IF(F7="","",IF(F7="w",0,1)) -> 1 | J7: =IF(F7="","",IF(F7="w",E7,F7)) -> 26 | L7: =IF($F7="","",J7/$E7*180) -> 26 | N7: =IFERROR(VLOOKUP($F$4&$A$5&N$5&$B7,結果リスト!$A:$F,6,FALSE),"") -> W | P7: =IF(N7="","",IF(N7="w",1,0)) -> 1 | Q7: =IF(N7="","",IF(N7="w",0,1)) -> 0 | R7: =IF(N7="","",SUM(H7,P7)) -> 1 | S7: =IF(N7="","",SUM(I7,Q7)) -> 1 | T7: 206 | V7: 206 | X7: =IFERROR(VLOOKUP($X$4&$A$5&X$5&$B7,結果リスト!$A:$F,6,FALSE),"") -> W | Z7: =IF(X7="","",IF(X7="w",1,0)) -> 1 | AA7: =IF(X7="","",IF(X7="w",0,1)) -> 0 | AB7: =IF(X7="","",SUM(R7,Z7)) -> 2 | AC7: =IF(X7="","",SUM(S7,AA7)) -> 1 | AD7: 386 | AF7: 386 | AH7: =IFERROR(VLOOKUP($X$4&$A$5&AH$5&$B7,結果リスト!$A:$F,6,FALSE),"") -> W | AJ7: =IF(AH7="","",IF(AH7="w",1,0)) -> 1 | AK7: =IF(AH7="","",IF(AH7="w",0,1)) -> 0 | AL7: =IF(AH7="","",SUM(AB7,AJ7)) -> 3 | AM7: =IF(AH7="","",SUM(AC7,AK7)) -> 1 | AN7: 566 | AP7: 566 | AR7: =IFERROR(VLOOKUP($AR$4&$A$5&AR$5&$B7,結果リスト!$A:$F,6,FALSE),"") -> W | AT7: =IF(AR7="","",IF(AR7="w",1,0)) -> 1 | AU7: =IF(AR7="","",IF(AR7="w",0,1)) -> 0 | AV7: =IF(AR7="","",IF(AR7="w",AL7+1,AL7)) -> 4 | AW7: =IF(AR7="","",IF(AR7="w",AM7,AM7+1)) -> 1 | AX7: 746 | AZ7: 746 | BB7: =IFERROR(VLOOKUP($AR$4&$A$5&BB$5&$B7,結果リスト!$A:$F,6,FALSE),"") -> 178 | BD7: =IF(BB7="","",IF(BB7="w",1,0)) -> 0 | BE7: =IF(BB7="","",IF(BB7="w",0,1)) -> 1 | BF7: =IF(BB7="","",IF(BB7="w",AV7+1,AV7)) -> 4 | BG7: =IF(BB7="","",IF(BB7="w",AW7,AW7+1)) -> 2 | BH7: 924 | BJ7: 924 | BL7: =IF(SUM(H7:I7,R7:S7)=0,"",IF(B$13="",RANK($CG$6:$CG$12,$CG$6:$CG$12,0),RANK($CG$6:$CG$13,$CG$6:$CG$13,0))) -> 3 | BM7: =IF(●【進行】結果入力表!E10="","",●【進行】結果入力表!E10) ->  | BN7: =IF(●【進行】結果入力表!E18="","",●【進行】結果入力表!E18) ->  | BO7: =IF(●【進行】結果入力表!E36="","",●【進行】結果入力表!E36) -> 100 | BP7: =IF(●【進行】結果入力表!E44="","",●【進行】結果入力表!E44) ->  | BQ7: =IFERROR(VLOOKUP(B7,●【進行】結果入力表!$D$57:$E$64,2,FALSE),"") -> 0 | BR7: =IF(●【進行】結果入力表!E70="","",●【進行】結果入力表!E70) ->  | BT7: =COUNTIF($BM7:$BR7,BT$5) -> 0 | BU7: 0 | BV7: =MAX($BM7:$BR7) -> 100 | BW7: =BT7*10000+BU7*1000+BV7 -> 100 | BX7: =RANK(BW7,$BW$6:$BW$33) -> 6 | BY7: =B7 -> 鐵山 泰三 | BZ7: =$A$5 -> 兵庫 | CA7: 100 | CD7: 4 | CE7: 2 | CF7: 924 | CG7: =CD7*100000+CF7 -> 400924 | CI7: =RANK(CL7,CL6:CL8) -> 2 | CJ7: =A15 -> 滋賀 | CK7: =VLOOKUP(1,BL16:CG23,14,FALSE) -> 大橋 義治 | CL7: =VLOOKUP(1,BL16:CG23,22,FALSE) -> 501076
B8: =IF(【準備】登録!$C$20=0,"",【準備】登録!$C$22) -> 中尾 亮太 | E8: =【準備】登録!E22 -> 180 | F8: =IFERROR(VLOOKUP($F$4&$A$5&F$5&$B8,結果リスト!$A:$F,6,FALSE),"") -> 24 | H8: 0 | I8: 1 | J8: 24 | L8: 24 | N8: =IFERROR(VLOOKUP($F$4&$A$5&N$5&$B8,結果リスト!$A:$F,6,FALSE),"") -> 153 | P8: 0 | Q8: 1 | R8: 0 | S8: 2 | T8: 177 | V8: 177 | X8: =IFERROR(VLOOKUP($X$4&$A$5&X$5&$B8,結果リスト!$A:$F,6,FALSE),"") -> 53 | Z8: 0 | AA8: 1 | AB8: 0 | AC8: 3 | AD8: 230 | AF8: 230 | AH8: =IFERROR(VLOOKUP($X$4&$A$5&AH$5&$B8,結果リスト!$A:$F,6,FALSE),"") -> 149 | AJ8: 0 | AK8: 1 | AL8: 0 | AM8: 4 | AN8: 379 | AP8: 379 | AR8: =IFERROR(VLOOKUP($AR$4&$A$5&AR$5&$B8,結果リスト!$A:$F,6,FALSE),"") -> W | AT8: 1 | AU8: 0 | AV8: 1 | AW8: 4 | AX8: 559 | AZ8: 559 | BB8: =IFERROR(VLOOKUP($AR$4&$A$5&BB$5&$B8,結果リスト!$A:$F,6,FALSE),"") -> W | BD8: 1 | BE8: 0 | BF8: 2 | BG8: 4 | BH8: 739 | BJ8: 739 | BL8: 6 | BM8: =IF(●【進行】結果入力表!E11="","",●【進行】結果入力表!E11) ->  | BN8: =IF(●【進行】結果入力表!E19="","",●【進行】結果入力表!E19) ->  | BO8: =IF(●【進行】結果入力表!E37="","",●【進行】結果入力表!E37) ->  | BP8: =IF(●【進行】結果入力表!E45="","",●【進行】結果入力表!E45) ->  | BQ8: =IFERROR(VLOOKUP(B8,●【進行】結果入力表!$D$57:$E$64,2,FALSE),"") -> 0 | BR8: =IF(●【進行】結果入力表!E71="","",●【進行】結果入力表!E71) ->  | BT8: 0 | BU8: 0 | BV8: 0 | BW8: 0 | BX8: 7 | BY8: 中尾 亮太 | BZ8: 兵庫 | CA8: 0 | CD8: 2 | CE8: 4 | CF8: 739 | CG8: 200739 | CI8: =RANK(CL8,CL6:CL8) -> 3 | CJ8: =A25 -> 奈良 | CK8: =VLOOKUP(1,BL26:CG33,14,FALSE) -> 吉向 翔平 | CL8: =VLOOKUP(1,BL26:CG33,22,FALSE) -> 400981
B9: =IF(【準備】登録!$C$20=0,"",【準備】登録!$C$23) -> 平井 洸志 | E9: =【準備】登録!E23 -> 180 | F9: =IFERROR(VLOOKUP($F$4&$A$5&F$5&$B9,結果リスト!$A:$F,6,FALSE),"") -> 24 | H9: 0 | I9: 1 | J9: 24 | L9: 24 | N9: =IFERROR(VLOOKUP($F$4&$A$5&N$5&$B9,結果リスト!$A:$F,6,FALSE),"") -> 102 | P9: 0 | Q9: 1 | R9: 0 | S9: 2 | T9: 126 | V9: 126 | X9: =IFERROR(VLOOKUP($X$4&$A$5&X$5&$B9,結果リスト!$A:$F,6,FALSE),"") -> W | Z9: 1 | AA9: 0 | AB9: 1 | AC9: 2 | AD9: 306 | AF9: 306 | AH9: =IFERROR(VLOOKUP($X$4&$A$5&AH$5&$B9,結果リスト!$A:$F,6,FALSE),"") -> W | AJ9: 1 | AK9: 0 | AL9: 2 | AM9: 2 | AN9: 486 | AP9: 486 | AR9: =IFERROR(VLOOKUP($AR$4&$A$5&AR$5&$B9,結果リスト!$A:$F,6,FALSE),"") -> W | AT9: 1 | AU9: 0 | AV9: 3 | AW9: 2 | AX9: 666 | AZ9: 666 | BB9: =IFERROR(VLOOKUP($AR$4&$A$5&BB$5&$B9,結果リスト!$A:$F,6,FALSE),"") -> 45 | BD9: 0 | BE9: 1 | BF9: 3 | BG9: 3 | BH9: 711 | BJ9: 711 | BL9: 5 | BM9: =IF(●【進行】結果入力表!E12="","",●【進行】結果入力表!E12) ->  | BN9: =IF(●【進行】結果入力表!E20="","",●【進行】結果入力表!E20) ->  | BO9: =IF(●【進行】結果入力表!E38="","",●【進行】結果入力表!E38) ->  | BP9: =IF(●【進行】結果入力表!E46="","",●【進行】結果入力表!E46) ->  | BQ9: =IFERROR(VLOOKUP(B9,●【進行】結果入力表!$D$57:$E$64,2,FALSE),"") -> 0 | BR9: =IF(●【進行】結果入力表!D$72="",IF(●【進行】結果入力表!E65="","",●【進行】結果入力表!E65),IF(●【進行】結果入力表!E72="","",●【進行】結果入力表!E72)) ->  | BT9: 0 | BU9: 0 | BV9: 0 | BW9: 0 | BX9: 7 | BY9: 平井 洸志 | BZ9: 兵庫 | CA9: 0 | CD9: 3 | CE9: 3 | CF9: 711 | CG9: 300711
B10: =IF(【準備】登録!$C$20=0,"",【準備】登録!$C$24) -> 堂園 雅也 | E10: =【準備】登録!E24 -> 180 | F10: =IFERROR(VLOOKUP($F$4&$A$5&F$5&$B10,結果リスト!$A:$F,6,FALSE),"") -> W | H10: 1 | I10: 0 | J10: 180 | L10: 180 | N10: =IFERROR(VLOOKUP($F$4&$A$5&N$5&$B10,結果リスト!$A:$F,6,FALSE),"") -> W | P10: 1 | Q10: 0 | R10: 2 | S10: 0 | T10: 360 | V10: 360 | X10: =IFERROR(VLOOKUP($X$4&$A$5&X$5&$B10,結果リスト!$A:$F,6,FALSE),"") -> W | Z10: 1 | AA10: 0 | AB10: 3 | AC10: 0 | AD10: 540 | AF10: 540 | AH10: =IFERROR(VLOOKUP($X$4&$A$5&AH$5&$B10,結果リスト!$A:$F,6,FALSE),"") -> 156 | AJ10: 0 | AK10: 1 | AL10: 3 | AM10: 1 | AN10: 696 | AP10: 696 | AR10: =IFERROR(VLOOKUP($AR$4&$A$5&AR$5&$B10,結果リスト!$A:$F,6,FALSE),"") -> W | AT10: 1 | AU10: 0 | AV10: 4 | AW10: 1 | AX10: 876 | AZ10: 876 | BB10: =IFERROR(VLOOKUP($AR$4&$A$5&BB$5&$B10,結果リスト!$A:$F,6,FALSE),"") -> 88 | BD10: 0 | BE10: 1 | BF10: 4 | BG10: 2 | BH10: 964 | BJ10: 964 | BL10: 2 | BM10: =IF(●【進行】結果入力表!E13="","",●【進行】結果入力表!E13) ->  | BN10: =IF(●【進行】結果入力表!E21="","",●【進行】結果入力表!E21) ->  | BO10: =IF(●【進行】結果入力表!E39="","",●【進行】結果入力表!E39) ->  | BP10: =IF(●【進行】結果入力表!E47="","",●【進行】結果入力表!E47) ->  | BQ10: =IFERROR(VLOOKUP(B10,●【進行】結果入力表!$D$57:$E$64,2,FALSE),"") -> 110 | BR10: =IF(●【進行】結果入力表!D$72="",IF(●【進行】結果入力表!E66="","",●【進行】結果入力表!E66),IF(●【進行】結果入力表!E65="","",●【進行】結果入力表!E65)) ->  | BT10: 0 | BU10: 0 | BV10: 110 | BW10: 110 | BX10: 1 | BY10: 堂園 雅也 | BZ10: 兵庫 | CA10: 110 | CD10: 4 | CE10: 2 | CF10: 964 | CG10: 400964
B11: =IF(【準備】登録!$C$20=0,"",【準備】登録!$C$25) -> 藤中 健太郎 | E11: =【準備】登録!E25 -> 180 | F11: =IFERROR(VLOOKUP($F$4&$A$5&F$5&$B11,結果リスト!$A:$F,6,FALSE),"") -> W | H11: 1 | I11: 0 | J11: 180 | L11: 180 | N11: =IFERROR(VLOOKUP($F$4&$A$5&N$5&$B11,結果リスト!$A:$F,6,FALSE),"") -> 84 | P11: 0 | Q11: 1 | R11: 1 | S11: 1 | T11: 264 | V11: 264 | X11: =IFERROR(VLOOKUP($X$4&$A$5&X$5&$B11,結果リスト!$A:$F,6,FALSE),"") -> 88 | Z11: 0 | AA11: 1 | AB11: 1 | AC11: 2 | AD11: 352 | AF11: 352 | AH11: =IFERROR(VLOOKUP($X$4&$A$5&AH$5&$B11,結果リスト!$A:$F,6,FALSE),"") -> 24 | AJ11: 0 | AK11: 1 | AL11: 1 | AM11: 3 | AN11: 376 | AP11: 376 | AR11: =IFERROR(VLOOKUP($AR$4&$A$5&AR$5&$B11,結果リスト!$A:$F,6,FALSE),"") -> W | AT11: 1 | AU11: 0 | AV11: 2 | AW11: 3 | AX11: 556 | AZ11: 556 | BB11: =IFERROR(VLOOKUP($AR$4&$A$5&BB$5&$B11,結果リスト!$A:$F,6,FALSE),"") -> W | BD11: 1 | BE11: 0 | BF11: 3 | BG11: 3 | BH11: 736 | BJ11: 736 | BL11: 4 | BM11: =IF(●【進行】結果入力表!E14="","",●【進行】結果入力表!E14) ->  | BN11: =IF(●【進行】結果入力表!E22="","",●【進行】結果入力表!E22) ->  | BO11: =IF(●【進行】結果入力表!D$48="",IF(●【進行】結果入力表!E33="","",●【進行】結果入力表!E33),IF(●【進行】結果入力表!E40="","",●【進行】結果入力表!E40)) ->  | BP11: =IF(●【進行】結果入力表!D$48="",IF(●【進行】結果入力表!E41="","",●【進行】結果入力表!E41),IF(●【進行】結果入力表!E48="","",●【進行】結果入力表!E48)) ->  | BQ11: =IFERROR(VLOOKUP(B11,●【進行】結果入力表!$D$57:$E$64,2,FALSE),"") -> 107 | BR11: =IF(●【進行】結果入力表!D$72="",IF(●【進行】結果入力表!E67="","",●【進行】結果入力表!E67),IF(●【進行】結果入力表!E66="","",●【進行】結果入力表!E66)) ->  | BT11: 0 | BU11: 0 | BV11: 107 | BW11: 107 | BX11: 3 | BY11: 藤中 健太郎 | BZ11: 兵庫 | CA11: 107 | CD11: 3 | CE11: 3 | CF11: 736 | CG11: 300736
B12: =IF(【準備】登録!$C$27=0,"",【準備】登録!$C$27) ->  | E12: =【準備】登録!E26 -> 0 | F12: =IFERROR(VLOOKUP($F$4&$A$5&F$5&$B12,結果リスト!$A:$F,6,FALSE),"") ->  | N12: =IFERROR(VLOOKUP($F$4&$A$5&N$5&$B12,結果リスト!$A:$F,6,FALSE),"") ->  | X12: =IFERROR(VLOOKUP($X$4&$A$5&X$5&$B12,結果リスト!$A:$F,6,FALSE),"") ->  | AH12: =IFERROR(VLOOKUP($X$4&$A$5&AH$5&$B12,結果リスト!$A:$F,6,FALSE),"") ->  | AR12: =IFERROR(VLOOKUP($AR$4&$A$5&AR$5&$B12,結果リスト!$A:$F,6,FALSE),"") ->  | BB12: =IFERROR(VLOOKUP($AR$4&$A$5&BB$5&$B12,結果リスト!$A:$F,6,FALSE),"") ->  | BM12: =IF(●【進行】結果入力表!E15="","",●【進行】結果入力表!E15) ->  | BN12: =IF(●【進行】結果入力表!E23="","",●【進行】結果入力表!E23) ->  | BO12: =IF(●【進行】結果入力表!D$48="",IF(●【進行】結果入力表!E34="","",●【進行】結果入力表!E34),IF(●【進行】結果入力表!E33="","",●【進行】結果入力表!E33)) ->  | BP12: =IF(●【進行】結果入力表!D$48="",IF(●【進行】結果入力表!E42="","",●【進行】結果入力表!E42),IF(●【進行】結果入力表!E41="","",●【進行】結果入力表!E41)) ->  | BQ12: =IFERROR(VLOOKUP(B12,●【進行】結果入力表!$D$57:$E$64,2,FALSE),"") ->  | BR12: =IF(●【進行】結果入力表!D$72="",IF(●【進行】結果入力表!E68="","",●【進行】結果入力表!E68),IF(●【進行】結果入力表!E67="","",●【進行】結果入力表!E67)) ->  | BT12: 0 | BU12: 0 | BV12: 0 | BW12: 0 | BX12: 7 | BZ12: 兵庫 | CA12: 0 | CD12: =IF(B12="","",COUNTIF(F12:BC12,"w")) ->  | CE12: =IF(B12="","",COUNT(F12,N12,AH12,X12,AR12,BB12)) ->  | CF12: =IF(CD12="","",CD12*180+SUM(F12,N12,AH12,X12,AR12,BB12)*180/E12) ->  | CG12: =IF(B12="","",CD12*100000+CF12) -> 
B13: =IF(【準備】登録!$C$27=0,"",【準備】登録!$C$27) ->  | E13: =IF(【準備】登録!$C$27="","",【準備】登録!E27) ->  | F13: =IFERROR(VLOOKUP($F$4&$A$5&F$5&$B13,結果リスト!$A:$F,6,FALSE),"") ->  | H13: =IF(F13="","",IF(F13="w",1,0)) ->  | I13: =IF(F13="","",IF(F13="w",0,1)) ->  | N13: =IFERROR(VLOOKUP($F$4&$A$5&N$5&$B13,結果リスト!$A:$F,6,FALSE),"") ->  | X13: =IFERROR(VLOOKUP($X$4&$A$5&X$5&$B13,結果リスト!$A:$F,6,FALSE),"") ->  | AH13: =IFERROR(VLOOKUP($X$4&$A$5&AH$5&$B13,結果リスト!$A:$F,6,FALSE),"") ->  | AR13: =IFERROR(VLOOKUP($AR$4&$A$5&AR$5&$B13,結果リスト!$A:$F,6,FALSE),"") ->  | AV13: =IF(AR13="","",IF(AR13="w",AL13+1,AL13)) ->  | AW13: =IF(AR13="","",IF(AR13="w",AM13,AM13+1)) ->  | BB13: =IFERROR(VLOOKUP($AR$4&$A$5&BB$5&$B13,結果リスト!$A:$F,6,FALSE),"") ->  | BF13: =IF(BB13="","",IF(BB13="w",AV13+1,AV13)) ->  | BG13: =IF(BB13="","",IF(BB13="w",AW13,AW13+1)) ->  | BM13: =IF(●【進行】結果入力表!E16="","",●【進行】結果入力表!E16) ->  | BN13: =IF(●【進行】結果入力表!E24="","",●【進行】結果入力表!E24) ->  | BO13: =IF(●【進行】結果入力表!D48="","",IF(●【進行】結果入力表!E34="","",●【進行】結果入力表!E34)) ->  | BP13: =IF(●【進行】結果入力表!D48="","",IF(●【進行】結果入力表!E42="","",●【進行】結果入力表!E42)) ->  | BQ13: =IFERROR(VLOOKUP(B13,●【進行】結果入力表!$D$57:$E$64,2,FALSE),"") ->  | BR13: =IF(●【進行】結果入力表!D72="","",IF(●【進行】結果入力表!E68="","",●【進行】結果入力表!E68)) ->  | BT13: 0 | BU13: 0 | BV13: 0 | BW13: 0 | BX13: 7 | BZ13: 兵庫 | CA13: 0 | CD13: =IF(B13="","",COUNTIF(F13:BC13,"w")) ->  | CE13: =IF(B13="","",COUNT(F13,N13,AH13,X13,AR13,BB13)) ->  | CF13: =IF(CD13="","",CD13*180+SUM(F13,N13,AH13,X13,AR13,BB13)*180/E13) ->  | CG13: =IF(B13="","",CD13*100000+CF13) -> 
B14: Total | H14: =IF(COUNTBLANK(H6:H13)=8,"",SUM(H6:H13)) -> 3 | I14: =IF(COUNTBLANK(I6:I13)=8,"",SUM(I6:I13)) -> 3 | J14: =IF($B6="","",SUM(J6:J13)) -> 614 | K14: =IF($B6="","",SUM(K6:K13)) -> 0 | L14: =IF(COUNTBLANK(L6:L13)=8,"",SUM(L6:L13)) -> 614 | M14: =IF($B6="","",SUM(M6:M13)) -> 0 | P14: =SUM(P6:P13) -> 3 | Q14: =SUM(Q6:Q13) -> 3 | R14: =IF(COUNTBLANK(R6:R13)=8,"",SUM(H14,P14)) -> 6 | S14: =IF(COUNTBLANK(S6:S13)=8,"",SUM(I14,Q14)) -> 6 | T14: =IF($B6="","",SUM(T6:T13)) -> 1493 | U14: =IF($B6="","",SUM(U6:U13)) -> 0 | V14: =IF(COUNTBLANK(V6:V13)=8,"",SUM(V6:V13)) -> 1493 | W14: =IF($B6="","",SUM(W6:W13)) -> 0 | Z14: =SUM(Z6:Z13) -> 4 | AA14: =SUM(AA6:AA13) -> 2 | AB14: =IF(COUNTBLANK(AB6:AB13)=8,"",SUM(R14,Z14)) -> 10 | AC14: =IF(COUNTBLANK(AC6:AC13)=8,"",SUM(S14,AA14)) -> 8 | AD14: =IF($B6="","",SUM(AD6:AD13)) -> 2354 | AE14: =IF($B6="","",SUM(AE6:AE13)) -> 0 | AF14: =IF(COUNTBLANK(AF6:AF13)=8,"",SUM(AF6:AF13)) -> 2354 | AG14: =IF($B6="","",SUM(AG6:AG13)) -> 0 | AJ14: =SUM(AJ6:AJ13) -> 3 | AK14: =SUM(AK6:AK13) -> 3 | AL14: =IF(COUNTBLANK(AL6:AL13)=8,"",SUM(AB14,AJ14)) -> 13 | AM14: =IF(COUNTBLANK(AM6:AM13)=8,"",SUM(AC14,AK14)) -> 11 | AN14: =IF($B6="","",SUM(AN6:AN13)) -> 3223 | AO14: =IF($B6="","",SUM(AO6:AO13)) -> 0 | AP14: =IF(COUNTBLANK(AP6:AP13)=8,"",SUM(AP6:AP13)) -> 3223 | AQ14: =IF($B6="","",SUM(AQ6:AQ13)) -> 0 | AT14: =SUM(AT6:AT13) -> 6 | AU14: =SUM(AU6:AU13) -> 0 | AV14: =IF(COUNTBLANK(AV6:AV13)=8,"",SUM(AL14,AT14)) -> 19 | AW14: =IF(COUNTBLANK(AW6:AW13)=8,"",SUM(AM14,AU14)) -> 11 | AX14: =IF($B6="","",SUM(AX6:AX13)) -> 4303 | AY14: =IF($B6="","",SUM(AY6:AY13)) -> 0 | AZ14: =IF(COUNTBLANK(AZ6:AZ13)=8,"",SUM(AZ6:AZ13)) -> 4303 | BA14: =IF($B6="","",SUM(BA6:BA13)) -> 0 | BD14: =SUM(BD6:BD13) -> 3 | BE14: =SUM(BE6:BE13) -> 3 | BF14: =IF(COUNTBLANK(BF6:BF13)=8,"",SUM(AV14,BD14)) -> 22 | BG14: =IF(COUNTBLANK(BG6:BG13)=8,"",SUM(AW14,BE14)) -> 14 | BH14: =IF($B6="","",SUM(BH6:BH13)) -> 5154 | BI14: =IF($B6="","",SUM(BI6:BI13)) -> 0 | BJ14: =IF(COUNTBLANK(BJ6:BJ13)=8,"",SUM(BJ6:BJ13)) -> 5154 | BK14: =IF($B6="","",SUM(BK6:BK13)) -> 0 | CD14: =SUM(CD6:CD13) -> 22 | CE14: =SUM(CE6:CE13) -> 14 | CF14: =SUM(CF6:CF13) -> 5154 | CG14: =SUM(CG6:CG13) -> 2205154
A15: =IF(【準備】登録!F17="","",【準備】登録!F17) -> 滋賀 | B15: =B5 -> 選手名 | E15: =E5 -> 持点 | F15: =A5 -> 兵庫 | H15: W | I15: L | J15: TP | L15: TP | N15: =A25 -> 奈良 | P15: W | Q15: L | R15: W | S15: L | T15: TP | V15: TP | X15: =A5 -> 兵庫 | Z15: W | AA15: L | AB15: W | AC15: L | AD15: TP | AF15: TP | AH15: =A25 -> 奈良 | AJ15: W | AK15: L | AL15: W | AM15: L | AN15: TP | AP15: TP | AR15: =A5 -> 兵庫 | AT15: W | AU15: L | AV15: W | AW15: L | AX15: TP | AZ15: TP | BB15: =A25 -> 奈良 | BD15: W | BE15: L | BF15: W | BG15: L | BH15: TP | BJ15: TP | BL15: R | BM15: =BM$5 -> 1G | BN15: 2G | BO15: 3G | BP15: 4G | BQ15: 5G | BR15: 6G | CD15: =CD$5 -> W | CE15: =CE$5 -> L | CF15: =CF$5 -> TP | CG15: =CG$5 -> R_P
B16: =IF(【準備】登録!$C$20=0,"",【準備】登録!$F$20) -> 大橋 義治 | E16: =【準備】登録!H20 -> 180 | F16: =IFERROR(VLOOKUP($F$4&$A$15&F$15&$B16,結果リスト!$A:$F,6,FALSE),"") -> 176 | H16: =IF(F16="","",IF(F16="w",1,0)) -> 0 | I16: =IF(F16="","",IF(F16="w",0,1)) -> 1 | J16: =IF(F16="","",IF(F16="w",E16,F16)) -> 176 | L16: =IF($F16="","",J16/$E16*180) -> 176 | N16: =IFERROR(VLOOKUP($F$4&$A$15&N$15&$B16,結果リスト!$A:$F,6,FALSE),"") -> W | P16: =IF(N16="","",IF(N16="w",1,0)) -> 1 | Q16: =IF(N16="","",IF(N16="w",0,1)) -> 0 | R16: =IF(N16="","",SUM(H16,P16)) -> 1 | S16: =IF(N16="","",SUM(I16,Q16)) -> 1 | T16: =IF(N16="","",IF(N16="w",E16+J16,N16+J16)) -> 356 | V16: =IF($N16="","",T16/$E16*180) -> 356 | X16: =IFERROR(VLOOKUP($X$4&$A$15&X$15&$B16,結果リスト!$A:$F,6,FALSE),"") -> W | Z16: =IF(X16="","",IF(X16="w",1,0)) -> 1 | AA16: =IF(X16="","",IF(X16="w",0,1)) -> 0 | AB16: =IF(X16="","",SUM(R16,Z16)) -> 2 | AC16: =IF(X16="","",SUM(S16,AA16)) -> 1 | AD16: =IF(X16="","",IF(X16="w",T16+E16,X16+T16)) -> 536 | AF16: =IF($X16="","",AD16/$E16*180) -> 536 | AH16: =IFERROR(VLOOKUP($X$4&$A$15&AH$15&$B16,結果リスト!$A:$F,6,FALSE),"") -> W | AJ16: =IF(AH16="","",IF(AH16="w",1,0)) -> 1 | AK16: =IF(AH16="","",IF(AH16="w",0,1)) -> 0 | AL16: =IF(AH16="","",SUM(AB16,AJ16)) -> 3 | AM16: =IF(AH16="","",SUM(AC16,AK16)) -> 1 | AN16: =IF(AH16="","",IF(AH16="w",AD16+E16,AH16+AD16)) -> 716 | AP16: =IF($AH16="","",AN16/$E16*180) -> 716 | AR16: =IFERROR(VLOOKUP($AR$4&$A$15&AR$15&$B16,結果リスト!$A:$F,6,FALSE),"") -> W | AT16: =IF(AR16="","",IF(AR16="w",1,0)) -> 1 | AU16: =IF(AR16="","",IF(AR16="w",0,1)) -> 0 | AV16: =IF(AR16="","",IF(AR16="w",AL16+1,AL16)) -> 4 | AW16: =IF(AR16="","",IF(AR16="w",AM16,AM16+1)) -> 1 | AX16: =IF(AR16="","",IF(AR16="w",AN16+E16,AR16+AN16)) -> 896 | AZ16: =IF($AR16="","",AX16/$E16*180) -> 896 | BB16: =IFERROR(VLOOKUP($AR$4&$A$15&BB$15&$B16,結果リスト!$A:$F,6,FALSE),"") -> W | BD16: =IF(BB16="","",IF(BB16="w",1,0)) -> 1 | BE16: =IF(BB16="","",IF(BB16="w",0,1)) -> 0 | BF16: =IF(BB16="","",IF(BB16="w",AV16+1,AV16)) -> 5 | BG16: =IF(BB16="","",IF(BB16="w",AW16,AW16+1)) -> 1 | BH16: =IF(BB16="","",IF(BB16="w",AX16+E16,BB16+AX16)) -> 1076 | BJ16: =IF($BB16="","",BH16/$E16*180) -> 1076 | BL16: =IF(SUM(H16:I16,R16:S16)=0,"",IF(B$13="",RANK($CG$16:$CG$22,$CG$16:$CG$22,0),RANK($CG$16:$CG$23,$CG$16:$CG$23,0))) -> 1 | BM16: =IF(●【進行】結果入力表!H17="","",●【進行】結果入力表!H17) ->  | BN16: =IF(●【進行】結果入力表!E25="","",●【進行】結果入力表!E25) ->  | BO16: =IF(●【進行】結果入力表!H42="","",●【進行】結果入力表!H42) ->  | BP16: =IF(●【進行】結果入力表!E50="","",●【進行】結果入力表!E50) ->  | BQ16: =IF(●【進行】結果入力表!H67="","",●【進行】結果入力表!H67) ->  | BR16: =IF(●【進行】結果入力表!E75="","",●【進行】結果入力表!E75) ->  | BT16: =COUNTIF($BM16:$BR16,BT$5) -> 0 | BU16: =COUNTIF($BM16:$BR16,BU$5) -> 0 | BV16: 0 | BW16: =BT16*10000+BU16*1000+BV16 -> 0 | BX16: 7 | BY16: =B16 -> 大橋 義治 | BZ16: =$A$15 -> 滋賀 | CA16: =IF(BT16>0,"A"&E16,IF(BU16>0,"B"&E16,BV16)) -> 0 | CD16: =COUNTIF(F16:BC16,"w") -> 5 | CE16: =COUNT(F16,N16,AH16,X16,AR16,BB16) -> 1 | CF16: =CD16*180+SUM(F16,N16,AH16,X16,AR16,BB16)*180/E16 -> 1076 | CG16: =CD16*100000+CF16 -> 501076
B17: =IF(【準備】登録!$C$20=0,"",【準備】登録!$F$21) -> 大橋 正寛 | E17: =【準備】登録!H21 -> 180 | F17: =IFERROR(VLOOKUP($F$4&$A$15&F$15&$B17,結果リスト!$A:$F,6,FALSE),"") -> 159 | H17: =IF(F17="","",IF(F17="w",1,0)) -> 0 | I17: =IF(F17="","",IF(F17="w",0,1)) -> 1 | J17: =IF(F17="","",IF(F17="w",E17,F17)) -> 159 | L17: =IF($F17="","",J17/$E17*180) -> 159 | N17: =IFERROR(VLOOKUP($F$4&$A$15&N$15&$B17,結果リスト!$A:$F,6,FALSE),"") -> W | P17: =IF(N17="","",IF(N17="w",1,0)) -> 1 | Q17: =IF(N17="","",IF(N17="w",0,1)) -> 0 | R17: =IF(N17="","",SUM(H17,P17)) -> 1 | S17: =IF(N17="","",SUM(I17,Q17)) -> 1 | T17: 339 | V17: 339 | X17: =IFERROR(VLOOKUP($X$4&$A$15&X$15&$B17,結果リスト!$A:$F,6,FALSE),"") -> 156 | Z17: =IF(X17="","",IF(X17="w",1,0)) -> 0 | AA17: =IF(X17="","",IF(X17="w",0,1)) -> 1 | AB17: =IF(X17="","",SUM(R17,Z17)) -> 1 | AC17: =IF(X17="","",SUM(S17,AA17)) -> 2 | AD17: 495 | AF17: 495 | AH17: =IFERROR(VLOOKUP($X$4&$A$15&AH$15&$B17,結果リスト!$A:$F,6,FALSE),"") -> W | AJ17: =IF(AH17="","",IF(AH17="w",1,0)) -> 1 | AK17: =IF(AH17="","",IF(AH17="w",0,1)) -> 0 | AL17: =IF(AH17="","",SUM(AB17,AJ17)) -> 2 | AM17: =IF(AH17="","",SUM(AC17,AK17)) -> 2 | AN17: 675 | AP17: 675 | AR17: =IFERROR(VLOOKUP($AR$4&$A$15&AR$15&$B17,結果リスト!$A:$F,6,FALSE),"") -> 17 | AT17: =IF(AR17="","",IF(AR17="w",1,0)) -> 0 | AU17: =IF(AR17="","",IF(AR17="w",0,1)) -> 1 | AV17: 2 | AW17: 3 | AX17: 692 | AZ17: 692 | BB17: =IFERROR(VLOOKUP($AR$4&$A$15&BB$15&$B17,結果リスト!$A:$F,6,FALSE),"") -> 75 | BD17: =IF(BB17="","",IF(BB17="w",1,0)) -> 0 | BE17: =IF(BB17="","",IF(BB17="w",0,1)) -> 1 | BF17: 2 | BG17: 4 | BH17: 767 | BJ17: 767 | BL17: 5 | BM17: =IF(●【進行】結果入力表!H18="","",●【進行】結果入力表!H18) ->  | BN17: =IF(●【進行】結果入力表!E26="","",●【進行】結果入力表!E26) ->  | BO17: =IF(●【進行】結果入力表!H43="","",●【進行】結果入力表!H43) ->  | BP17: =IF(●【進行】結果入力表!E51="","",●【進行】結果入力表!E51) ->  | BQ17: =IF(●【進行】結果入力表!H68="","",●【進行】結果入力表!H68) ->  | BR17: =IF(●【進行】結果入力表!E76="","",●【進行】結果入力表!E76) ->  | BT17: =COUNTIF($BM17:$BR17,BT$5) -> 0 | BU17: 0 | BV17: 0 | BW17: =BT17*10000+BU17*1000+BV17 -> 0 | BX17: 7 | BY17: =B17 -> 大橋 正寛 | BZ17: =$A$15 -> 滋賀 | CA17: 0 | CD17: 2 | CE17: 4 | CF17: 767 | CG17: =CD17*100000+CF17 -> 200767
B18: =IF(【準備】登録!$C$20=0,"",【準備】登録!$F$22) -> 西峰 久祐 | E18: =【準備】登録!H22 -> 180 | F18: =IFERROR(VLOOKUP($F$4&$A$15&F$15&$B18,結果リスト!$A:$F,6,FALSE),"") -> W | H18: 1 | I18: 0 | J18: 180 | L18: 180 | N18: =IFERROR(VLOOKUP($F$4&$A$15&N$15&$B18,結果リスト!$A:$F,6,FALSE),"") -> W | P18: 1 | Q18: 0 | R18: 2 | S18: 0 | T18: 360 | V18: 360 | X18: =IFERROR(VLOOKUP($X$4&$A$15&X$15&$B18,結果リスト!$A:$F,6,FALSE),"") -> 62 | Z18: 0 | AA18: 1 | AB18: 2 | AC18: 1 | AD18: 422 | AF18: 422 | AH18: =IFERROR(VLOOKUP($X$4&$A$15&AH$15&$B18,結果リスト!$A:$F,6,FALSE),"") -> W | AJ18: 1 | AK18: 0 | AL18: 3 | AM18: 1 | AN18: 602 | AP18: 602 | AR18: =IFERROR(VLOOKUP($AR$4&$A$15&AR$15&$B18,結果リスト!$A:$F,6,FALSE),"") -> 120 | AT18: 0 | AU18: 1 | AV18: 3 | AW18: 2 | AX18: 722 | AZ18: 722 | BB18: =IFERROR(VLOOKUP($AR$4&$A$15&BB$15&$B18,結果リスト!$A:$F,6,FALSE),"") -> W | BD18: 1 | BE18: 0 | BF18: 4 | BG18: 2 | BH18: 902 | BJ18: 902 | BL18: 3 | BM18: =IF(●【進行】結果入力表!H19="","",●【進行】結果入力表!H19) ->  | BN18: =IF(●【進行】結果入力表!E27="","",●【進行】結果入力表!E27) ->  | BO18: =IF(●【進行】結果入力表!H44="","",●【進行】結果入力表!H44) ->  | BP18: =IF(●【進行】結果入力表!E52="","",●【進行】結果入力表!E52) ->  | BQ18: =IF(●【進行】結果入力表!H69="","",●【進行】結果入力表!H69) ->  | BR18: =IF(●【進行】結果入力表!E77="","",●【進行】結果入力表!E77) ->  | BT18: 0 | BU18: 0 | BV18: 0 | BW18: 0 | BX18: 7 | BY18: 西峰 久祐 | BZ18: 滋賀 | CA18: 0 | CD18: 4 | CE18: 2 | CF18: 902 | CG18: 400902
B19: =IF(【準備】登録!$C$20=0,"",【準備】登録!$F$23) -> 山中 康寛 | E19: =【準備】登録!H23 -> 180 | F19: =IFERROR(VLOOKUP($F$4&$A$15&F$15&$B19,結果リスト!$A:$F,6,FALSE),"") -> W | H19: 1 | I19: 0 | J19: 180 | L19: 180 | N19: =IFERROR(VLOOKUP($F$4&$A$15&N$15&$B19,結果リスト!$A:$F,6,FALSE),"") -> 78 | P19: 0 | Q19: 1 | R19: 1 | S19: 1 | T19: 258 | V19: 258 | X19: =IFERROR(VLOOKUP($X$4&$A$15&X$15&$B19,結果リスト!$A:$F,6,FALSE),"") -> W | Z19: 1 | AA19: 0 | AB19: 2 | AC19: 1 | AD19: 438 | AF19: 438 | AH19: =IFERROR(VLOOKUP($X$4&$A$15&AH$15&$B19,結果リスト!$A:$F,6,FALSE),"") -> 135 | AJ19: 0 | AK19: 1 | AL19: 2 | AM19: 2 | AN19: 573 | AP19: 573 | AR19: =IFERROR(VLOOKUP($AR$4&$A$15&AR$15&$B19,結果リスト!$A:$F,6,FALSE),"") -> W | AT19: 1 | AU19: 0 | AV19: 3 | AW19: 2 | AX19: 753 | AZ19: 753 | BB19: =IFERROR(VLOOKUP($AR$4&$A$15&BB$15&$B19,結果リスト!$A:$F,6,FALSE),"") -> 80 | BD19: 0 | BE19: 1 | BF19: 3 | BG19: 3 | BH19: 833 | BJ19: 833 | BL19: 4 | BM19: =IF(●【進行】結果入力表!H20="","",●【進行】結果入力表!H20) ->  | BN19: =IF(●【進行】結果入力表!E28="","",●【進行】結果入力表!E28) ->  | BO19: =IF(●【進行】結果入力表!H45="","",●【進行】結果入力表!H45) ->  | BP19: =IF(●【進行】結果入力表!E53="","",●【進行】結果入力表!E53) ->  | BQ19: =IF(●【進行】結果入力表!H70="","",●【進行】結果入力表!H70) ->  | BR19: =IF(●【進行】結果入力表!E78="","",●【進行】結果入力表!E78) ->  | BT19: 0 | BU19: 0 | BV19: 0 | BW19: 0 | BX19: 7 | BY19: 山中 康寛 | BZ19: 滋賀 | CA19: 0 | CD19: 3 | CE19: 3 | CF19: 833 | CG19: 300833
B20: =IF(【準備】登録!$C$20=0,"",【準備】登録!$F$24) -> 御手洗 茂 | E20: =【準備】登録!H24 -> 180 | F20: =IFERROR(VLOOKUP($F$4&$A$15&F$15&$B20,結果リスト!$A:$F,6,FALSE),"") -> 95 | H20: 0 | I20: 1 | J20: 95 | L20: 95 | N20: =IFERROR(VLOOKUP($F$4&$A$15&N$15&$B20,結果リスト!$A:$F,6,FALSE),"") -> 31 | P20: 0 | Q20: 1 | R20: 0 | S20: 2 | T20: 126 | V20: 126 | X20: =IFERROR(VLOOKUP($X$4&$A$15&X$15&$B20,結果リスト!$A:$F,6,FALSE),"") -> 88 | Z20: 0 | AA20: 1 | AB20: 0 | AC20: 3 | AD20: 214 | AF20: 214 | AH20: =IFERROR(VLOOKUP($X$4&$A$15&AH$15&$B20,結果リスト!$A:$F,6,FALSE),"") -> 96 | AJ20: 0 | AK20: 1 | AL20: 0 | AM20: 4 | AN20: 310 | AP20: 310 | AR20: =IFERROR(VLOOKUP($AR$4&$A$15&AR$15&$B20,結果リスト!$A:$F,6,FALSE),"") -> 61 | AT20: 0 | AU20: 1 | AV20: 0 | AW20: 5 | AX20: 371 | AZ20: 371 | BB20: =IFERROR(VLOOKUP($AR$4&$A$15&BB$15&$B20,結果リスト!$A:$F,6,FALSE),"") -> 134 | BD20: 0 | BE20: 1 | BF20: 0 | BG20: 6 | BH20: 505 | BJ20: 505 | BL20: 6 | BM20: =IF(●【進行】結果入力表!H21="","",●【進行】結果入力表!H21) ->  | BN20: =IF(●【進行】結果入力表!E29="","",●【進行】結果入力表!E29) ->  | BO20: =IF(●【進行】結果入力表!H46="","",●【進行】結果入力表!H46) ->  | BP20: =IF(●【進行】結果入力表!E54="","",●【進行】結果入力表!E54) ->  | BQ20: =IF(●【進行】結果入力表!H71="","",●【進行】結果入力表!H71) ->  | BR20: =IF(●【進行】結果入力表!E79="","",●【進行】結果入力表!E79) ->  | BT20: 0 | BU20: 0 | BV20: 0 | BW20: 0 | BX20: 7 | BY20: 御手洗 茂 | BZ20: 滋賀 | CA20: 0 | CD20: 0 | CE20: 6 | CF20: 505 | CG20: 505
B21: =IF(【準備】登録!$C$20=0,"",【準備】登録!$F$25) -> 高島 太一 | E21: =【準備】登録!H25 -> 180 | F21: =IFERROR(VLOOKUP($F$4&$A$15&F$15&$B21,結果リスト!$A:$F,6,FALSE),"") -> W | H21: 1 | I21: 0 | J21: 180 | L21: 180 | N21: =IFERROR(VLOOKUP($F$4&$A$15&N$15&$B21,結果リスト!$A:$F,6,FALSE),"") -> W | P21: 1 | Q21: 0 | R21: 2 | S21: 0 | T21: 360 | V21: 360 | X21: =IFERROR(VLOOKUP($X$4&$A$15&X$15&$B21,結果リスト!$A:$F,6,FALSE),"") -> W | Z21: 1 | AA21: 0 | AB21: 3 | AC21: 0 | AD21: 540 | AF21: 540 | AH21: =IFERROR(VLOOKUP($X$4&$A$15&AH$15&$B21,結果リスト!$A:$F,6,FALSE),"") -> 100 | AJ21: 0 | AK21: 1 | AL21: 3 | AM21: 1 | AN21: 640 | AP21: 640 | AR21: =IFERROR(VLOOKUP($AR$4&$A$15&AR$15&$B21,結果リスト!$A:$F,6,FALSE),"") -> W | AT21: 1 | AU21: 0 | AV21: 4 | AW21: 1 | AX21: 820 | AZ21: 820 | BB21: =IFERROR(VLOOKUP($AR$4&$A$15&BB$15&$B21,結果リスト!$A:$F,6,FALSE),"") -> 132 | BD21: 0 | BE21: 1 | BF21: 4 | BG21: 2 | BH21: 952 | BJ21: 952 | BL21: 2 | BM21: =IF(●【進行】結果入力表!H22="","",●【進行】結果入力表!H22) ->  | BN21: =IF(●【進行】結果入力表!E30="","",●【進行】結果入力表!E30) ->  | BO21: =IF(●【進行】結果入力表!H47="","",●【進行】結果入力表!H47) ->  | BP21: =IF(●【進行】結果入力表!E55="","",●【進行】結果入力表!E55) ->  | BQ21: =IF(●【進行】結果入力表!I72="",IF(●【進行】結果入力表!H65="","",●【進行】結果入力表!H65),IF(●【進行】結果入力表!H72="","",●【進行】結果入力表!H72)) ->  | BR21: =IF(●【進行】結果入力表!D80="",IF(●【進行】結果入力表!E73="","",●【進行】結果入力表!E73),IF(●【進行】結果入力表!E80="","",●【進行】結果入力表!E80)) ->  | BT21: 0 | BU21: 0 | BV21: 0 | BW21: 0 | BX21: 7 | BY21: 高島 太一 | BZ21: 滋賀 | CA21: 0 | CD21: 4 | CE21: 2 | CF21: 952 | CG21: 400952
B22: =IF(【準備】登録!$F$27=0,"",【準備】登録!$F$27) ->  | E22: =【準備】登録!H26 -> 0 | F22: =IFERROR(VLOOKUP($F$4&$A$15&F$15&$B22,結果リスト!$A:$F,6,FALSE),"") ->  | N22: =IFERROR(VLOOKUP($F$4&$A$15&N$15&$B22,結果リスト!$A:$F,6,FALSE),"") ->  | X22: =IFERROR(VLOOKUP($X$4&$A$15&X$15&$B22,結果リスト!$A:$F,6,FALSE),"") ->  | AH22: =IFERROR(VLOOKUP($X$4&$A$15&AH$15&$B22,結果リスト!$A:$F,6,FALSE),"") ->  | AR22: =IFERROR(VLOOKUP($AR$4&$A$15&AR$15&$B22,結果リスト!$A:$F,6,FALSE),"") ->  | BB22: =IFERROR(VLOOKUP($AR$4&$A$15&BB$15&$B22,結果リスト!$A:$F,6,FALSE),"") ->  | BM22: =IF(●【進行】結果入力表!H23="","",●【進行】結果入力表!H23) ->  | BN22: =IF(●【進行】結果入力表!E31="","",●【進行】結果入力表!E31) ->  | BO22: =IF(●【進行】結果入力表!I48="",IF(●【進行】結果入力表!H41="","",●【進行】結果入力表!H41),IF(●【進行】結果入力表!H48="","",●【進行】結果入力表!H48)) ->  | BP22: =IF(●【進行】結果入力表!D56="",IF(●【進行】結果入力表!E49="","",●【進行】結果入力表!E49),IF(●【進行】結果入力表!E56="","",●【進行】結果入力表!E56)) ->  | BQ22: =IF(●【進行】結果入力表!I72="",IF(●【進行】結果入力表!H66="","",●【進行】結果入力表!H66),IF(●【進行】結果入力表!H65="","",●【進行】結果入力表!H65)) ->  | BR22: =IF(●【進行】結果入力表!D80="",IF(●【進行】結果入力表!E74="","",●【進行】結果入力表!E74),IF(●【進行】結果入力表!E73="","",●【進行】結果入力表!E73)) ->  | BT22: 0 | BU22: 0 | BV22: 0 | BW22: 0 | BX22: 7 | BZ22: 滋賀 | CA22: 0 | CD22: =IF(B22="","",COUNTIF(F22:BC22,"w")) ->  | CE22: =IF(B22="","",COUNT(F22,N22,AH22,X22,AR22,BB22)) ->  | CF22: =IF(CD22="","",CD22*180+SUM(F22,N22,AH22,X22,AR22,BB22)*180/E22) ->  | CG22: =IF(CD22="","",CD22*100000+CF22) -> 
B23: =IF(【準備】登録!$F$27=0,"",【準備】登録!$F$27) ->  | E23: =IF(【準備】登録!$F$27="","",【準備】登録!H27) ->  | F23: =IFERROR(VLOOKUP($F$4&$A$15&F$15&$B23,結果リスト!$A:$F,6,FALSE),"") ->  | H23: =IF(F23="","",IF(F23="w",1,0)) ->  | I23: =IF(F23="","",IF(F23="w",0,1)) ->  | N23: =IFERROR(VLOOKUP($F$4&$A$15&N$15&$B23,結果リスト!$A:$F,6,FALSE),"") ->  | X23: =IFERROR(VLOOKUP($X$4&$A$15&X$15&$B23,結果リスト!$A:$F,6,FALSE),"") ->  | AH23: =IFERROR(VLOOKUP($X$4&$A$15&AH$15&$B23,結果リスト!$A:$F,6,FALSE),"") ->  | AR23: =IFERROR(VLOOKUP($AR$4&$A$15&AR$15&$B23,結果リスト!$A:$F,6,FALSE),"") ->  | BB23: =IFERROR(VLOOKUP($AR$4&$A$15&BB$15&$B23,結果リスト!$A:$F,6,FALSE),"") ->  | BM23: =IF(●【進行】結果入力表!H24="","",●【進行】結果入力表!H24) ->  | BN23: =IF(●【進行】結果入力表!E32="","",●【進行】結果入力表!E32) ->  | BO23: =IF(●【進行】結果入力表!I48="","",IF(●【進行】結果入力表!H41="","",●【進行】結果入力表!H41)) ->  | BP23: =IF(●【進行】結果入力表!D56="","",IF(●【進行】結果入力表!E49="","",●【進行】結果入力表!E49)) ->  | BQ23: =IF(●【進行】結果入力表!I72="","",IF(●【進行】結果入力表!H66="","",●【進行】結果入力表!H66)) ->  | BR23: =IF(●【進行】結果入力表!D80="","",IF(●【進行】結果入力表!E74="","",●【進行】結果入力表!E74)) ->  | BT23: 0 | BU23: 0 | BV23: 0 | BW23: 0 | BX23: 7 | BZ23: 滋賀 | CA23: 0 | CD23: =IF(B23="","",COUNTIF(F23:BC23,"w")) ->  | CE23: =IF(B23="","",COUNT(F23,N23,AH23,X23,AR23,BB23)) ->  | CF23: =IF(CD23="","",CD23*180+SUM(F23,N23,AH23,X23,AR23,BB23)*180/E23) ->  | CG23: =IF(B23="","",CD23*100000+CF23) -> 
B24: Total | H24: =IF(COUNTBLANK(H16:H23)=8,"",SUM(H16:H23)) -> 3 | I24: =IF(COUNTBLANK(I16:I23)=8,"",SUM(I16:I23)) -> 3 | J24: =IF($B16="","",SUM(J16:J23)) -> 970 | K24: =IF($B16="","",SUM(K16:K23)) -> 0 | L24: =IF(COUNTBLANK(L16:L23)=8,"",SUM(L16:L23)) -> 970 | M24: =IF($B16="","",SUM(M16:M23)) -> 0 | P24: =SUM(P16:P23) -> 4 | Q24: =SUM(Q16:Q23) -> 2 | R24: =IF(COUNTBLANK(R16:R23)=8,"",SUM(H24,P24)) -> 7 | S24: =IF(COUNTBLANK(S16:S23)=8,"",SUM(I24,Q24)) -> 5 | T24: =IF($B16="","",SUM(T16:T23)) -> 1799 | U24: =IF($B16="","",SUM(U16:U23)) -> 0 | V24: =IF(COUNTBLANK(V16:V23)=8,"",SUM(V16:V23)) -> 1799 | W24: =IF($B16="","",SUM(W16:W23)) -> 0 | Z24: =SUM(Z16:Z23) -> 3 | AA24: =SUM(AA16:AA23) -> 3 | AB24: =IF(COUNTBLANK(AB16:AB23)=8,"",SUM(R24,Z24)) -> 10 | AC24: =IF(COUNTBLANK(AC16:AC23)=8,"",SUM(S24,AA24)) -> 8 | AD24: =IF($B16="","",SUM(AD16:AD23)) -> 2645 | AE24: =IF($B16="","",SUM(AE16:AE23)) -> 0 | AF24: =IF(COUNTBLANK(AF16:AF23)=8,"",SUM(AF16:AF23)) -> 2645 | AG24: =IF($B16="","",SUM(AG16:AG23)) -> 0 | AJ24: =SUM(AJ16:AJ23) -> 3 | AK24: =SUM(AK16:AK23) -> 3 | AL24: =IF(COUNTBLANK(AL16:AL23)=8,"",SUM(AB24,AJ24)) -> 13 | AM24: =IF(COUNTBLANK(AM16:AM23)=8,"",SUM(AC24,AK24)) -> 11 | AN24: =IF($B16="","",SUM(AN16:AN23)) -> 3516 | AO24: =IF($B16="","",SUM(AO16:AO23)) -> 0 | AP24: =IF(COUNTBLANK(AP16:AP23)=8,"",SUM(AP16:AP23)) -> 3516 | AQ24: =IF($B16="","",SUM(AQ16:AQ23)) -> 0 | AT24: =SUM(AT16:AT23) -> 3 | AU24: =SUM(AU16:AU23) -> 3 | AV24: =IF(COUNTBLANK(AV16:AV23)=8,"",SUM(AL24,AT24)) -> 16 | AW24: =IF(COUNTBLANK(AW16:AW23)=8,"",SUM(AM24,AU24)) -> 14 | AX24: =IF($B16="","",SUM(AX16:AX23)) -> 4254 | AY24: =IF($B16="","",SUM(AY16:AY23)) -> 0 | AZ24: =IF(COUNTBLANK(AZ16:AZ23)=8,"",SUM(AZ16:AZ23)) -> 4254 | BA24: =IF($B16="","",SUM(BA16:BA23)) -> 0 | BD24: =SUM(BD16:BD23) -> 2 | BE24: =SUM(BE16:BE23) -> 4 | BF24: =IF(COUNTBLANK(BF16:BF23)=8,"",SUM(AV24,BD24)) -> 18 | BG24: =IF(COUNTBLANK(BG16:BG23)=8,"",SUM(AW24,BE24)) -> 18 | BH24: =IF($B16="","",SUM(BH16:BH23)) -> 5035 | BI24: =IF($B16="","",SUM(BI16:BI23)) -> 0 | BJ24: =IF(COUNTBLANK(BJ16:BJ23)=8,"",SUM(BJ16:BJ23)) -> 5035 | BK24: =IF($B16="","",SUM(BK16:BK23)) -> 0 | CD24: =SUM(CD16:CD23) -> 18 | CE24: =SUM(CE16:CE23) -> 18 | CF24: =SUM(CF16:CF23) -> 5035 | CG24: =SUM(CG16:CG23) -> 1805035
A25: =IF(【準備】登録!I17="","",【準備】登録!I17) -> 奈良 | B25: =B5 -> 選手名 | E25: =E5 -> 持点 | F25: =A5 -> 兵庫 | H25: W | I25: L | J25: TP | L25: TP | N25: =A15 -> 滋賀 | P25: W | Q25: L | R25: W | S25: L | T25: TP | V25: TP | X25: =A5 -> 兵庫 | Z25: W | AA25: L | AB25: W | AC25: L | AD25: TP | AF25: TP | AH25: =A15 -> 滋賀 | AJ25: W | AK25: L | AL25: W | AM25: L | AN25: TP | AP25: TP | AR25: =A5 -> 兵庫 | AT25: W | AU25: L | AV25: W | AW25: L | AX25: TP | AZ25: TP | BB25: =A15 -> 滋賀 | BD25: W | BE25: L | BF25: W | BG25: L | BH25: TP | BJ25: TP | BL25: R | BM25: =BM$5 -> 1G | BN25: 2G | BO25: 3G | BP25: 4G | BQ25: 5G | BR25: 6G | CD25: =CD$5 -> W | CE25: =CE$5 -> L | CF25: =CF$5 -> TP | CG25: =CG$5 -> R_P
B26: =IF(【準備】登録!$C$20=0,"",【準備】登録!$I$20) -> 田尻 哲司 | E26: =【準備】登録!K20 -> 180 | F26: =IFERROR(VLOOKUP($F$4&$A$25&F$25&$B26,結果リスト!$A:$F,6,FALSE),"") -> 52 | H26: =IF(F26="","",IF(F26="w",1,0)) -> 0 | I26: =IF(F26="","",IF(F26="w",0,1)) -> 1 | J26: =IF(F26="","",IF(F26="w",E26,F26)) -> 52 | L26: =IF($F26="","",J26/$E26*180) -> 52 | N26: =IFERROR(VLOOKUP($F$4&$A$25&N$25&$B26,結果リスト!$A:$F,6,FALSE),"") -> 172 | P26: =IF(N26="","",IF(N26="w",1,0)) -> 0 | Q26: =IF(N26="","",IF(N26="w",0,1)) -> 1 | R26: =IF(N26="","",SUM(H26,P26)) -> 0 | S26: =IF(N26="","",SUM(I26,Q26)) -> 2 | T26: =IF(N26="","",IF(N26="w",E26+J26,N26+J26)) -> 224 | V26: =IF($N26="","",T26/$E26*180) -> 224 | X26: =IFERROR(VLOOKUP($X$4&$A$25&X$25&$B26,結果リスト!$A:$F,6,FALSE),"") -> 53 | Z26: =IF(X26="","",IF(X26="w",1,0)) -> 0 | AA26: =IF(X26="","",IF(X26="w",0,1)) -> 1 | AB26: =IF(X26="","",SUM(R26,Z26)) -> 0 | AC26: =IF(X26="","",SUM(S26,AA26)) -> 3 | AD26: =IF(X26="","",IF(X26="w",T26+E26,X26+T26)) -> 277 | AF26: =IF($X26="","",AD26/$E26*180) -> 277 | AH26: =IFERROR(VLOOKUP($X$4&$A$25&AH$25&$B26,結果リスト!$A:$F,6,FALSE),"") -> 65 | AJ26: =IF(AH26="","",IF(AH26="w",1,0)) -> 0 | AK26: =IF(AH26="","",IF(AH26="w",0,1)) -> 1 | AL26: =IF(AH26="","",SUM(AB26,AJ26)) -> 0 | AM26: =IF(AH26="","",SUM(AC26,AK26)) -> 4 | AN26: =IF(AH26="","",IF(AH26="w",AD26+E26,AH26+AD26)) -> 342 | AP26: =IF($AH26="","",AN26/$E26*180) -> 342 | AR26: =IFERROR(VLOOKUP($AR$4&$A$25&AR$25&$B26,結果リスト!$A:$F,6,FALSE),"") -> 99 | AT26: =IF(AR26="","",IF(AR26="w",1,0)) -> 0 | AU26: =IF(AR26="","",IF(AR26="w",0,1)) -> 1 | AV26: =IF(AR26="","",IF(AR26="w",AL26+1,AL26)) -> 0 | AW26: =IF(AR26="","",IF(AR26="w",AM26,AM26+1)) -> 5 | AX26: =IF(AR26="","",IF(AR26="w",AN26+E26,AR26+AN26)) -> 441 | AZ26: =IF($AR26="","",AX26/$E26*180) -> 441 | BB26: =IFERROR(VLOOKUP($AR$4&$A$25&BB$25&$B26,結果リスト!$A:$F,6,FALSE),"") -> W | BD26: =IF(BB26="","",IF(BB26="w",1,0)) -> 1 | BE26: =IF(BB26="","",IF(BB26="w",0,1)) -> 0 | BF26: =IF(BB26="","",IF(BB26="w",AV26+1,AV26)) -> 1 | BG26: =IF(BB26="","",IF(BB26="w",AW26,AW26+1)) -> 5 | BH26: =IF(BB26="","",IF(BB26="w",AX26+E26,BB26+AX26)) -> 621 | BJ26: =IF($BB26="","",BH26/$E26*180) -> 621 | BL26: =IF(SUM(H26:I26,R26:S26)=0,"",IF(B$13="",RANK($CG$26:$CG$32,$CG$26:$CG$32,0),RANK($CG$26:$CG$33,$CG$26:$CG$33,0))) -> 6 | BM26: =IF(●【進行】結果入力表!H9="","",●【進行】結果入力表!H9) ->  | BN26: =IF(●【進行】結果入力表!H25="","",●【進行】結果入力表!H25) ->  | BO26: =IF(●【進行】結果入力表!H33="","",●【進行】結果入力表!H33) ->  | BP26: =IF(●【進行】結果入力表!H49="","",●【進行】結果入力表!H49) ->  | BQ26: =IF(●【進行】結果入力表!H57="","",●【進行】結果入力表!H57) ->  | BR26: =IF(●【進行】結果入力表!H73="","",●【進行】結果入力表!H73) ->  | BT26: =COUNTIF($BM26:$BR26,BT$5) -> 0 | BU26: =COUNTIF($BM26:$BR26,BU$5) -> 0 | BV26: 0 | BW26: =BT26*10000+BU26*1000+BV26 -> 0 | BX26: 7 | BY26: =B26 -> 田尻 哲司 | BZ26: =$A$25 -> 奈良 | CA26: =IF(BT26>0,"A"&E26,IF(BU26>0,"B"&E26,BV26)) -> 0 | CD26: =COUNTIF(F26:BC26,"w") -> 1 | CE26: =COUNT(F26,N26,AH26,X26,AR26,BB26) -> 5 | CF26: =CD26*180+SUM(F26,N26,AH26,X26,AR26,BB26)*180/E26 -> 621 | CG26: =CD26*100000+CF26 -> 100621
B27: =IF(【準備】登録!$C$20=0,"",【準備】登録!$I$21) -> 吉向 翔平 | E27: =【準備】登録!K21 -> 180 | F27: =IFERROR(VLOOKUP($F$4&$A$25&F$25&$B27,結果リスト!$A:$F,6,FALSE),"") -> W | H27: =IF(F27="","",IF(F27="w",1,0)) -> 1 | I27: =IF(F27="","",IF(F27="w",0,1)) -> 0 | J27: =IF(F27="","",IF(F27="w",E27,F27)) -> 180 | L27: =IF($F27="","",J27/$E27*180) -> 180 | N27: =IFERROR(VLOOKUP($F$4&$A$25&N$25&$B27,結果リスト!$A:$F,6,FALSE),"") -> 137 | P27: =IF(N27="","",IF(N27="w",1,0)) -> 0 | Q27: =IF(N27="","",IF(N27="w",0,1)) -> 1 | R27: =IF(N27="","",SUM(H27,P27)) -> 1 | S27: =IF(N27="","",SUM(I27,Q27)) -> 1 | T27: 317 | V27: 317 | X27: =IFERROR(VLOOKUP($X$4&$A$25&X$25&$B27,結果リスト!$A:$F,6,FALSE),"") -> W | Z27: =IF(X27="","",IF(X27="w",1,0)) -> 1 | AA27: =IF(X27="","",IF(X27="w",0,1)) -> 0 | AB27: =IF(X27="","",SUM(R27,Z27)) -> 2 | AC27: =IF(X27="","",SUM(S27,AA27)) -> 1 | AD27: 497 | AF27: 497 | AH27: =IFERROR(VLOOKUP($X$4&$A$25&AH$25&$B27,結果リスト!$A:$F,6,FALSE),"") -> W | AJ27: =IF(AH27="","",IF(AH27="w",1,0)) -> 1 | AK27: =IF(AH27="","",IF(AH27="w",0,1)) -> 0 | AL27: =IF(AH27="","",SUM(AB27,AJ27)) -> 3 | AM27: =IF(AH27="","",SUM(AC27,AK27)) -> 1 | AN27: 677 | AP27: 677 | AR27: =IFERROR(VLOOKUP($AR$4&$A$25&AR$25&$B27,結果リスト!$A:$F,6,FALSE),"") -> 124 | AT27: =IF(AR27="","",IF(AR27="w",1,0)) -> 0 | AU27: =IF(AR27="","",IF(AR27="w",0,1)) -> 1 | AV27: 3 | AW27: 2 | AX27: 801 | AZ27: 801 | BB27: =IFERROR(VLOOKUP($AR$4&$A$25&BB$25&$B27,結果リスト!$A:$F,6,FALSE),"") -> W | BD27: =IF(BB27="","",IF(BB27="w",1,0)) -> 1 | BE27: =IF(BB27="","",IF(BB27="w",0,1)) -> 0 | BF27: 4 | BG27: 2 | BH27: 981 | BJ27: 981 | BL27: 1 | BM27: =IF(●【進行】結果入力表!H10="","",●【進行】結果入力表!H10) ->  | BN27: =IF(●【進行】結果入力表!H26="","",●【進行】結果入力表!H26) ->  | BO27: =IF(●【進行】結果入力表!H34="","",●【進行】結果入力表!H34) ->  | BP27: =IF(●【進行】結果入力表!H50="","",●【進行】結果入力表!H50) ->  | BQ27: =IF(●【進行】結果入力表!H58="","",●【進行】結果入力表!H58) ->  | BR27: =IF(●【進行】結果入力表!H74="","",●【進行】結果入力表!H74) ->  | BT27: =COUNTIF($BM27:$BR27,BT$5) -> 0 | BU27: 0 | BV27: 0 | BW27: =BT27*10000+BU27*1000+BV27 -> 0 | BX27: 7 | BY27: =B27 -> 吉向 翔平 | BZ27: =$A$25 -> 奈良 | CA27: 0 | CD27: 4 | CE27: 2 | CF27: 981 | CG27: =CD27*100000+CF27 -> 400981
B28: =IF(【準備】登録!$C$20=0,"",【準備】登録!$I$22) -> 巽 大地 | E28: =【準備】登録!K22 -> 180 | F28: =IFERROR(VLOOKUP($F$4&$A$25&F$25&$B28,結果リスト!$A:$F,6,FALSE),"") -> W | H28: 1 | I28: 0 | J28: 180 | L28: 180 | N28: =IFERROR(VLOOKUP($F$4&$A$25&N$25&$B28,結果リスト!$A:$F,6,FALSE),"") -> 160 | P28: 0 | Q28: 1 | R28: 1 | S28: 1 | T28: 340 | V28: 340 | X28: =IFERROR(VLOOKUP($X$4&$A$25&X$25&$B28,結果リスト!$A:$F,6,FALSE),"") -> 91 | Z28: 0 | AA28: 1 | AB28: 1 | AC28: 2 | AD28: 431 | AF28: 431 | AH28: =IFERROR(VLOOKUP($X$4&$A$25&AH$25&$B28,結果リスト!$A:$F,6,FALSE),"") -> W | AJ28: 1 | AK28: 0 | AL28: 2 | AM28: 2 | AN28: 611 | AP28: 611 | AR28: =IFERROR(VLOOKUP($AR$4&$A$25&AR$25&$B28,結果リスト!$A:$F,6,FALSE),"") -> 42 | AT28: 0 | AU28: 1 | AV28: 2 | AW28: 3 | AX28: 653 | AZ28: 653 | BB28: =IFERROR(VLOOKUP($AR$4&$A$25&BB$25&$B28,結果リスト!$A:$F,6,FALSE),"") -> 39 | BD28: 0 | BE28: 1 | BF28: 2 | BG28: 4 | BH28: 692 | BJ28: 692 | BL28: 4 | BM28: =IF(●【進行】結果入力表!H11="","",●【進行】結果入力表!H11) ->  | BN28: =IF(●【進行】結果入力表!H27="","",●【進行】結果入力表!H27) ->  | BO28: =IF(●【進行】結果入力表!H35="","",●【進行】結果入力表!H35) ->  | BP28: =IF(●【進行】結果入力表!H51="","",●【進行】結果入力表!H51) ->  | BQ28: =IF(●【進行】結果入力表!H59="","",●【進行】結果入力表!H59) ->  | BR28: =IF(●【進行】結果入力表!H75="","",●【進行】結果入力表!H75) ->  | BT28: 0 | BU28: 0 | BV28: 0 | BW28: 0 | BX28: 7 | BY28: 巽 大地 | BZ28: 奈良 | CA28: 0 | CD28: 2 | CE28: 4 | CF28: 692 | CG28: 200692
B29: =IF(【準備】登録!$C$20=0,"",【準備】登録!$I$23) -> 山田 晃司 | E29: =【準備】登録!K23 -> 180 | F29: =IFERROR(VLOOKUP($F$4&$A$25&F$25&$B29,結果リスト!$A:$F,6,FALSE),"") -> W | H29: 1 | I29: 0 | J29: 180 | L29: 180 | N29: =IFERROR(VLOOKUP($F$4&$A$25&N$25&$B29,結果リスト!$A:$F,6,FALSE),"") -> W | P29: 1 | Q29: 0 | R29: 2 | S29: 0 | T29: 360 | V29: 360 | X29: =IFERROR(VLOOKUP($X$4&$A$25&X$25&$B29,結果リスト!$A:$F,6,FALSE),"") -> 73 | Z29: 0 | AA29: 1 | AB29: 2 | AC29: 1 | AD29: 433 | AF29: 433 | AH29: =IFERROR(VLOOKUP($X$4&$A$25&AH$25&$B29,結果リスト!$A:$F,6,FALSE),"") -> W | AJ29: 1 | AK29: 0 | AL29: 3 | AM29: 1 | AN29: 613 | AP29: 613 | AR29: =IFERROR(VLOOKUP($AR$4&$A$25&AR$25&$B29,結果リスト!$A:$F,6,FALSE),"") -> 164 | AT29: 0 | AU29: 1 | AV29: 3 | AW29: 2 | AX29: 777 | AZ29: 777 | BB29: =IFERROR(VLOOKUP($AR$4&$A$25&BB$25&$B29,結果リスト!$A:$F,6,FALSE),"") -> W | BD29: 1 | BE29: 0 | BF29: 4 | BG29: 2 | BH29: 957 | BJ29: 957 | BL29: 2 | BM29: =IF(●【進行】結果入力表!H12="","",●【進行】結果入力表!H12) ->  | BN29: =IF(●【進行】結果入力表!H28="","",●【進行】結果入力表!H28) -> 102 | BO29: =IF(●【進行】結果入力表!H36="","",●【進行】結果入力表!H36) ->  | BP29: =IF(●【進行】結果入力表!H52="","",●【進行】結果入力表!H52) ->  | BQ29: =IF(●【進行】結果入力表!H60="","",●【進行】結果入力表!H60) ->  | BR29: =IF(●【進行】結果入力表!H76="","",●【進行】結果入力表!H76) ->  | BT29: 0 | BU29: 0 | BV29: 102 | BW29: 102 | BX29: 5 | BY29: 山田 晃司 | BZ29: 奈良 | CA29: 102 | CD29: 4 | CE29: 2 | CF29: 957 | CG29: 400957
B30: =IF(【準備】登録!$C$20=0,"",【準備】登録!$I$24) -> 鷲尾 隆杜 | E30: =【準備】登録!K24 -> 180 | F30: =IFERROR(VLOOKUP($F$4&$A$25&F$25&$B30,結果リスト!$A:$F,6,FALSE),"") -> 155 | H30: 0 | I30: 1 | J30: 155 | L30: 155 | N30: =IFERROR(VLOOKUP($F$4&$A$25&N$25&$B30,結果リスト!$A:$F,6,FALSE),"") -> W | P30: 1 | Q30: 0 | R30: 1 | S30: 1 | T30: 335 | V30: 335 | X30: =IFERROR(VLOOKUP($X$4&$A$25&X$25&$B30,結果リスト!$A:$F,6,FALSE),"") -> W | Z30: 1 | AA30: 0 | AB30: 2 | AC30: 1 | AD30: 515 | AF30: 515 | AH30: =IFERROR(VLOOKUP($X$4&$A$25&AH$25&$B30,結果リスト!$A:$F,6,FALSE),"") -> 57 | AJ30: 0 | AK30: 1 | AL30: 2 | AM30: 2 | AN30: 572 | AP30: 572 | AR30: =IFERROR(VLOOKUP($AR$4&$A$25&AR$25&$B30,結果リスト!$A:$F,6,FALSE),"") -> 112 | AT30: 0 | AU30: 1 | AV30: 2 | AW30: 3 | AX30: 684 | AZ30: 684 | BB30: =IFERROR(VLOOKUP($AR$4&$A$25&BB$25&$B30,結果リスト!$A:$F,6,FALSE),"") -> 89 | BD30: 0 | BE30: 1 | BF30: 2 | BG30: 4 | BH30: 773 | BJ30: 773 | BL30: 3 | BM30: =IF(●【進行】結果入力表!H13="","",●【進行】結果入力表!H13) ->  | BN30: =IF(●【進行】結果入力表!H29="","",●【進行】結果入力表!H29) -> 105 | BO30: =IF(●【進行】結果入力表!H37="","",●【進行】結果入力表!H37) ->  | BP30: =IF(●【進行】結果入力表!H53="","",●【進行】結果入力表!H53) ->  | BQ30: =IF(●【進行】結果入力表!H61="","",●【進行】結果入力表!H61) ->  | BR30: =IF(●【進行】結果入力表!H77="","",●【進行】結果入力表!H77) ->  | BT30: 0 | BU30: 0 | BV30: 105 | BW30: 105 | BX30: 4 | BY30: 鷲尾 隆杜 | BZ30: 奈良 | CA30: 105 | CD30: 2 | CE30: 4 | CF30: 773 | CG30: 200773
B31: =IF(【準備】登録!$C$20=0,"",【準備】登録!$I$25) -> 長谷川 進 | E31: =【準備】登録!K25 -> 180 | F31: =IFERROR(VLOOKUP($F$4&$A$25&F$25&$B31,結果リスト!$A:$F,6,FALSE),"") -> 164 | H31: 0 | I31: 1 | J31: 164 | L31: 164 | N31: =IFERROR(VLOOKUP($F$4&$A$25&N$25&$B31,結果リスト!$A:$F,6,FALSE),"") -> 108 | P31: 0 | Q31: 1 | R31: 0 | S31: 2 | T31: 272 | V31: 272 | X31: =IFERROR(VLOOKUP($X$4&$A$25&X$25&$B31,結果リスト!$A:$F,6,FALSE),"") -> 50 | Z31: 0 | AA31: 1 | AB31: 0 | AC31: 3 | AD31: 322 | AF31: 322 | AH31: =IFERROR(VLOOKUP($X$4&$A$25&AH$25&$B31,結果リスト!$A:$F,6,FALSE),"") -> 96 | AJ31: 0 | AK31: 1 | AL31: 0 | AM31: 4 | AN31: 418 | AP31: 418 | AR31: =IFERROR(VLOOKUP($AR$4&$A$25&AR$25&$B31,結果リスト!$A:$F,6,FALSE),"") -> 58 | AT31: 0 | AU31: 1 | AV31: 0 | AW31: 5 | AX31: 476 | AZ31: 476 | BB31: =IFERROR(VLOOKUP($AR$4&$A$25&BB$25&$B31,結果リスト!$A:$F,6,FALSE),"") -> W | BD31: 1 | BE31: 0 | BF31: 1 | BG31: 5 | BH31: 656 | BJ31: 656 | BL31: 5 | BM31: =IF(●【進行】結果入力表!H14="","",●【進行】結果入力表!H14) ->  | BN31: =IF(●【進行】結果入力表!H30="","",●【進行】結果入力表!H30) ->  | BO31: =IF(●【進行】結果入力表!H38="","",●【進行】結果入力表!H38) ->  | BP31: =IF(●【進行】結果入力表!H54="","",●【進行】結果入力表!H54) ->  | BQ31: =IF(●【進行】結果入力表!H62="","",●【進行】結果入力表!H62) ->  | BR31: =IF(●【進行】結果入力表!H78="","",●【進行】結果入力表!H78) ->  | BT31: 0 | BU31: 0 | BV31: 0 | BW31: 0 | BX31: 7 | BY31: 長谷川 進 | BZ31: 奈良 | CA31: 0 | CD31: 1 | CE31: 5 | CF31: 656 | CG31: 100656
B32: =IF(【準備】登録!$I$27=0,"",【準備】登録!$I$27) ->  | E32: =【準備】登録!K26 -> 0 | F32: =IFERROR(VLOOKUP($F$4&$A$25&F$25&$B32,結果リスト!$A:$F,6,FALSE),"") ->  | N32: =IFERROR(VLOOKUP($F$4&$A$25&N$25&$B32,結果リスト!$A:$F,6,FALSE),"") ->  | X32: =IFERROR(VLOOKUP($X$4&$A$25&X$25&$B32,結果リスト!$A:$F,6,FALSE),"") ->  | AH32: =IFERROR(VLOOKUP($X$4&$A$25&AH$25&$B32,結果リスト!$A:$F,6,FALSE),"") ->  | AR32: =IFERROR(VLOOKUP($AR$4&$A$25&AR$25&$B32,結果リスト!$A:$F,6,FALSE),"") ->  | BB32: =IFERROR(VLOOKUP($AR$4&$A$25&BB$25&$B32,結果リスト!$A:$F,6,FALSE),"") ->  | BM32: =IF(●【進行】結果入力表!H15="","",●【進行】結果入力表!H15) ->  | BN32: =IF(●【進行】結果入力表!H31="","",●【進行】結果入力表!H31) ->  | BO32: =IF(●【進行】結果入力表!H39="","",●【進行】結果入力表!H39) ->  | BP32: =IF(●【進行】結果入力表!H55="","",●【進行】結果入力表!H55) ->  | BQ32: =IF(●【進行】結果入力表!H63="","",●【進行】結果入力表!H63) ->  | BR32: =IF(●【進行】結果入力表!H79="","",●【進行】結果入力表!H79) ->  | BT32: 0 | BU32: 0 | BV32: 0 | BW32: 0 | BX32: 7 | BZ32: 奈良 | CA32: 0 | CD32: =IF(B32="","",COUNTIF(F32:BC32,"w")) ->  | CE32: =IF(B32="","",COUNT(F32,N32,AH32,X32,AR32,BB32)) ->  | CF32: =IF(CD32="","",CD32*180+SUM(F32,N32,AH32,X32,AR32,BB32)*180/E32) ->  | CG32: =IF(CD32="","",CD32*100000+CF32) -> 
B33: =IF(【準備】登録!$I$27=0,"",【準備】登録!$I$27) ->  | E33: =IF(【準備】登録!$I$27="","",【準備】登録!K27) ->  | F33: =IFERROR(VLOOKUP($F$4&$A$25&F$25&$B33,結果リスト!$A:$F,6,FALSE),"") ->  | H33: =IF(F33="","",IF(F33="w",1,0)) ->  | I33: =IF(F33="","",IF(F33="w",0,1)) ->  | N33: =IFERROR(VLOOKUP($F$4&$A$25&N$25&$B33,結果リスト!$A:$F,6,FALSE),"") ->  | X33: =IFERROR(VLOOKUP($X$4&$A$25&X$25&$B33,結果リスト!$A:$F,6,FALSE),"") ->  | AH33: =IFERROR(VLOOKUP($X$4&$A$25&AH$25&$B33,結果リスト!$A:$F,6,FALSE),"") ->  | AR33: =IFERROR(VLOOKUP($AR$4&$A$25&AR$25&$B33,結果リスト!$A:$F,6,FALSE),"") ->  | BB33: =IFERROR(VLOOKUP($AR$4&$A$25&BB$25&$B33,結果リスト!$A:$F,6,FALSE),"") ->  | BM33: =IF(●【進行】結果入力表!I16="","",IF(●【進行】結果入力表!H16="","",●【進行】結果入力表!H16)) ->  | BN33: =IF(●【進行】結果入力表!I32="","",IF(●【進行】結果入力表!H32="","",●【進行】結果入力表!H32)) ->  | BO33: =IF(●【進行】結果入力表!I40="","",IF(●【進行】結果入力表!H40="","",●【進行】結果入力表!H40)) ->  | BP33: =IF(●【進行】結果入力表!I56="","",IF(●【進行】結果入力表!H56="","",●【進行】結果入力表!H56)) ->  | BQ33: =IF(●【進行】結果入力表!I63="","",IF(●【進行】結果入力表!H64="","",●【進行】結果入力表!H64)) ->  | BR33: =IF(●【進行】結果入力表!I80="","",IF(●【進行】結果入力表!H80="","",●【進行】結果入力表!H80)) ->  | BT33: 0 | BU33: 0 | BV33: 0 | BW33: 0 | BX33: 7 | BZ33: 奈良 | CA33: 0 | CD33: =IF(B33="","",COUNTIF(F33:BC33,"w")) ->  | CE33: =IF(B33="","",COUNT(F33,N33,AH33,X33,AR33,BB33)) ->  | CF33: =IF(CD33="","",CD33*180+SUM(F33,N33,AH33,X33,AR33,BB33)*180/E33) ->  | CG33: =IF(B33="","",CD33*100000+CF33) -> 
B34: Total | H34: =IF(COUNTBLANK(H26:H33)=8,"",SUM(H26:H33)) -> 3 | I34: =IF(COUNTBLANK(I26:I33)=8,"",SUM(I26:I33)) -> 3 | J34: =IF($B26="","",SUM(J26:J33)) -> 911 | K34: =IF($B26="","",SUM(K26:K33)) -> 0 | L34: =IF(COUNTBLANK(L26:L33)=8,"",SUM(L26:L33)) -> 911 | M34: =IF($B26="","",SUM(M26:M33)) -> 0 | P34: =SUM(P26:P33) -> 2 | Q34: =SUM(Q26:Q33) -> 4 | R34: =IF(COUNTBLANK(R26:R33)=8,"",SUM(H34,P34)) -> 5 | S34: =IF(COUNTBLANK(S26:S33)=8,"",SUM(I34,Q34)) -> 7 | T34: =IF($B26="","",SUM(T26:T33)) -> 1848 | U34: =IF($B26="","",SUM(U26:U33)) -> 0 | V34: =IF(COUNTBLANK(V26:V33)=8,"",SUM(V26:V33)) -> 1848 | W34: =IF($B26="","",SUM(W26:W33)) -> 0 | Z34: =SUM(Z26:Z33) -> 2 | AA34: =SUM(AA26:AA33) -> 4 | AB34: =IF(COUNTBLANK(AB26:AB33)=8,"",SUM(R34,Z34)) -> 7 | AC34: =IF(COUNTBLANK(AC26:AC33)=8,"",SUM(S34,AA34)) -> 11 | AD34: =IF($B26="","",SUM(AD26:AD33)) -> 2475 | AE34: =IF($B26="","",SUM(AE26:AE33)) -> 0 | AF34: =IF(COUNTBLANK(AF26:AF33)=8,"",SUM(AF26:AF33)) -> 2475 | AG34: =IF($B26="","",SUM(AG26:AG33)) -> 0 | AJ34: =SUM(AJ26:AJ33) -> 3 | AK34: =SUM(AK26:AK33) -> 3 | AL34: =IF(COUNTBLANK(AL26:AL33)=8,"",SUM(AB34,AJ34)) -> 10 | AM34: =IF(COUNTBLANK(AM26:AM33)=8,"",SUM(AC34,AK34)) -> 14 | AN34: =IF($B26="","",SUM(AN26:AN33)) -> 3233 | AO34: =IF($B26="","",SUM(AO26:AO33)) -> 0 | AP34: =IF(COUNTBLANK(AP26:AP33)=8,"",SUM(AP26:AP33)) -> 3233 | AQ34: =IF($B26="","",SUM(AQ26:AQ33)) -> 0 | AT34: =SUM(AT26:AT33) -> 0 | AU34: =SUM(AU26:AU33) -> 6 | AV34: =IF(COUNTBLANK(AV26:AV33)=8,"",SUM(AL34,AT34)) -> 10 | AW34: =IF(COUNTBLANK(AW26:AW33)=8,"",SUM(AM34,AU34)) -> 20 | AX34: =IF($B26="","",SUM(AX26:AX33)) -> 3832 | AY34: =IF($B26="","",SUM(AY26:AY33)) -> 0 | AZ34: =IF(COUNTBLANK(AZ26:AZ33)=8,"",SUM(AZ26:AZ33)) -> 3832 | BA34: =IF($B26="","",SUM(BA26:BA33)) -> 0 | BD34: =SUM(BD26:BD33) -> 4 | BE34: =SUM(BE26:BE33) -> 2 | BF34: =IF(COUNTBLANK(BF26:BF33)=8,"",SUM(AV34,BD34)) -> 14 | BG34: =IF(COUNTBLANK(BG26:BG33)=8,"",SUM(AW34,BE34)) -> 22 | BH34: =IF($B26="","",SUM(BH26:BH33)) -> 4680 | BI34: =IF($B26="","",SUM(BI26:BI33)) -> 0 | BJ34: =IF(COUNTBLANK(BJ26:BJ33)=8,"",SUM(BJ26:BJ33)) -> 4680 | BK34: =IF($B26="","",SUM(BK26:BK33)) -> 0 | CD34: =SUM(CD26:CD33) -> 14 | CE34: =SUM(CE26:CE33) -> 22 | CF34: =SUM(CF26:CF33) -> 4680 | CG34: =SUM(CG26:CG33) -> 1404680
B35: ※ | C35: TPの数字は、ハンデによる換算後の得点を示す。

Sheet 【結果】リーグ成績表
A1: =●【結果】個人成績表!A1 -> 第8回 神奈滋対抗戦 (奈良；キングスポット)
AZ2: =【準備】登録!D4 -> 2017-10-22
A3: 第１節 | U3: 第２節 | AO3: 第３節
A4: 1 | C4: Name | E4: 持点 | F4: =A5 -> 兵庫 | H4: =A6 -> 滋賀 | J4: =A7 -> 奈良 | L4: W | M4: L | N4: TP | P4: TP | Q4: LP | R4: R_P | S4: R | U4: 1 | W4: Name | Y4: =$E$4 -> 持点 | Z4: =$A$5 -> 兵庫 | AB4: =$A$6 -> 滋賀 | AD4: =$A$7 -> 奈良 | AF4: W | AG4: L | AH4: TP | AJ4: TP | AK4: LP | AL4: R_P | AM4: R | AO4: 1 | AQ4: Name | AS4: =$E$4 -> 持点 | AT4: =$A$5 -> 兵庫 | AV4: =$A$6 -> 滋賀 | AX4: =$A$7 -> 奈良 | AZ4: W | BA4: L | BB4: TP | BD4: TP | BE4: LP | BF4: R_P | BG4: R
A5: =IF(【準備】登録!$C$17="","",【準備】登録!$C$17) -> 兵庫 | C5: =●【進行】結果入力表!D9 -> 宮本 一 | E5: =【準備】登録!E20 -> 180 | H5: =IF(●【進行】結果入力表!F17="","",●【進行】結果入力表!F17) -> W | J5: =IF(●【進行】結果入力表!F9="","",●【進行】結果入力表!F9) -> W | L5: =IF(J5="","",COUNTIF(F5:K5,"w")) -> 2 | M5: =IF(J5="","",COUNT(H5,J5)) -> 0 | N5: =SUM(F5:K5)+L5*E5 -> 360 | P5: =IF(J5="","",N5/E5*180) -> 360 | Q5: =IF(F6="w",180,F6/E5*180)+IF(F7="w",180,F7/E5*180) -> 228 | R5: =L5*10000000+P5*L10004*10000000+P5*1000-Q5 -> 20359772 | S5: =IF(J5="","",RANK(R5:R7,R5:R7,0)) -> 1 | U5: =$A$5 -> 兵庫 | W5: =●【進行】結果入力表!D41 -> 堂園 雅也 | Y5: =【準備】登録!E25 -> 180 | AB5: =IF(●【進行】結果入力表!F41="","",●【進行】結果入力表!F41) -> 156 | AD5: =IF(●【進行】結果入力表!F33="","",●【進行】結果入力表!F33) -> W | AF5: =IF(AD5="","",COUNTIF(Z5:AE5,"w")) -> 1 | AG5: =IF(AD5="","",COUNT(AB5,AD5)) -> 1 | AH5: =SUM(Z5:AE5)+AF5*Y5 -> 336 | AJ5: =IF(AD5="","",AH5/Y5*180) -> 336 | AK5: =IF(Z6="w",180,Z6/Y5*180)+IF(Z7="w",180,Z7/Y5*180) -> 253 | AL5: =AF5*10000000+AJ5*AF10004*10000000+AJ5*1000-AK5 -> 10335747 | AM5: =IF(AD5="","",RANK(AL5:AL7,AL5:AL7,0)) ->  | AO5: =$A$5 -> 兵庫 | AQ5: =●【進行】結果入力表!D65 -> 中尾 亮太 | AS5: =【準備】登録!E23 -> 180 | AV5: =IF(●【進行】結果入力表!F65="","",●【進行】結果入力表!F65) -> W | AX5: =IF(●【進行】結果入力表!F57="","",●【進行】結果入力表!F57) -> W | AZ5: =IF(AX5="","",COUNTIF(AT5:AY5,"w")) -> 2 | BA5: =IF(AX5="","",COUNT(AV5,AX5)) -> 0 | BB5: =SUM(AT5:AY5)+AZ5*AS5 -> 360 | BD5: =IF(AX5="","",BB5/AS5*180) -> 360 | BE5: =IF(AT6="w",180,AT6/AS5*180)+IF(AT7="w",180,AT7/AS5*180) -> 160 | BF5: =AZ5*10000000+BD5*AZ10004*10000000+BD5*1000-BE5 -> 20359840 | BG5: =IF(AX5="","",RANK(BF5:BF7,BF5:BF7,0)) -> 1
A6: =IF(【準備】登録!$F$17="","",【準備】登録!$F$17) -> 滋賀 | C6: =●【進行】結果入力表!I17 -> 大橋 義治 | E6: =【準備】登録!H20 -> 180 | F6: =IF(●【進行】結果入力表!G17="","",●【進行】結果入力表!G17) -> 176 | J6: =IF(●【進行】結果入力表!F25="","",●【進行】結果入力表!F25) -> W | L6: =IF(J5="","",COUNTIF(F6:K6,"w")) -> 1 | M6: =IF(J5="","",COUNT(F6,J6)) -> 1 | N6: =SUM(F6:K6)+L6*E6 -> 356 | P6: =IF(J5="","",N6/E6*180) -> 356 | Q6: =IF(H5="w",180,H5/E6*180)+IF(H7="w",180,H7/E6*180) -> 352 | R6: =L6*10000000+P6*L10005*10000000+P6*1000-Q6 -> 10355648 | S6: =IF(J5="","",RANK(R5:R7,R5:R7,0)) -> 2 | U6: =$A$6 -> 滋賀 | W6: =●【進行】結果入力表!I41 -> 高島 太一 | Y6: =【準備】登録!H26 -> 0 | Z6: =IF(●【進行】結果入力表!G41="","",●【進行】結果入力表!G41) -> W | AD6: =IF(●【進行】結果入力表!F49="","",●【進行】結果入力表!F49) -> 100 | AF6: =IF(AD5="","",COUNTIF(Z6:AE6,"w")) -> 1 | AG6: =IF(AD5="","",COUNT(Z6,AD6)) -> 1 | AH6: =SUM(Z6:AE6)+AF6*Y6 -> 100 | AJ6: =IF(AD5="","",AH6/Y6*180) ->  | AK6: =IF(AB5="w",180,AB5/Y6*180)+IF(AB7="w",180,AB7/Y6*180) ->  | AL6: =AF6*10000000+AJ6*AF10005*10000000+AJ6*1000-AK6 ->  | AM6: =IF(AD5="","",RANK(AL5:AL7,AL5:AL7,0)) ->  | AO6: =$A$6 -> 滋賀 | AQ6: =●【進行】結果入力表!I65 -> 御手洗 茂 | AS6: =【準備】登録!H25 -> 180 | AT6: =IF(●【進行】結果入力表!G65="","",●【進行】結果入力表!G65) -> 61 | AX6: =IF(●【進行】結果入力表!F73="","",●【進行】結果入力表!F73) -> 134 | AZ6: =IF(AX5="","",COUNTIF(AT6:AY6,"w")) -> 0 | BA6: =IF(AX5="","",COUNT(AT6,AX6)) -> 2 | BB6: =SUM(AT6:AY6)+AZ6*AS6 -> 195 | BD6: =IF(AX5="","",BB6/AS6*180) -> 195 | BE6: =IF(AV5="w",180,AV5/AS6*180)+IF(AV7="w",180,AV7/AS6*180) -> 360 | BF6: =AZ6*10000000+BD6*AZ10005*10000000+BD6*1000-BE6 -> 194640 | BG6: =IF(AX5="","",RANK(BF5:BF7,BF5:BF7,0)) -> 3
A7: =IF(【準備】登録!$I$17="","",【準備】登録!$I$17) -> 奈良 | C7: =●【進行】結果入力表!I9 -> 田尻 哲司 | E7: =【準備】登録!K20 -> 180 | F7: =IF(●【進行】結果入力表!G9="","",●【進行】結果入力表!G9) -> 52 | H7: =IF(●【進行】結果入力表!G25="","",●【進行】結果入力表!G25) -> 172 | L7: =IF(J5="","",COUNTIF(F7:K7,"w")) -> 0 | M7: =IF(J5="","",COUNT(F7,H7)) -> 2 | N7: =SUM(F7:K7)+L7*E7 -> 224 | P7: =IF(J5="","",N7/E7*180) -> 224 | Q7: =IF(J5="w",180,J5/E7*180)+IF(J6="w",180,J6/E7*180) -> 360 | R7: =L7*10000000+P7*L10006*10000000+P7*1000-Q7 -> 223640 | S7: =IF(J5="","",RANK(R5:R7,R5:R7,0)) -> 3 | U7: =$A$7 -> 奈良 | W7: =●【進行】結果入力表!I33 -> 山田 晃司 | Y7: =【準備】登録!K20 -> 180 | Z7: =IF(●【進行】結果入力表!G33="","",●【進行】結果入力表!G33) -> 73 | AB7: =IF(●【進行】結果入力表!G49="","",●【進行】結果入力表!G49) -> W | AF7: =IF(AD5="","",COUNTIF(Z7:AE7,"w")) -> 1 | AG7: =IF(AD5="","",COUNT(Z7,AB7)) -> 1 | AH7: =SUM(Z7:AE7)+AF7*Y7 -> 253 | AJ7: =IF(AD5="","",AH7/Y7*180) -> 253 | AK7: =IF(AD5="w",180,AD5/Y7*180)+IF(AD6="w",180,AD6/Y7*180) -> 280 | AL7: =AF7*10000000+AJ7*AF10006*10000000+AJ7*1000-AK7 -> 10252720 | AM7: =IF(AD5="","",RANK(AL5:AL7,AL5:AL7,0)) ->  | AO7: =$A$7 -> 奈良 | AQ7: =●【進行】結果入力表!I57 -> 田尻 哲司 | AS7: =【準備】登録!K20 -> 180 | AT7: =IF(●【進行】結果入力表!G57="","",●【進行】結果入力表!G57) -> 99 | AV7: =IF(●【進行】結果入力表!G73="","",●【進行】結果入力表!G73) -> W | AZ7: =IF(AX5="","",COUNTIF(AT7:AY7,"w")) -> 1 | BA7: =IF(AX5="","",COUNT(AT7,AV7)) -> 1 | BB7: =SUM(AT7:AY7)+AZ7*AS7 -> 279 | BD7: =IF(AX5="","",BB7/AS7*180) -> 279 | BE7: =IF(AX5="w",180,AX5/AS7*180)+IF(AX6="w",180,AX6/AS7*180) -> 314 | BF7: =AZ7*10000000+BD7*AZ10006*10000000+BD7*1000-BE7 -> 10278686 | BG7: =IF(AX5="","",RANK(BF5:BF7,BF5:BF7,0)) -> 2
A9: 2 | C9: Name | E9: =$E$4 -> 持点 | F9: =A10 -> 兵庫 | H9: =A11 -> 滋賀 | J9: =A12 -> 奈良 | L9: W | M9: L | N9: TP | P9: TP | Q9: LP | R9: R_P | S9: R | U9: 2 | W9: Name | Y9: =$E$4 -> 持点 | Z9: =$A$5 -> 兵庫 | AB9: =$A$6 -> 滋賀 | AD9: =$A$7 -> 奈良 | AF9: W | AG9: L | AH9: TP | AJ9: TP | AK9: LP | AL9: R_P | AM9: R | AO9: 2 | AQ9: Name | AS9: =$E$4 -> 持点 | AT9: =$A$5 -> 兵庫 | AV9: =$A$6 -> 滋賀 | AX9: =$A$7 -> 奈良 | AZ9: W | BA9: L | BB9: TP | BD9: TP | BE9: LP | BF9: R_P | BG9: R
A10: =$A$5 -> 兵庫 | C10: =●【進行】結果入力表!D10 -> 鐵山 泰三 | E10: =【準備】登録!E21 -> 180 | H10: =IF(●【進行】結果入力表!F18="","",●【進行】結果入力表!F18) -> W | J10: =IF(●【進行】結果入力表!F10="","",●【進行】結果入力表!F10) -> 26 | L10: =IF(J10="","",COUNTIF(F10:K10,"w")) -> 1 | M10: =IF(J10="","",COUNT(H10,J10)) -> 1 | N10: =SUM(F10:K10)+L10*E10 -> 206 | P10: =IF(J10="","",N10/E10*180) -> 206 | Q10: =IF(F11="w",180,F11/E10*180)+IF(F12="w",180,F12/E10*180) -> 339 | R10: =L10*10000000+P10*L10009*10000000+P10*1000-Q10 -> 10205661 | S10: =IF(J10="","",RANK(R10:R12,R10:R12,0)) -> 3 | U10: =$A$5 -> 兵庫 | W10: =●【進行】結果入力表!D42 -> 藤中 健太郎 | Y10: =【準備】登録!E26 -> 0 | AB10: =IF(●【進行】結果入力表!F42="","",●【進行】結果入力表!F42) -> 24 | AD10: =IF(●【進行】結果入力表!F34="","",●【進行】結果入力表!F34) -> 88 | AF10: =IF(AD10="","",COUNTIF(Z10:AE10,"w")) -> 0 | AG10: =IF(AD10="","",COUNT(AB10,AD10)) -> 2 | AH10: =SUM(Z10:AE10)+AF10*Y10 -> 112 | AJ10: =IF(AD10="","",AH10/Y10*180) ->  | AK10: =IF(Z11="w",180,Z11/Y10*180)+IF(Z12="w",180,Z12/Y10*180) -> 360 | AL10: =AF10*10000000+AJ10*AF10009*10000000+AJ10*1000-AK10 ->  | AM10: =IF(AD10="","",RANK(AL10:AL12,AL10:AL12,0)) ->  | AO10: =$A$5 -> 兵庫 | AQ10: =●【進行】結果入力表!D66 -> 平井 洸志 | AS10: =【準備】登録!E24 -> 180 | AV10: =IF(●【進行】結果入力表!F66="","",●【進行】結果入力表!F66) -> 45 | AX10: =IF(●【進行】結果入力表!F58="","",●【進行】結果入力表!F58) -> W | AZ10: =IF(AX10="","",COUNTIF(AT10:AY10,"w")) -> 1 | BA10: =IF(AX10="","",COUNT(AV10,AX10)) -> 1 | BB10: =SUM(AT10:AY10)+AZ10*AS10 -> 225 | BD10: =IF(AX10="","",BB10/AS10*180) -> 225 | BE10: =IF(AT11="w",180,AT11/AS10*180)+IF(AT12="w",180,AT12/AS10*180) -> 304 | BF10: =AZ10*10000000+BD10*AZ10009*10000000+BD10*1000-BE10 -> 10224696 | BG10: =IF(AX10="","",RANK(BF10:BF12,BF10:BF12,0)) -> 
A11: =$A$6 -> 滋賀 | C11: =●【進行】結果入力表!I18 -> 大橋 正寛 | E11: =【準備】登録!H21 -> 180 | F11: =IF(●【進行】結果入力表!G18="","",●【進行】結果入力表!G18) -> 159 | J11: =IF(●【進行】結果入力表!F26="","",●【進行】結果入力表!F26) -> W | L11: =IF(J10="","",COUNTIF(F11:K11,"w")) -> 1 | M11: =IF(J10="","",COUNT(F11,J11)) -> 1 | N11: =SUM(F11:K11)+L11*E11 -> 339 | P11: =IF(J10="","",N11/E11*180) -> 339 | Q11: =IF(H10="w",180,H10/E11*180)+IF(H12="w",180,H12/E11*180) -> 317 | R11: =L11*10000000+P11*L10010*10000000+P11*1000-Q11 -> 10338683 | S11: =IF(J10="","",RANK(R10:R12,R10:R12,0)) -> 1 | U11: =$A$6 -> 滋賀 | W11: =●【進行】結果入力表!I42 -> 大橋 義治 | Y11: =【準備】登録!H20 -> 180 | Z11: =IF(●【進行】結果入力表!G42="","",●【進行】結果入力表!G42) -> W | AD11: =IF(●【進行】結果入力表!F50="","",●【進行】結果入力表!F50) -> W | AF11: =IF(AD10="","",COUNTIF(Z11:AE11,"w")) -> 2 | AG11: =IF(AD10="","",COUNT(Z11,AD11)) -> 0 | AH11: =SUM(Z11:AE11)+AF11*Y11 -> 360 | AJ11: =IF(AD10="","",AH11/Y11*180) -> 360 | AK11: =IF(AB10="w",180,AB10/Y11*180)+IF(AB12="w",180,AB12/Y11*180) -> 81 | AL11: =AF11*10000000+AJ11*AF10010*10000000+AJ11*1000-AK11 -> 20359919 | AM11: =IF(AD10="","",RANK(AL10:AL12,AL10:AL12,0)) ->  | AO11: =$A$6 -> 滋賀 | AQ11: =●【進行】結果入力表!I66 -> 高島 太一 | AS11: =【準備】登録!H26 -> 0 | AT11: =IF(●【進行】結果入力表!G66="","",●【進行】結果入力表!G66) -> W | AX11: =IF(●【進行】結果入力表!F74="","",●【進行】結果入力表!F74) -> 132 | AZ11: =IF(AX10="","",COUNTIF(AT11:AY11,"w")) -> 1 | BA11: =IF(AX10="","",COUNT(AT11,AX11)) -> 1 | BB11: =SUM(AT11:AY11)+AZ11*AS11 -> 132 | BD11: =IF(AX10="","",BB11/AS11*180) ->  | BE11: =IF(AV10="w",180,AV10/AS11*180)+IF(AV12="w",180,AV12/AS11*180) ->  | BF11: =AZ11*10000000+BD11*AZ10010*10000000+BD11*1000-BE11 ->  | BG11: =IF(AX10="","",RANK(BF10:BF12,BF10:BF12,0)) -> 
A12: =$A$7 -> 奈良 | C12: =●【進行】結果入力表!I10 -> 吉向 翔平 | E12: =【準備】登録!K21 -> 180 | F12: =IF(●【進行】結果入力表!G10="","",●【進行】結果入力表!G10) -> W | H12: =IF(●【進行】結果入力表!G26="","",●【進行】結果入力表!G26) -> 137 | L12: =IF(J10="","",COUNTIF(F12:K12,"w")) -> 1 | M12: =IF(J10="","",COUNT(F12,H12)) -> 1 | N12: =SUM(F12:K12)+L12*E12 -> 317 | P12: =IF(J10="","",N12/E12*180) -> 317 | Q12: =IF(J10="w",180,J10/E12*180)+IF(J11="w",180,J11/E12*180) -> 206 | R12: =L12*10000000+P12*L10011*10000000+P12*1000-Q12 -> 10316794 | S12: =IF(J10="","",RANK(R10:R12,R10:R12,0)) -> 2 | U12: =$A$7 -> 奈良 | W12: =●【進行】結果入力表!I34 -> 鷲尾 隆杜 | Y12: =【準備】登録!K21 -> 180 | Z12: =IF(●【進行】結果入力表!G34="","",●【進行】結果入力表!G34) -> W | AB12: =IF(●【進行】結果入力表!G50="","",●【進行】結果入力表!G50) -> 57 | AF12: =IF(AD10="","",COUNTIF(Z12:AE12,"w")) -> 1 | AG12: =IF(AD10="","",COUNT(Z12,AB12)) -> 1 | AH12: =SUM(Z12:AE12)+AF12*Y12 -> 237 | AJ12: =IF(AD10="","",AH12/Y12*180) -> 237 | AK12: =IF(AD10="w",180,AD10/Y12*180)+IF(AD11="w",180,AD11/Y12*180) -> 268 | AL12: =AF12*10000000+AJ12*AF10011*10000000+AJ12*1000-AK12 -> 10236732 | AM12: =IF(AD10="","",RANK(AL10:AL12,AL10:AL12,0)) ->  | AO12: =$A$7 -> 奈良 | AQ12: =●【進行】結果入力表!I58 -> 吉向 翔平 | AS12: =【準備】登録!K21 -> 180 | AT12: =IF(●【進行】結果入力表!G58="","",●【進行】結果入力表!G58) -> 124 | AV12: =IF(●【進行】結果入力表!G74="","",●【進行】結果入力表!G74) -> W | AZ12: =IF(AX10="","",COUNTIF(AT12:AY12,"w")) -> 1 | BA12: =IF(AX10="","",COUNT(AT12,AV12)) -> 1 | BB12: =SUM(AT12:AY12)+AZ12*AS12 -> 304 | BD12: =IF(AX10="","",BB12/AS12*180) -> 304 | BE12: =IF(AX10="w",180,AX10/AS12*180)+IF(AX11="w",180,AX11/AS12*180) -> 312 | BF12: =AZ12*10000000+BD12*AZ10011*10000000+BD12*1000-BE12 -> 10303688 | BG12: =IF(AX10="","",RANK(BF10:BF12,BF10:BF12,0)) -> 
A14: 3 | C14: Name | E14: =E$4 -> 持点 | F14: =A15 -> 兵庫 | H14: =A16 -> 滋賀 | J14: =A17 -> 奈良 | L14: W | M14: L | N14: TP | P14: TP | Q14: LP | R14: R_P | S14: R | U14: 3 | W14: Name | Y14: =$E$4 -> 持点 | Z14: =$A$5 -> 兵庫 | AB14: =$A$6 -> 滋賀 | AD14: =$A$7 -> 奈良 | AF14: W | AG14: L | AH14: TP | AJ14: TP | AK14: LP | AL14: R_P | AM14: R | AO14: 3 | AQ14: Name | AS14: =$E$4 -> 持点 | AT14: =$A$5 -> 兵庫 | AV14: =$A$6 -> 滋賀 | AX14: =$A$7 -> 奈良 | AZ14: W | BA14: L | BB14: TP | BD14: TP | BE14: LP | BF14: R_P | BG14: R
A15: =$A$5 -> 兵庫 | C15: =●【進行】結果入力表!D11 -> 中尾 亮太 | E15: =【準備】登録!E22 -> 180 | H15: =IF(●【進行】結果入力表!F19="","",●【進行】結果入力表!F19) -> 153 | J15: =IF(●【進行】結果入力表!F11="","",●【進行】結果入力表!F11) -> 24 | L15: =IF(J15="","",COUNTIF(F15:K15,"w")) -> 0 | M15: =IF(J15="","",COUNT(H15,J15)) -> 2 | N15: =SUM(F15:K15)+L15*E15 -> 177 | P15: =IF(J15="","",N15/E15*180) -> 177 | Q15: =IF(F16="w",180,F16/E15*180)+IF(F17="w",180,F17/E15*180) -> 360 | R15: =L15*10000000+P15*L10014*10000000+P15*1000-Q15 -> 176640 | S15: =IF(J15="","",RANK(R15:R17,R15:R17,0)) -> 3 | U15: =$A$5 -> 兵庫 | W15: =●【進行】結果入力表!D43 -> 宮本 一 | Y15: =【準備】登録!E20 -> 180 | AB15: =IF(●【進行】結果入力表!F43="","",●【進行】結果入力表!F43) -> W | AD15: =IF(●【進行】結果入力表!F35="","",●【進行】結果入力表!F35) -> W | AF15: =IF(AD15="","",COUNTIF(Z15:AE15,"w")) -> 2 | AG15: =IF(AD15="","",COUNT(AB15,AD15)) -> 0 | AH15: =SUM(Z15:AE15)+AF15*Y15 -> 360 | AJ15: =IF(AD15="","",AH15/Y15*180) -> 360 | AK15: =IF(Z16="w",180,Z16/Y15*180)+IF(Z17="w",180,Z17/Y15*180) -> 206 | AL15: =AF15*10000000+AJ15*AF10014*10000000+AJ15*1000-AK15 -> 20359794 | AM15: =IF(AD15="","",RANK(AL15:AL17,AL15:AL17,0)) -> 1 | AO15: =$A$5 -> 兵庫 | AQ15: =●【進行】結果入力表!D67 -> 堂園 雅也 | AS15: =【準備】登録!E25 -> 180 | AV15: =IF(●【進行】結果入力表!F67="","",●【進行】結果入力表!F67) -> 88 | AX15: =IF(●【進行】結果入力表!F59="","",●【進行】結果入力表!F59) -> W | AZ15: =IF(AX15="","",COUNTIF(AT15:AY15,"w")) -> 1 | BA15: =IF(AX15="","",COUNT(AV15,AX15)) -> 1 | BB15: =SUM(AT15:AY15)+AZ15*AS15 -> 268 | BD15: =IF(AX15="","",BB15/AS15*180) -> 268 | BE15: =IF(AT16="w",180,AT16/AS15*180)+IF(AT17="w",180,AT17/AS15*180) -> 222 | BF15: =AZ15*10000000+BD15*AZ10014*10000000+BD15*1000-BE15 -> 10267778 | BG15: =IF(AX15="","",RANK(BF15:BF17,BF15:BF17,0)) -> 2
A16: =$A$6 -> 滋賀 | C16: =●【進行】結果入力表!I19 -> 西峰 久祐 | E16: =【準備】登録!H22 -> 180 | F16: =IF(●【進行】結果入力表!G19="","",●【進行】結果入力表!G19) -> W | J16: =IF(●【進行】結果入力表!F27="","",●【進行】結果入力表!F27) -> W | L16: =IF(J15="","",COUNTIF(F16:K16,"w")) -> 2 | M16: =IF(J15="","",COUNT(F16,J16)) -> 0 | N16: =SUM(F16:K16)+L16*E16 -> 360 | P16: =IF(J15="","",N16/E16*180) -> 360 | Q16: =IF(H15="w",180,H15/E16*180)+IF(H17="w",180,H17/E16*180) -> 313 | R16: =L16*10000000+P16*L10015*10000000+P16*1000-Q16 -> 20359687 | S16: =IF(J15="","",RANK(R15:R17,R15:R17,0)) -> 1 | U16: =$A$6 -> 滋賀 | W16: =●【進行】結果入力表!I43 -> 大橋 正寛 | Y16: =【準備】登録!H21 -> 180 | Z16: =IF(●【進行】結果入力表!G43="","",●【進行】結果入力表!G43) -> 156 | AD16: =IF(●【進行】結果入力表!F51="","",●【進行】結果入力表!F51) -> W | AF16: =IF(AD15="","",COUNTIF(Z16:AE16,"w")) -> 1 | AG16: =IF(AD15="","",COUNT(Z16,AD16)) -> 1 | AH16: =SUM(Z16:AE16)+AF16*Y16 -> 336 | AJ16: =IF(AD15="","",AH16/Y16*180) -> 336 | AK16: =IF(AB15="w",180,AB15/Y16*180)+IF(AB17="w",180,AB17/Y16*180) -> 276 | AL16: =AF16*10000000+AJ16*AF10015*10000000+AJ16*1000-AK16 -> 10335724 | AM16: =IF(AD15="","",RANK(AL15:AL17,AL15:AL17,0)) -> 2 | AO16: =$A$6 -> 滋賀 | AQ16: =●【進行】結果入力表!I67 -> 大橋 義治 | AS16: =【準備】登録!H20 -> 180 | AT16: =IF(●【進行】結果入力表!G67="","",●【進行】結果入力表!G67) -> W | AX16: =IF(●【進行】結果入力表!F75="","",●【進行】結果入力表!F75) -> W | AZ16: =IF(AX15="","",COUNTIF(AT16:AY16,"w")) -> 2 | BA16: =IF(AX15="","",COUNT(AT16,AX16)) -> 0 | BB16: =SUM(AT16:AY16)+AZ16*AS16 -> 360 | BD16: =IF(AX15="","",BB16/AS16*180) -> 360 | BE16: =IF(AV15="w",180,AV15/AS16*180)+IF(AV17="w",180,AV17/AS16*180) -> 127 | BF16: =AZ16*10000000+BD16*AZ10015*10000000+BD16*1000-BE16 -> 20359873 | BG16: =IF(AX15="","",RANK(BF15:BF17,BF15:BF17,0)) -> 1
A17: =$A$7 -> 奈良 | C17: =●【進行】結果入力表!I11 -> 巽 大地 | E17: =【準備】登録!K22 -> 180 | F17: =IF(●【進行】結果入力表!G11="","",●【進行】結果入力表!G11) -> W | H17: =IF(●【進行】結果入力表!G27="","",●【進行】結果入力表!G27) -> 160 | L17: =IF(J15="","",COUNTIF(F17:K17,"w")) -> 1 | M17: =IF(J15="","",COUNT(F17,H17)) -> 1 | N17: =SUM(F17:K17)+L17*E17 -> 340 | P17: =IF(J15="","",N17/E17*180) -> 340 | Q17: =IF(J15="w",180,J15/E17*180)+IF(J16="w",180,J16/E17*180) -> 204 | R17: =L17*10000000+P17*L10016*10000000+P17*1000-Q17 -> 10339796 | S17: =IF(J15="","",RANK(R15:R17,R15:R17,0)) -> 2 | U17: =$A$7 -> 奈良 | W17: =●【進行】結果入力表!I35 -> 長谷川 進 | Y17: =【準備】登録!K22 -> 180 | Z17: =IF(●【進行】結果入力表!G35="","",●【進行】結果入力表!G35) -> 50 | AB17: =IF(●【進行】結果入力表!G51="","",●【進行】結果入力表!G51) -> 96 | AF17: =IF(AD15="","",COUNTIF(Z17:AE17,"w")) -> 0 | AG17: =IF(AD15="","",COUNT(Z17,AB17)) -> 2 | AH17: =SUM(Z17:AE17)+AF17*Y17 -> 146 | AJ17: =IF(AD15="","",AH17/Y17*180) -> 146 | AK17: =IF(AD15="w",180,AD15/Y17*180)+IF(AD16="w",180,AD16/Y17*180) -> 360 | AL17: =AF17*10000000+AJ17*AF10016*10000000+AJ17*1000-AK17 -> 145640 | AM17: =IF(AD15="","",RANK(AL15:AL17,AL15:AL17,0)) -> 3 | AO17: =$A$7 -> 奈良 | AQ17: =●【進行】結果入力表!I59 -> 巽 大地 | AS17: =【準備】登録!K22 -> 180 | AT17: =IF(●【進行】結果入力表!G59="","",●【進行】結果入力表!G59) -> 42 | AV17: =IF(●【進行】結果入力表!G75="","",●【進行】結果入力表!G75) -> 39 | AZ17: =IF(AX15="","",COUNTIF(AT17:AY17,"w")) -> 0 | BA17: =IF(AX15="","",COUNT(AT17,AV17)) -> 2 | BB17: =SUM(AT17:AY17)+AZ17*AS17 -> 81 | BD17: =IF(AX15="","",BB17/AS17*180) -> 81 | BE17: =IF(AX15="w",180,AX15/AS17*180)+IF(AX16="w",180,AX16/AS17*180) -> 360 | BF17: =AZ17*10000000+BD17*AZ10016*10000000+BD17*1000-BE17 -> 80640 | BG17: =IF(AX15="","",RANK(BF15:BF17,BF15:BF17,0)) -> 3
A19: 4 | C19: Name | E19: =E$4 -> 持点 | F19: =A20 -> 兵庫 | H19: =A21 -> 滋賀 | J19: =A22 -> 奈良 | L19: W | M19: L | N19: TP | P19: TP | Q19: LP | R19: R_P | S19: R | U19: 4 | W19: Name | Y19: =$E$4 -> 持点 | Z19: =$A$5 -> 兵庫 | AB19: =$A$6 -> 滋賀 | AD19: =$A$7 -> 奈良 | AF19: W | AG19: L | AH19: TP | AJ19: TP | AK19: LP | AL19: R_P | AM19: R | AO19: 4 | AQ19: Name | AS19: =$E$4 -> 持点 | AT19: =$A$5 -> 兵庫 | AV19: =$A$6 -> 滋賀 | AX19: =$A$7 -> 奈良 | AZ19: W | BA19: L | BB19: TP | BD19: TP | BE19: LP | BF19: R_P | BG19: R
A20: =$A$5 -> 兵庫 | C20: =●【進行】結果入力表!D12 -> 平井 洸志 | E20: =【準備】登録!E23 -> 180 | H20: =IF(●【進行】結果入力表!F20="","",●【進行】結果入力表!F20) -> 102 | J20: =IF(●【進行】結果入力表!F12="","",●【進行】結果入力表!F12) -> 24 | L20: =IF(J20="","",COUNTIF(F20:K20,"w")) -> 0 | M20: =IF(J20="","",COUNT(H20,J20)) -> 2 | N20: =SUM(F20:K20)+L20*E20 -> 126 | P20: =IF(J20="","",N20/E20*180) -> 126 | Q20: =IF(F21="w",180,F21/E20*180)+IF(F22="w",180,F22/E20*180) -> 360 | R20: =L20*10000000+P20*L10019*10000000+P20*1000-Q20 -> 125640 | S20: =IF(J20="","",RANK(R20:R22,R20:R22,0)) -> 3 | U20: =$A$5 -> 兵庫 | W20: =●【進行】結果入力表!D44 -> 鐵山 泰三 | Y20: =【準備】登録!E21 -> 180 | AB20: =IF(●【進行】結果入力表!F44="","",●【進行】結果入力表!F44) -> W | AD20: =IF(●【進行】結果入力表!F36="","",●【進行】結果入力表!F36) -> W | AF20: =IF(AD20="","",COUNTIF(Z20:AE20,"w")) -> 2 | AG20: =IF(AD20="","",COUNT(AB20,AD20)) -> 0 | AH20: =SUM(Z20:AE20)+AF20*Y20 -> 360 | AJ20: =IF(AD20="","",AH20/Y20*180) -> 360 | AK20: =IF(Z21="w",180,Z21/Y20*180)+IF(Z22="w",180,Z22/Y20*180) -> 115 | AL20: =AF20*10000000+AJ20*AF10019*10000000+AJ20*1000-AK20 -> 20359885 | AM20: =IF(AD20="","",RANK(AL20:AL22,AL20:AL22,0)) -> 1 | AO20: =$A$5 -> 兵庫 | AQ20: =●【進行】結果入力表!D68 -> 藤中 健太郎 | AS20: =【準備】登録!E26 -> 0 | AV20: =IF(●【進行】結果入力表!F68="","",●【進行】結果入力表!F68) -> W | AX20: =IF(●【進行】結果入力表!F60="","",●【進行】結果入力表!F60) -> W | AZ20: =IF(AX20="","",COUNTIF(AT20:AY20,"w")) -> 2 | BA20: =IF(AX20="","",COUNT(AV20,AX20)) -> 0 | BB20: =SUM(AT20:AY20)+AZ20*AS20 -> 0 | BD20: =IF(AX20="","",BB20/AS20*180) ->  | BE20: =IF(AT21="w",180,AT21/AS20*180)+IF(AT22="w",180,AT22/AS20*180) ->  | BF20: =AZ20*10000000+BD20*AZ10019*10000000+BD20*1000-BE20 ->  | BG20: =IF(AX20="","",RANK(BF20:BF22,BF20:BF22,0)) -> 
A21: =$A$6 -> 滋賀 | C21: =●【進行】結果入力表!I20 -> 山中 康寛 | E21: =【準備】登録!H23 -> 180 | F21: =IF(●【進行】結果入力表!G20="","",●【進行】結果入力表!G20) -> W | J21: =IF(●【進行】結果入力表!F28="","",●【進行】結果入力表!F28) -> 78 | L21: =IF(J20="","",COUNTIF(F21:K21,"w")) -> 1 | M21: =IF(J20="","",COUNT(F21,J21)) -> 1 | N21: =SUM(F21:K21)+L21*E21 -> 258 | P21: =IF(J20="","",N21/E21*180) -> 258 | Q21: =IF(H20="w",180,H20/E21*180)+IF(H22="w",180,H22/E21*180) -> 282 | R21: =L21*10000000+P21*L10020*10000000+P21*1000-Q21 -> 10257718 | S21: =IF(J20="","",RANK(R20:R22,R20:R22,0)) -> 2 | U21: =$A$6 -> 滋賀 | W21: =●【進行】結果入力表!I44 -> 西峰 久祐 | Y21: =【準備】登録!H22 -> 180 | Z21: =IF(●【進行】結果入力表!G44="","",●【進行】結果入力表!G44) -> 62 | AD21: =IF(●【進行】結果入力表!F52="","",●【進行】結果入力表!F52) -> W | AF21: =IF(AD20="","",COUNTIF(Z21:AE21,"w")) -> 1 | AG21: =IF(AD20="","",COUNT(Z21,AD21)) -> 1 | AH21: =SUM(Z21:AE21)+AF21*Y21 -> 242 | AJ21: =IF(AD20="","",AH21/Y21*180) -> 242 | AK21: =IF(AB20="w",180,AB20/Y21*180)+IF(AB22="w",180,AB22/Y21*180) -> 245 | AL21: =AF21*10000000+AJ21*AF10020*10000000+AJ21*1000-AK21 -> 10241755 | AM21: =IF(AD20="","",RANK(AL20:AL22,AL20:AL22,0)) -> 2 | AO21: =$A$6 -> 滋賀 | AQ21: =●【進行】結果入力表!I68 -> 大橋 正寛 | AS21: =【準備】登録!H21 -> 180 | AT21: =IF(●【進行】結果入力表!G68="","",●【進行】結果入力表!G68) -> 17 | AX21: =IF(●【進行】結果入力表!F76="","",●【進行】結果入力表!F76) -> 75 | AZ21: =IF(AX20="","",COUNTIF(AT21:AY21,"w")) -> 0 | BA21: =IF(AX20="","",COUNT(AT21,AX21)) -> 2 | BB21: =SUM(AT21:AY21)+AZ21*AS21 -> 92 | BD21: =IF(AX20="","",BB21/AS21*180) -> 92 | BE21: =IF(AV20="w",180,AV20/AS21*180)+IF(AV22="w",180,AV22/AS21*180) -> 360 | BF21: =AZ21*10000000+BD21*AZ10020*10000000+BD21*1000-BE21 -> 91640 | BG21: =IF(AX20="","",RANK(BF20:BF22,BF20:BF22,0)) -> 
A22: =$A$7 -> 奈良 | C22: =●【進行】結果入力表!I12 -> 山田 晃司 | E22: =【準備】登録!K23 -> 180 | F22: =IF(●【進行】結果入力表!G12="","",●【進行】結果入力表!G12) -> W | H22: =IF(●【進行】結果入力表!G28="","",●【進行】結果入力表!G28) -> W | L22: =IF(J20="","",COUNTIF(F22:K22,"w")) -> 2 | M22: =IF(J20="","",COUNT(F22,H22)) -> 0 | N22: =SUM(F22:K22)+L22*E22 -> 360 | P22: =IF(J20="","",N22/E22*180) -> 360 | Q22: =IF(J20="w",180,J20/E22*180)+IF(J21="w",180,J21/E22*180) -> 102 | R22: =L22*10000000+P22*L10021*10000000+P22*1000-Q22 -> 20359898 | S22: =IF(J20="","",RANK(R20:R22,R20:R22,0)) -> 1 | U22: =$A$7 -> 奈良 | W22: =●【進行】結果入力表!I36 -> 田尻 哲司 | Y22: =【準備】登録!K23 -> 180 | Z22: =IF(●【進行】結果入力表!G36="","",●【進行】結果入力表!G36) -> 53 | AB22: =IF(●【進行】結果入力表!G52="","",●【進行】結果入力表!G52) -> 65 | AF22: =IF(AD20="","",COUNTIF(Z22:AE22,"w")) -> 0 | AG22: =IF(AD20="","",COUNT(Z22,AB22)) -> 2 | AH22: =SUM(Z22:AE22)+AF22*Y22 -> 118 | AJ22: =IF(AD20="","",AH22/Y22*180) -> 118 | AK22: =IF(AD20="w",180,AD20/Y22*180)+IF(AD21="w",180,AD21/Y22*180) -> 360 | AL22: =AF22*10000000+AJ22*AF10021*10000000+AJ22*1000-AK22 -> 117640 | AM22: =IF(AD20="","",RANK(AL20:AL22,AL20:AL22,0)) -> 3 | AO22: =$A$7 -> 奈良 | AQ22: =●【進行】結果入力表!I60 -> 山田 晃司 | AS22: =【準備】登録!K23 -> 180 | AT22: =IF(●【進行】結果入力表!G60="","",●【進行】結果入力表!G60) -> 164 | AV22: =IF(●【進行】結果入力表!G76="","",●【進行】結果入力表!G76) -> W | AZ22: =IF(AX20="","",COUNTIF(AT22:AY22,"w")) -> 1 | BA22: =IF(AX20="","",COUNT(AT22,AV22)) -> 1 | BB22: =SUM(AT22:AY22)+AZ22*AS22 -> 344 | BD22: =IF(AX20="","",BB22/AS22*180) -> 344 | BE22: =IF(AX20="w",180,AX20/AS22*180)+IF(AX21="w",180,AX21/AS22*180) -> 255 | BF22: =AZ22*10000000+BD22*AZ10021*10000000+BD22*1000-BE22 -> 10343745 | BG22: =IF(AX20="","",RANK(BF20:BF22,BF20:BF22,0)) -> 
A24: 5 | C24: Name | E24: =E$4 -> 持点 | F24: =A25 -> 兵庫 | H24: =A26 -> 滋賀 | J24: =A27 -> 奈良 | L24: W | M24: L | N24: TP | P24: TP | Q24: LP | R24: R_P | S24: R | U24: 5 | W24: Name | Y24: =$E$4 -> 持点 | Z24: =$A$5 -> 兵庫 | AB24: =$A$6 -> 滋賀 | AD24: =$A$7 -> 奈良 | AF24: W | AG24: L | AH24: TP | AJ24: TP | AK24: LP | AL24: R_P | AM24: R | AO24: 5 | AQ24: Name | AS24: =$E$4 -> 持点 | AT24: =$A$5 -> 兵庫 | AV24: =$A$6 -> 滋賀 | AX24: =$A$7 -> 奈良 | AZ24: W | BA24: L | BB24: TP | BD24: TP | BE24: LP | BF24: R_P | BG24: R
A25: =$A$5 -> 兵庫 | C25: =●【進行】結果入力表!D13 -> 堂園 雅也 | E25: =【準備】登録!E24 -> 180 | H25: =IF(●【進行】結果入力表!F21="","",●【進行】結果入力表!F21) -> W | J25: =IF(●【進行】結果入力表!F13="","",●【進行】結果入力表!F13) -> W | L25: =IF(J25="","",COUNTIF(F25:K25,"w")) -> 2 | M25: =IF(J25="","",COUNT(H25,J25)) -> 0 | N25: =SUM(F25:K25)+L25*E25 -> 360 | P25: =IF(J25="","",N25/E25*180) -> 360 | Q25: =IF(F26="w",180,F26/E25*180)+IF(F27="w",180,F27/E25*180) -> 250 | R25: =L25*10000000+P25*L10024*10000000+P25*1000-Q25 -> 20359750 | S25: =IF(J25="","",RANK(R25:R27,R25:R27,0)) -> 1 | U25: =$A$5 -> 兵庫 | W25: =●【進行】結果入力表!D45 -> 中尾 亮太 | Y25: =【準備】登録!E22 -> 180 | AB25: =IF(●【進行】結果入力表!F45="","",●【進行】結果入力表!F45) -> 149 | AD25: =IF(●【進行】結果入力表!F37="","",●【進行】結果入力表!F37) -> 53 | AF25: =IF(AD25="","",COUNTIF(Z25:AE25,"w")) -> 0 | AG25: =IF(AD25="","",COUNT(AB25,AD25)) -> 2 | AH25: =SUM(Z25:AE25)+AF25*Y25 -> 202 | AJ25: =IF(AD25="","",AH25/Y25*180) -> 202 | AK25: =IF(Z26="w",180,Z26/Y25*180)+IF(Z27="w",180,Z27/Y25*180) -> 360 | AL25: =AF25*10000000+AJ25*AF10024*10000000+AJ25*1000-AK25 -> 201640 | AM25: =IF(AD25="","",RANK(AL25:AL27,AL25:AL27,0)) -> 3 | AO25: =$A$5 -> 兵庫 | AQ25: =●【進行】結果入力表!D69 -> 宮本 一 | AS25: =【準備】登録!E20 -> 180 | AV25: =IF(●【進行】結果入力表!F69="","",●【進行】結果入力表!F69) -> W | AX25: =IF(●【進行】結果入力表!F61="","",●【進行】結果入力表!F61) -> W | AZ25: =IF(AX25="","",COUNTIF(AT25:AY25,"w")) -> 2 | BA25: =IF(AX25="","",COUNT(AV25,AX25)) -> 0 | BB25: =SUM(AT25:AY25)+AZ25*AS25 -> 360 | BD25: =IF(AX25="","",BB25/AS25*180) -> 360 | BE25: =IF(AT26="w",180,AT26/AS25*180)+IF(AT27="w",180,AT27/AS25*180) -> 232 | BF25: =AZ25*10000000+BD25*AZ10024*10000000+BD25*1000-BE25 -> 20359768 | BG25: =IF(AX25="","",RANK(BF25:BF27,BF25:BF27,0)) -> 1
A26: =$A$6 -> 滋賀 | C26: =●【進行】結果入力表!I21 -> 御手洗 茂 | E26: =【準備】登録!H24 -> 180 | F26: =IF(●【進行】結果入力表!G21="","",●【進行】結果入力表!G21) -> 95 | J26: =IF(●【進行】結果入力表!F29="","",●【進行】結果入力表!F29) -> 31 | L26: =IF(J25="","",COUNTIF(F26:K26,"w")) -> 0 | M26: =IF(J25="","",COUNT(F26,J26)) -> 2 | N26: =SUM(F26:K26)+L26*E26 -> 126 | P26: =IF(J25="","",N26/E26*180) -> 126 | Q26: =IF(H25="w",180,H25/E26*180)+IF(H27="w",180,H27/E26*180) -> 360 | R26: =L26*10000000+P26*L10025*10000000+P26*1000-Q26 -> 125640 | S26: =IF(J25="","",RANK(R25:R27,R25:R27,0)) -> 3 | U26: =$A$6 -> 滋賀 | W26: =●【進行】結果入力表!I45 -> 山中 康寛 | Y26: =【準備】登録!H23 -> 180 | Z26: =IF(●【進行】結果入力表!G45="","",●【進行】結果入力表!G45) -> W | AD26: =IF(●【進行】結果入力表!F53="","",●【進行】結果入力表!F53) -> 135 | AF26: =IF(AD25="","",COUNTIF(Z26:AE26,"w")) -> 1 | AG26: =IF(AD25="","",COUNT(Z26,AD26)) -> 1 | AH26: =SUM(Z26:AE26)+AF26*Y26 -> 315 | AJ26: =IF(AD25="","",AH26/Y26*180) -> 315 | AK26: =IF(AB25="w",180,AB25/Y26*180)+IF(AB27="w",180,AB27/Y26*180) -> 329 | AL26: =AF26*10000000+AJ26*AF10025*10000000+AJ26*1000-AK26 -> 10314671 | AM26: =IF(AD25="","",RANK(AL25:AL27,AL25:AL27,0)) -> 2 | AO26: =$A$6 -> 滋賀 | AQ26: =●【進行】結果入力表!I69 -> 西峰 久祐 | AS26: =【準備】登録!H22 -> 180 | AT26: =IF(●【進行】結果入力表!G69="","",●【進行】結果入力表!G69) -> 120 | AX26: =IF(●【進行】結果入力表!F77="","",●【進行】結果入力表!F77) -> W | AZ26: =IF(AX25="","",COUNTIF(AT26:AY26,"w")) -> 1 | BA26: =IF(AX25="","",COUNT(AT26,AX26)) -> 1 | BB26: =SUM(AT26:AY26)+AZ26*AS26 -> 300 | BD26: =IF(AX25="","",BB26/AS26*180) -> 300 | BE26: =IF(AV25="w",180,AV25/AS26*180)+IF(AV27="w",180,AV27/AS26*180) -> 269 | BF26: =AZ26*10000000+BD26*AZ10025*10000000+BD26*1000-BE26 -> 10299731 | BG26: =IF(AX25="","",RANK(BF25:BF27,BF25:BF27,0)) -> 2
A27: =$A$7 -> 奈良 | C27: =●【進行】結果入力表!I13 -> 鷲尾 隆杜 | E27: =【準備】登録!K24 -> 180 | F27: =IF(●【進行】結果入力表!G13="","",●【進行】結果入力表!G13) -> 155 | H27: =IF(●【進行】結果入力表!G29="","",●【進行】結果入力表!G29) -> W | L27: =IF(J25="","",COUNTIF(F27:K27,"w")) -> 1 | M27: =IF(J25="","",COUNT(F27,H27)) -> 1 | N27: =SUM(F27:K27)+L27*E27 -> 335 | P27: =IF(J25="","",N27/E27*180) -> 335 | Q27: =IF(J25="w",180,J25/E27*180)+IF(J26="w",180,J26/E27*180) -> 211 | R27: =L27*10000000+P27*L10026*10000000+P27*1000-Q27 -> 10334789 | S27: =IF(J25="","",RANK(R25:R27,R25:R27,0)) -> 2 | U27: =$A$7 -> 奈良 | W27: =●【進行】結果入力表!I37 -> 吉向 翔平 | Y27: =【準備】登録!K24 -> 180 | Z27: =IF(●【進行】結果入力表!G37="","",●【進行】結果入力表!G37) -> W | AB27: =IF(●【進行】結果入力表!G53="","",●【進行】結果入力表!G53) -> W | AF27: =IF(AD25="","",COUNTIF(Z27:AE27,"w")) -> 2 | AG27: =IF(AD25="","",COUNT(Z27,AB27)) -> 0 | AH27: =SUM(Z27:AE27)+AF27*Y27 -> 360 | AJ27: =IF(AD25="","",AH27/Y27*180) -> 360 | AK27: =IF(AD25="w",180,AD25/Y27*180)+IF(AD26="w",180,AD26/Y27*180) -> 188 | AL27: =AF27*10000000+AJ27*AF10026*10000000+AJ27*1000-AK27 -> 20359812 | AM27: =IF(AD25="","",RANK(AL25:AL27,AL25:AL27,0)) -> 1 | AO27: =$A$7 -> 奈良 | AQ27: =●【進行】結果入力表!I61 -> 鷲尾 隆杜 | AS27: =【準備】登録!K24 -> 180 | AT27: =IF(●【進行】結果入力表!G61="","",●【進行】結果入力表!G61) -> 112 | AV27: =IF(●【進行】結果入力表!G77="","",●【進行】結果入力表!G77) -> 89 | AZ27: =IF(AX25="","",COUNTIF(AT27:AY27,"w")) -> 0 | BA27: =IF(AX25="","",COUNT(AT27,AV27)) -> 2 | BB27: =SUM(AT27:AY27)+AZ27*AS27 -> 201 | BD27: =IF(AX25="","",BB27/AS27*180) -> 201 | BE27: =IF(AX25="w",180,AX25/AS27*180)+IF(AX26="w",180,AX26/AS27*180) -> 360 | BF27: =AZ27*10000000+BD27*AZ10026*10000000+BD27*1000-BE27 -> 200640 | BG27: =IF(AX25="","",RANK(BF25:BF27,BF25:BF27,0)) -> 3
A29: 6 | C29: Name | E29: =E$4 -> 持点 | F29: =A30 -> 兵庫 | H29: =A31 -> 滋賀 | J29: =A32 -> 奈良 | L29: W | M29: L | N29: TP | P29: TP | Q29: LP | R29: R_P | S29: R | U29: 6 | W29: Name | Y29: =$E$4 -> 持点 | Z29: =$A$5 -> 兵庫 | AB29: =$A$6 -> 滋賀 | AD29: =$A$7 -> 奈良 | AF29: W | AG29: L | AH29: TP | AJ29: TP | AK29: LP | AL29: R_P | AM29: R | AO29: 6 | AQ29: Name | AS29: =$E$4 -> 持点 | AT29: =$A$5 -> 兵庫 | AV29: =$A$6 -> 滋賀 | AX29: =$A$7 -> 奈良 | AZ29: W | BA29: L | BB29: TP | BD29: TP | BE29: LP | BF29: R_P | BG29: R
A30: =$A$5 -> 兵庫 | C30: =●【進行】結果入力表!D14 -> 藤中 健太郎 | E30: =【準備】登録!E25 -> 180 | H30: =IF(●【進行】結果入力表!F22="","",●【進行】結果入力表!F22) -> 84 | J30: =IF(●【進行】結果入力表!F14="","",●【進行】結果入力表!F14) -> W | L30: =IF(J30="","",COUNTIF(F30:K30,"w")) -> 1 | M30: =IF(J30="","",COUNT(H30,J30)) -> 1 | N30: =SUM(F30:K30)+L30*E30 -> 264 | P30: =IF(J30="","",N30/E30*180) -> 264 | Q30: =IF(F31="w",180,F31/E30*180)+IF(F32="w",180,F32/E30*180) -> 344 | R30: =L30*10000000+P30*L10029*10000000+P30*1000-Q30 -> 10263656 | S30: =IF(J30="","",RANK(R30:R32,R30:R32,0)) -> 2 | U30: =$A$5 -> 兵庫 | W30: =●【進行】結果入力表!D46 -> 平井 洸志 | Y30: =【準備】登録!E23 -> 180 | AB30: =IF(●【進行】結果入力表!F46="","",●【進行】結果入力表!F46) -> W | AD30: =IF(●【進行】結果入力表!F38="","",●【進行】結果入力表!F38) -> W | AF30: =IF(AD30="","",COUNTIF(Z30:AE30,"w")) -> 2 | AG30: =IF(AD30="","",COUNT(AB30,AD30)) -> 0 | AH30: =SUM(Z30:AE30)+AF30*Y30 -> 360 | AJ30: =IF(AD30="","",AH30/Y30*180) -> 360 | AK30: =IF(Z31="w",180,Z31/Y30*180)+IF(Z32="w",180,Z32/Y30*180) -> 179 | AL30: =AF30*10000000+AJ30*AF10029*10000000+AJ30*1000-AK30 -> 20359821 | AM30: =IF(AD30="","",RANK(AL30:AL32,AL30:AL32,0)) -> 1 | AO30: =$A$5 -> 兵庫 | AQ30: =●【進行】結果入力表!D70 -> 鐵山 泰三 | AS30: =【準備】登録!E21 -> 180 | AV30: =IF(●【進行】結果入力表!F70="","",●【進行】結果入力表!F70) -> 178 | AX30: =IF(●【進行】結果入力表!F62="","",●【進行】結果入力表!F62) -> W | AZ30: =IF(AX30="","",COUNTIF(AT30:AY30,"w")) -> 1 | BA30: =IF(AX30="","",COUNT(AV30,AX30)) -> 1 | BB30: =SUM(AT30:AY30)+AZ30*AS30 -> 358 | BD30: =IF(AX30="","",BB30/AS30*180) -> 358 | BE30: =IF(AT31="w",180,AT31/AS30*180)+IF(AT32="w",180,AT32/AS30*180) -> 238 | BF30: =AZ30*10000000+BD30*AZ10029*10000000+BD30*1000-BE30 -> 10357762 | BG30: =IF(AX30="","",RANK(BF30:BF32,BF30:BF32,0)) -> 1
A31: =$A$6 -> 滋賀 | C31: =●【進行】結果入力表!I22 -> 高島 太一 | E31: =【準備】登録!H25 -> 180 | F31: =IF(●【進行】結果入力表!G22="","",●【進行】結果入力表!G22) -> W | J31: =IF(●【進行】結果入力表!F30="","",●【進行】結果入力表!F30) -> W | L31: =IF(J30="","",COUNTIF(F31:K31,"w")) -> 2 | M31: =IF(J30="","",COUNT(F31,J31)) -> 0 | N31: =SUM(F31:K31)+L31*E31 -> 360 | P31: =IF(J30="","",N31/E31*180) -> 360 | Q31: =IF(H30="w",180,H30/E31*180)+IF(H32="w",180,H32/E31*180) -> 192 | R31: =L31*10000000+P31*L10030*10000000+P31*1000-Q31 -> 20359808 | S31: =IF(J30="","",RANK(R30:R32,R30:R32,0)) -> 1 | U31: =$A$6 -> 滋賀 | W31: =●【進行】結果入力表!I46 -> 御手洗 茂 | Y31: =【準備】登録!H24 -> 180 | Z31: =IF(●【進行】結果入力表!G46="","",●【進行】結果入力表!G46) -> 88 | AD31: =IF(●【進行】結果入力表!F54="","",●【進行】結果入力表!F54) -> 96 | AF31: =IF(AD30="","",COUNTIF(Z31:AE31,"w")) -> 0 | AG31: =IF(AD30="","",COUNT(Z31,AD31)) -> 2 | AH31: =SUM(Z31:AE31)+AF31*Y31 -> 184 | AJ31: =IF(AD30="","",AH31/Y31*180) -> 184 | AK31: =IF(AB30="w",180,AB30/Y31*180)+IF(AB32="w",180,AB32/Y31*180) -> 360 | AL31: =AF31*10000000+AJ31*AF10030*10000000+AJ31*1000-AK31 -> 183640 | AM31: =IF(AD30="","",RANK(AL30:AL32,AL30:AL32,0)) -> 3 | AO31: =$A$6 -> 滋賀 | AQ31: =●【進行】結果入力表!I70 -> 山中 康寛 | AS31: =【準備】登録!H23 -> 180 | AT31: =IF(●【進行】結果入力表!G70="","",●【進行】結果入力表!G70) -> W | AX31: =IF(●【進行】結果入力表!F78="","",●【進行】結果入力表!F78) -> 80 | AZ31: =IF(AX30="","",COUNTIF(AT31:AY31,"w")) -> 1 | BA31: =IF(AX30="","",COUNT(AT31,AX31)) -> 1 | BB31: =SUM(AT31:AY31)+AZ31*AS31 -> 260 | BD31: =IF(AX30="","",BB31/AS31*180) -> 260 | BE31: =IF(AV30="w",180,AV30/AS31*180)+IF(AV32="w",180,AV32/AS31*180) -> 358 | BF31: =AZ31*10000000+BD31*AZ10030*10000000+BD31*1000-BE31 -> 10259642 | BG31: =IF(AX30="","",RANK(BF30:BF32,BF30:BF32,0)) -> 2
A32: =$A$7 -> 奈良 | C32: =●【進行】結果入力表!I14 -> 長谷川 進 | E32: =【準備】登録!K25 -> 180 | F32: =IF(●【進行】結果入力表!G14="","",●【進行】結果入力表!G14) -> 164 | H32: =IF(●【進行】結果入力表!G30="","",●【進行】結果入力表!G30) -> 108 | L32: =IF(J30="","",COUNTIF(F32:K32,"w")) -> 0 | M32: =IF(J30="","",COUNT(F32,H32)) -> 2 | N32: =SUM(F32:K32)+L32*E32 -> 272 | P32: =IF(J30="","",N32/E32*180) -> 272 | Q32: =IF(J30="w",180,J30/E32*180)+IF(J31="w",180,J31/E32*180) -> 360 | R32: =L32*10000000+P32*L10031*10000000+P32*1000-Q32 -> 271640 | S32: =IF(J30="","",RANK(R30:R32,R30:R32,0)) -> 3 | U32: =$A$7 -> 奈良 | W32: =●【進行】結果入力表!I38 -> 巽 大地 | Y32: =【準備】登録!K25 -> 180 | Z32: =IF(●【進行】結果入力表!G38="","",●【進行】結果入力表!G38) -> 91 | AB32: =IF(●【進行】結果入力表!G54="","",●【進行】結果入力表!G54) -> W | AF32: =IF(AD30="","",COUNTIF(Z32:AE32,"w")) -> 1 | AG32: =IF(AD30="","",COUNT(Z32,AB32)) -> 1 | AH32: =SUM(Z32:AE32)+AF32*Y32 -> 271 | AJ32: =IF(AD30="","",AH32/Y32*180) -> 271 | AK32: =IF(AD30="w",180,AD30/Y32*180)+IF(AD31="w",180,AD31/Y32*180) -> 276 | AL32: =AF32*10000000+AJ32*AF10031*10000000+AJ32*1000-AK32 -> 10270724 | AM32: =IF(AD30="","",RANK(AL30:AL32,AL30:AL32,0)) -> 2 | AO32: =$A$7 -> 奈良 | AQ32: =●【進行】結果入力表!I62 -> 長谷川 進 | AS32: =【準備】登録!K25 -> 180 | AT32: =IF(●【進行】結果入力表!G62="","",●【進行】結果入力表!G62) -> 58 | AV32: =IF(●【進行】結果入力表!G78="","",●【進行】結果入力表!G78) -> W | AZ32: =IF(AX30="","",COUNTIF(AT32:AY32,"w")) -> 1 | BA32: =IF(AX30="","",COUNT(AT32,AV32)) -> 1 | BB32: =SUM(AT32:AY32)+AZ32*AS32 -> 238 | BD32: =IF(AX30="","",BB32/AS32*180) -> 238 | BE32: =IF(AX30="w",180,AX30/AS32*180)+IF(AX31="w",180,AX31/AS32*180) -> 260 | BF32: =AZ32*10000000+BD32*AZ10031*10000000+BD32*1000-BE32 -> 10237740 | BG32: =IF(AX30="","",RANK(BF30:BF32,BF30:BF32,0)) -> 3
A34: 7 | C34: Name | E34: =E$4 -> 持点 | F34: =A35 ->  | H34: =A36 ->  | J34: =A37 ->  | L34: W | M34: L | N34: TP | P34: TP | Q34: LP | R34: R_P | S34: R | U34: 7 | W34: Name | Y34: =$E$4 -> 持点 | Z34: =$A$5 -> 兵庫 | AB34: =$A$6 -> 滋賀 | AD34: =$A$7 -> 奈良 | AF34: W | AG34: L | AH34: TP | AJ34: TP | AK34: LP | AL34: R_P | AM34: R | AO34: 7 | AQ34: Name | AS34: =$E$4 -> 持点 | AT34: =$A$5 -> 兵庫 | AV34: =$A$6 -> 滋賀 | AX34: =$A$7 -> 奈良 | AZ34: W | BA34: L | BB34: TP | BD34: TP | BE34: LP | BF34: R_P | BG34: R
A35: =IF(【準備】登録!C26="","",$A$5) ->  | C35: =●【進行】結果入力表!D15 -> 0 | E35: =【準備】登録!E26 -> 0 | H35: =IF(●【進行】結果入力表!F23="","",●【進行】結果入力表!F23) ->  | J35: =IF(●【進行】結果入力表!F15="","",●【進行】結果入力表!F15) ->  | L35: =IF(J35="","",COUNTIF(F35:K35,"w")) ->  | M35: =IF(J35="","",COUNT(H35,J35)) ->  | N35: =SUM(F35:K35)+L35*E35 ->  | P35: =IF(J35="","",N35/E35*180) ->  | Q35: =IF(F36="w",180,F36/E35*180)+IF(F37="w",180,F37/E35*180) ->  | R35: =L35*10000000+P35*L10034*10000000+P35*1000-Q35 ->  | S35: =IF(J35="","",RANK(R35:R37,R35:R37,0)) ->  | U35: =$A$35 ->  | W35: =●【進行】結果入力表!D47 -> 0 | Y35: =【準備】登録!E24 -> 180 | AB35: =IF(●【進行】結果入力表!F47="","",●【進行】結果入力表!F47) ->  | AD35: =IF(●【進行】結果入力表!F39="","",●【進行】結果入力表!F39) ->  | AF35: =IF(AD35="","",COUNTIF(Z35:AE35,"w")) ->  | AG35: =IF(AD35="","",COUNT(AB35,AD35)) ->  | AH35: =SUM(Z35:AE35)+AF35*Y35 ->  | AJ35: =IF(AD35="","",AH35/Y35*180) ->  | AK35: =IF(Z36="w",180,Z36/Y35*180)+IF(Z37="w",180,Z37/Y35*180) ->  | AL35: =AF35*10000000+AJ35*AF10034*10000000+AJ35*1000-AK35 ->  | AM35: =IF(AD35="","",RANK(AL35:AL37,AL35:AL37,0)) ->  | AO35: =$A$35 ->  | AQ35: =●【進行】結果入力表!D71 -> 0 | AS35: =【準備】登録!E22 -> 180 | AV35: =IF(●【進行】結果入力表!F71="","",●【進行】結果入力表!F71) ->  | AX35: =IF(●【進行】結果入力表!F63="","",●【進行】結果入力表!F63) ->  | AZ35: =IF(AX35="","",COUNTIF(AT35:AY35,"w")) ->  | BA35: =IF(AX35="","",COUNT(AV35,AX35)) ->  | BB35: =SUM(AT35:AY35)+AZ35*AS35 ->  | BD35: =IF(AX35="","",BB35/AS35*180) ->  | BE35: =IF(AT36="w",180,AT36/AS35*180)+IF(AT37="w",180,AT37/AS35*180) ->  | BF35: =AZ35*10000000+BD35*AZ10034*10000000+BD35*1000-BE35 ->  | BG35: =IF(AX35="","",RANK(BF35:BF37,BF35:BF37,0)) -> 
A36: =IF(【準備】登録!F26="","",$A$6) ->  | C36: =●【進行】結果入力表!I23 -> 0 | E36: =【準備】登録!H26 -> 0 | F36: =IF(●【進行】結果入力表!G23="","",●【進行】結果入力表!G23) ->  | J36: =IF(●【進行】結果入力表!F31="","",●【進行】結果入力表!F31) ->  | L36: =IF(J35="","",COUNTIF(F36:K36,"w")) ->  | M36: =IF(J35="","",COUNT(F36,J36)) ->  | N36: =SUM(F36:K36)+L36*E36 ->  | P36: =IF(J35="","",N36/E36*180) ->  | Q36: =IF(H35="w",180,H35/E36*180)+IF(H37="w",180,H37/E36*180) ->  | R36: =L36*10000000+P36*L10035*10000000+P36*1000-Q36 ->  | S36: =IF(J35="","",RANK(R35:R37,R35:R37,0)) ->  | U36: =$A$36 ->  | W36: =●【進行】結果入力表!I47 -> 0 | Y36: =【準備】登録!H25 -> 180 | Z36: =IF(●【進行】結果入力表!G47="","",●【進行】結果入力表!G47) ->  | AD36: =IF(●【進行】結果入力表!F55="","",●【進行】結果入力表!F55) ->  | AF36: =IF(AD35="","",COUNTIF(Z36:AE36,"w")) ->  | AG36: =IF(AD35="","",COUNT(Z36,AD36)) ->  | AH36: =SUM(Z36:AE36)+AF36*Y36 ->  | AJ36: =IF(AD35="","",AH36/Y36*180) ->  | AK36: =IF(AB35="w",180,AB35/Y36*180)+IF(AB37="w",180,AB37/Y36*180) ->  | AL36: =AF36*10000000+AJ36*AF10035*10000000+AJ36*1000-AK36 ->  | AM36: =IF(AD35="","",RANK(AL35:AL37,AL35:AL37,0)) ->  | AO36: =$A$36 ->  | AQ36: =●【進行】結果入力表!I71 -> 0 | AS36: =【準備】登録!H24 -> 180 | AT36: =IF(●【進行】結果入力表!G71="","",●【進行】結果入力表!G71) ->  | AX36: =IF(●【進行】結果入力表!F79="","",●【進行】結果入力表!F79) ->  | AZ36: =IF(AX35="","",COUNTIF(AT36:AY36,"w")) ->  | BA36: =IF(AX35="","",COUNT(AT36,AX36)) ->  | BB36: =SUM(AT36:AY36)+AZ36*AS36 ->  | BD36: =IF(AX35="","",BB36/AS36*180) ->  | BE36: =IF(AV35="w",180,AV35/AS36*180)+IF(AV37="w",180,AV37/AS36*180) ->  | BF36: =AZ36*10000000+BD36*AZ10035*10000000+BD36*1000-BE36 ->  | BG36: =IF(AX35="","",RANK(BF35:BF37,BF35:BF37,0)) -> 
A37: =IF(【準備】登録!I26="","",$A$7) ->  | C37: =●【進行】結果入力表!I15 -> 0 | E37: =【準備】登録!K26 -> 0 | F37: =IF(●【進行】結果入力表!G15="","",●【進行】結果入力表!G15) ->  | H37: =IF(●【進行】結果入力表!G31="","",●【進行】結果入力表!G31) ->  | L37: =IF(J35="","",COUNTIF(F37:K37,"w")) ->  | M37: =IF(J35="","",COUNT(F37,H37)) ->  | N37: =SUM(F37:K37)+L37*E37 ->  | P37: =IF(J35="","",N37/E37*180) ->  | Q37: =IF(J35="w",180,J35/E37*180)+IF(J36="w",180,J36/E37*180) ->  | R37: =L37*10000000+P37*L10036*10000000+P37*1000-Q37 ->  | S37: =IF(J35="","",RANK(R35:R37,R35:R37,0)) ->  | U37: =$A$37 ->  | W37: =●【進行】結果入力表!I39 -> 0 | Y37: =【準備】登録!K26 -> 0 | Z37: =IF(●【進行】結果入力表!G39="","",●【進行】結果入力表!G39) ->  | AB37: =IF(●【進行】結果入力表!G55="","",●【進行】結果入力表!G55) ->  | AF37: =IF(AD35="","",COUNTIF(Z37:AE37,"w")) ->  | AG37: =IF(AD35="","",COUNT(Z37,AB37)) ->  | AH37: =SUM(Z37:AE37)+AF37*Y37 ->  | AJ37: =IF(AD35="","",AH37/Y37*180) ->  | AK37: =IF(AD35="w",180,AD35/Y37*180)+IF(AD36="w",180,AD36/Y37*180) ->  | AL37: =AF37*10000000+AJ37*AF10036*10000000+AJ37*1000-AK37 ->  | AM37: =IF(AD35="","",RANK(AL35:AL37,AL35:AL37,0)) ->  | AO37: =$A$37 ->  | AQ37: =●【進行】結果入力表!I63 -> 0 | AS37: =【準備】登録!K26 -> 0 | AT37: =IF(●【進行】結果入力表!G63="","",●【進行】結果入力表!G63) ->  | AV37: =IF(●【進行】結果入力表!G79="","",●【進行】結果入力表!G79) ->  | AZ37: =IF(AX35="","",COUNTIF(AT37:AY37,"w")) ->  | BA37: =IF(AX35="","",COUNT(AT37,AV37)) ->  | BB37: =SUM(AT37:AY37)+AZ37*AS37 ->  | BD37: =IF(AX35="","",BB37/AS37*180) ->  | BE37: =IF(AX35="w",180,AX35/AS37*180)+IF(AX36="w",180,AX36/AS37*180) ->  | BF37: =AZ37*10000000+BD37*AZ10036*10000000+BD37*1000-BE37 ->  | BG37: =IF(AX35="","",RANK(BF35:BF37,BF35:BF37,0)) -> 
A39: =IF(【準備】登録!C27="","",【準備】登録!A27) ->  | C39: Name | E39: =E$4 -> 持点 | F39: =A40 ->  | H39: =A41 ->  | J39: =A42 ->  | L39: W | M39: L | N39: TP | P39: TP | Q39: LP | R39: R_P | S39: R | U39: =A39 ->  | W39: Name | Y39: =$E$4 -> 持点 | Z39: =$A$40 ->  | AB39: =$A$41 ->  | AD39: =$A$42 ->  | AF39: W | AG39: L | AH39: TP | AJ39: TP | AK39: LP | AL39: R_P | AM39: R | AO39: =A39 ->  | AQ39: Name | AS39: =$E$4 -> 持点 | AT39: =$A$40 ->  | AV39: =$A$41 ->  | AX39: =$A$42 ->  | AZ39: W | BA39: L | BB39: TP | BD39: TP | BE39: LP | BF39: R_P | BG39: R
A40: =IF(【準備】登録!C27="","",$A$5) ->  | C40: =●【進行】結果入力表!D16 -> 0 | E40: =【準備】登録!E27 -> 0 | H40: =IF(●【進行】結果入力表!F24="","",●【進行】結果入力表!F24) ->  | J40: =IF(●【進行】結果入力表!F16="","",●【進行】結果入力表!F16) ->  | L40: =IF(J40="","",COUNTIF(F40:K40,"w")) ->  | M40: =IF(J40="","",COUNT(H40,J40)) ->  | N40: =SUM(F40:K40)+L40*E40 ->  | P40: =IF(J40="","",N40/E40*180) ->  | Q40: =IF(F41="w",180,F41/E40*180)+IF(F42="w",180,F42/E40*180) ->  | R40: =L40*10000000+P40*L10039*10000000+P40*1000-Q40 ->  | S40: =IF(J40="","",RANK(R40:R42,R40:R42,0)) ->  | U40: =$A40 ->  | W40: =●【進行】結果入力表!D48 -> 0 | Y40: =【準備】登録!E25 -> 180 | AB40: =IF(●【進行】結果入力表!F48="","",●【進行】結果入力表!F48) ->  | AD40: =IF(●【進行】結果入力表!F40="","",●【進行】結果入力表!F40) ->  | AF40: =IF(AD40="","",COUNTIF(Z40:AE40,"w")) ->  | AG40: =IF(AD40="","",COUNT(AB40,AD40)) ->  | AH40: =SUM(Z40:AE40)+AF40*Y40 ->  | AJ40: =IF(AD40="","",AH40/Y40*180) ->  | AK40: =IF(Z41="w",180,Z41/Y40*180)+IF(Z42="w",180,Z42/Y40*180) ->  | AL40: =AF40*10000000+AJ40*AF10039*10000000+AJ40*1000-AK40 ->  | AM40: =IF(AD40="","",RANK(AL40:AL42,AL40:AL42,0)) ->  | AO40: =$A40 ->  | AQ40: =●【進行】結果入力表!D72 -> 0 | AS40: =【準備】登録!E23 -> 180 | AV40: =IF(●【進行】結果入力表!F72="","",●【進行】結果入力表!F72) ->  | AX40: =IF(●【進行】結果入力表!F64="","",●【進行】結果入力表!F64) ->  | AZ40: =IF(AX40="","",COUNTIF(AT40:AY40,"w")) ->  | BA40: =IF(AX40="","",COUNT(AV40,AX40)) ->  | BB40: =SUM(AT40:AY40)+AZ40*AS40 ->  | BD40: =IF(AX40="","",BB40/AS40*180) ->  | BE40: =IF(AT41="w",180,AT41/AS40*180)+IF(AT42="w",180,AT42/AS40*180) ->  | BF40: =AZ40*10000000+BD40*AZ10039*10000000+BD40*1000-BE40 ->  | BG40: =IF(AX40="","",RANK(BF40:BF42,BF40:BF42,0)) -> 
A41: =IF(【準備】登録!F27="","",$A$6) ->  | C41: =●【進行】結果入力表!I24 -> 0 | E41: =【準備】登録!H27 -> 0 | F41: =IF(●【進行】結果入力表!G24="","",●【進行】結果入力表!G24) ->  | J41: =IF(●【進行】結果入力表!F32="","",●【進行】結果入力表!F32) ->  | L41: =IF(J40="","",COUNTIF(F41:K41,"w")) ->  | M41: =IF(J40="","",COUNT(F41,J41)) ->  | N41: =SUM(F41:K41)+L41*E41 ->  | P41: =IF(J40="","",N41/E41*180) ->  | Q41: =IF(H40="w",180,H40/E41*180)+IF(H42="w",180,H42/E41*180) ->  | R41: =L41*10000000+P41*L10040*10000000+P41*1000-Q41 ->  | S41: =IF(J40="","",RANK(R40:R42,R40:R42,0)) ->  | U41: =$A41 ->  | W41: =●【進行】結果入力表!I48 -> 0 | Y41: =【準備】登録!H26 -> 0 | Z41: =IF(●【進行】結果入力表!G48="","",●【進行】結果入力表!G48) ->  | AD41: =IF(●【進行】結果入力表!F56="","",●【進行】結果入力表!F56) ->  | AF41: =IF(AD40="","",COUNTIF(Z41:AE41,"w")) ->  | AG41: =IF(AD40="","",COUNT(Z41,AD41)) ->  | AH41: =SUM(Z41:AE41)+AF41*Y41 ->  | AJ41: =IF(AD40="","",AH41/Y41*180) ->  | AK41: =IF(AB40="w",180,AB40/Y41*180)+IF(AB42="w",180,AB42/Y41*180) ->  | AL41: =AF41*10000000+AJ41*AF10040*10000000+AJ41*1000-AK41 ->  | AM41: =IF(AD40="","",RANK(AL40:AL42,AL40:AL42,0)) ->  | AO41: =$A41 ->  | AQ41: =●【進行】結果入力表!I72 -> 0 | AS41: =【準備】登録!H25 -> 180 | AT41: =IF(●【進行】結果入力表!G72="","",●【進行】結果入力表!G72) ->  | AX41: =IF(●【進行】結果入力表!F80="","",●【進行】結果入力表!F80) ->  | AZ41: =IF(AX40="","",COUNTIF(AT41:AY41,"w")) ->  | BA41: =IF(AX40="","",COUNT(AT41,AX41)) ->  | BB41: =SUM(AT41:AY41)+AZ41*AS41 ->  | BD41: =IF(AX40="","",BB41/AS41*180) ->  | BE41: =IF(AV40="w",180,AV40/AS41*180)+IF(AV42="w",180,AV42/AS41*180) ->  | BF41: =AZ41*10000000+BD41*AZ10040*10000000+BD41*1000-BE41 ->  | BG41: =IF(AX40="","",RANK(BF40:BF42,BF40:BF42,0)) -> 
A42: =IF(【準備】登録!I27="","",$A$7) ->  | C42: =●【進行】結果入力表!I16 -> 0 | E42: =【準備】登録!K27 -> 0 | F42: =IF(●【進行】結果入力表!G16="","",●【進行】結果入力表!G16) ->  | H42: =IF(C40="","",●【進行】結果入力表!G32) -> 0 | L42: =IF(J40="","",COUNTIF(F42:K42,"w")) ->  | M42: =IF(J40="","",COUNT(F42,H42)) ->  | N42: =SUM(F42:K42)+L42*E42 ->  | P42: =IF(J40="","",N42/E42*180) ->  | Q42: =IF(J40="w",180,J40/E42*180)+IF(J41="w",180,J41/E42*180) ->  | R42: =L42*10000000+P42*L10041*10000000+P42*1000-Q42 ->  | S42: =IF(J40="","",RANK(R40:R42,R40:R42,0)) ->  | U42: =$A42 ->  | W42: =●【進行】結果入力表!I40 -> 0 | Y42: =【準備】登録!K27 -> 0 | Z42: =IF(●【進行】結果入力表!G40="","",●【進行】結果入力表!G40) ->  | AB42: =IF(●【進行】結果入力表!G56="","",●【進行】結果入力表!G56) ->  | AF42: =IF(AD40="","",COUNTIF(Z42:AE42,"w")) ->  | AG42: =IF(AD40="","",COUNT(Z42,AB42)) ->  | AH42: =SUM(Z42:AE42)+AF42*Y42 ->  | AJ42: =IF(AD40="","",AH42/Y42*180) ->  | AK42: =IF(AD40="w",180,AD40/Y42*180)+IF(AD41="w",180,AD41/Y42*180) ->  | AL42: =AF42*10000000+AJ42*AF10041*10000000+AJ42*1000-AK42 ->  | AM42: =IF(AD40="","",RANK(AL40:AL42,AL40:AL42,0)) ->  | AO42: =$A42 ->  | AQ42: =●【進行】結果入力表!I64 -> 0 | AS42: =【準備】登録!K27 -> 0 | AT42: =IF(●【進行】結果入力表!G64="","",●【進行】結果入力表!G64) ->  | AV42: =IF(●【進行】結果入力表!G80="","",●【進行】結果入力表!G80) ->  | AZ42: =IF(AX40="","",COUNTIF(AT42:AY42,"w")) ->  | BA42: =IF(AX40="","",COUNT(AT42,AV42)) ->  | BB42: =SUM(AT42:AY42)+AZ42*AS42 ->  | BD42: =IF(AX40="","",BB42/AS42*180) ->  | BE42: =IF(AX40="w",180,AX40/AS42*180)+IF(AX41="w",180,AX41/AS42*180) ->  | BF42: =AZ42*10000000+BD42*AZ10041*10000000+BD42*1000-BE42 ->  | BG42: =IF(AX40="","",RANK(BF40:BF42,BF40:BF42,0)) -> 
B43: ※ | C43: TPの数字は、ハンデによる換算後の得点を示す。

Sheet 結果リスト
A1: =B1&C1&D1&E1 -> 第1節兵庫奈良宮本 一 | B1: =●【進行】結果入力表!A9 -> 第1節 | C1: =●【進行】結果入力表!C9 -> 兵庫 | D1: =●【進行】結果入力表!J9 -> 奈良 | E1: =●【進行】結果入力表!D9 -> 宮本 一 | F1: =IF(●【進行】結果入力表!F9="","",●【進行】結果入力表!F9) -> W | G1: =●【進行】結果入力表!E9 -> 0
A2: 第1節兵庫奈良鐵山 泰三 | B2: =●【進行】結果入力表!A10 -> 第1節 | C2: =●【進行】結果入力表!C10 -> 兵庫 | D2: =●【進行】結果入力表!J10 -> 奈良 | E2: =●【進行】結果入力表!D10 -> 鐵山 泰三 | F2: =IF(●【進行】結果入力表!F10="","",●【進行】結果入力表!F10) -> 26 | G2: =●【進行】結果入力表!E10 -> 0
A3: 第1節兵庫奈良中尾 亮太 | B3: =●【進行】結果入力表!A11 -> 第1節 | C3: =●【進行】結果入力表!C11 -> 兵庫 | D3: =●【進行】結果入力表!J11 -> 奈良 | E3: =●【進行】結果入力表!D11 -> 中尾 亮太 | F3: =IF(●【進行】結果入力表!F11="","",●【進行】結果入力表!F11) -> 24 | G3: =●【進行】結果入力表!E11 -> 0
A4: 第1節兵庫奈良平井 洸志 | B4: =●【進行】結果入力表!A12 -> 第1節 | C4: =●【進行】結果入力表!C12 -> 兵庫 | D4: =●【進行】結果入力表!J12 -> 奈良 | E4: =●【進行】結果入力表!D12 -> 平井 洸志 | F4: =IF(●【進行】結果入力表!F12="","",●【進行】結果入力表!F12) -> 24 | G4: =●【進行】結果入力表!E12 -> 0
A5: 第1節兵庫奈良堂園 雅也 | B5: =●【進行】結果入力表!A13 -> 第1節 | C5: =●【進行】結果入力表!C13 -> 兵庫 | D5: =●【進行】結果入力表!J13 -> 奈良 | E5: =●【進行】結果入力表!D13 -> 堂園 雅也 | F5: =IF(●【進行】結果入力表!F13="","",●【進行】結果入力表!F13) -> W | G5: =●【進行】結果入力表!E13 -> 0
A6: 第1節兵庫奈良藤中 健太郎 | B6: =●【進行】結果入力表!A14 -> 第1節 | C6: =●【進行】結果入力表!C14 -> 兵庫 | D6: =●【進行】結果入力表!J14 -> 奈良 | E6: =●【進行】結果入力表!D14 -> 藤中 健太郎 | F6: =IF(●【進行】結果入力表!F14="","",●【進行】結果入力表!F14) -> W | G6: =●【進行】結果入力表!E14 -> 0
A7: 第1節兵庫奈良0 | B7: =●【進行】結果入力表!A15 -> 第1節 | C7: =●【進行】結果入力表!C15 -> 兵庫 | D7: =●【進行】結果入力表!J15 -> 奈良 | E7: =●【進行】結果入力表!D15 -> 0 | F7: =IF(●【進行】結果入力表!F15="","",●【進行】結果入力表!F15) ->  | G7: =●【進行】結果入力表!E15 -> 0
A8: 第1節兵庫奈良0 | B8: =●【進行】結果入力表!A16 -> 第1節 | C8: =●【進行】結果入力表!C16 -> 兵庫 | D8: =●【進行】結果入力表!J16 -> 奈良 | E8: =●【進行】結果入力表!D16 -> 0 | F8: =IF(●【進行】結果入力表!F16="","",●【進行】結果入力表!F16) ->  | G8: =●【進行】結果入力表!E16 -> 0
A9: 第1節兵庫滋賀宮本 一 | B9: =●【進行】結果入力表!A17 -> 第1節 | C9: =●【進行】結果入力表!C17 -> 兵庫 | D9: =●【進行】結果入力表!J17 -> 滋賀 | E9: =●【進行】結果入力表!D17 -> 宮本 一 | F9: =IF(●【進行】結果入力表!F17="","",●【進行】結果入力表!F17) -> W | G9: =●【進行】結果入力表!E17 -> 0
A10: 第1節兵庫滋賀鐵山 泰三 | B10: =●【進行】結果入力表!A18 -> 第1節 | C10: =●【進行】結果入力表!C18 -> 兵庫 | D10: =●【進行】結果入力表!J18 -> 滋賀 | E10: =●【進行】結果入力表!D18 -> 鐵山 泰三 | F10: =IF(●【進行】結果入力表!F18="","",●【進行】結果入力表!F18) -> W | G10: =●【進行】結果入力表!E18 -> 0
A11: 第1節兵庫滋賀中尾 亮太 | B11: =●【進行】結果入力表!A19 -> 第1節 | C11: =●【進行】結果入力表!C19 -> 兵庫 | D11: =●【進行】結果入力表!J19 -> 滋賀 | E11: =●【進行】結果入力表!D19 -> 中尾 亮太 | F11: =IF(●【進行】結果入力表!F19="","",●【進行】結果入力表!F19) -> 153 | G11: =●【進行】結果入力表!E19 -> 0
A12: 第1節兵庫滋賀平井 洸志 | B12: =●【進行】結果入力表!A20 -> 第1節 | C12: =●【進行】結果入力表!C20 -> 兵庫 | D12: =●【進行】結果入力表!J20 -> 滋賀 | E12: =●【進行】結果入力表!D20 -> 平井 洸志 | F12: =IF(●【進行】結果入力表!F20="","",●【進行】結果入力表!F20) -> 102 | G12: =●【進行】結果入力表!E20 -> 0
A13: 第1節兵庫滋賀堂園 雅也 | B13: =●【進行】結果入力表!A21 -> 第1節 | C13: =●【進行】結果入力表!C21 -> 兵庫 | D13: =●【進行】結果入力表!J21 -> 滋賀 | E13: =●【進行】結果入力表!D21 -> 堂園 雅也 | F13: =IF(●【進行】結果入力表!F21="","",●【進行】結果入力表!F21) -> W | G13: =●【進行】結果入力表!E21 -> 0
A14: 第1節兵庫滋賀藤中 健太郎 | B14: =●【進行】結果入力表!A22 -> 第1節 | C14: =●【進行】結果入力表!C22 -> 兵庫 | D14: =●【進行】結果入力表!J22 -> 滋賀 | E14: =●【進行】結果入力表!D22 -> 藤中 健太郎 | F14: =IF(●【進行】結果入力表!F22="","",●【進行】結果入力表!F22) -> 84 | G14: =●【進行】結果入力表!E22 -> 0
A15: 第1節兵庫滋賀0 | B15: =●【進行】結果入力表!A23 -> 第1節 | C15: =●【進行】結果入力表!C23 -> 兵庫 | D15: =●【進行】結果入力表!J23 -> 滋賀 | E15: =●【進行】結果入力表!D23 -> 0 | F15: =IF(●【進行】結果入力表!F23="","",●【進行】結果入力表!F23) ->  | G15: =●【進行】結果入力表!E23 -> 0
A16: 第1節兵庫滋賀0 | B16: =●【進行】結果入力表!A24 -> 第1節 | C16: =●【進行】結果入力表!C24 -> 兵庫 | D16: =●【進行】結果入力表!J24 -> 滋賀 | E16: =●【進行】結果入力表!D24 -> 0 | F16: =IF(●【進行】結果入力表!F24="","",●【進行】結果入力表!F24) ->  | G16: =●【進行】結果入力表!E24 -> 0
A17: 第1節滋賀奈良大橋 義治 | B17: =●【進行】結果入力表!A25 -> 第1節 | C17: =●【進行】結果入力表!C25 -> 滋賀 | D17: =●【進行】結果入力表!J25 -> 奈良 | E17: =●【進行】結果入力表!D25 -> 大橋 義治 | F17: =IF(●【進行】結果入力表!F25="","",●【進行】結果入力表!F25) -> W | G17: =●【進行】結果入力表!E25 -> 0
A18: 第1節滋賀奈良大橋 正寛 | B18: =●【進行】結果入力表!A26 -> 第1節 | C18: =●【進行】結果入力表!C26 -> 滋賀 | D18: =●【進行】結果入力表!J26 -> 奈良 | E18: =●【進行】結果入力表!D26 -> 大橋 正寛 | F18: =IF(●【進行】結果入力表!F26="","",●【進行】結果入力表!F26) -> W | G18: =●【進行】結果入力表!E26 -> 0
A19: 第1節滋賀奈良西峰 久祐 | B19: =●【進行】結果入力表!A27 -> 第1節 | C19: =●【進行】結果入力表!C27 -> 滋賀 | D19: =●【進行】結果入力表!J27 -> 奈良 | E19: =●【進行】結果入力表!D27 -> 西峰 久祐 | F19: =IF(●【進行】結果入力表!F27="","",●【進行】結果入力表!F27) -> W | G19: =●【進行】結果入力表!E27 -> 0
A20: 第1節滋賀奈良山中 康寛 | B20: =●【進行】結果入力表!A28 -> 第1節 | C20: =●【進行】結果入力表!C28 -> 滋賀 | D20: =●【進行】結果入力表!J28 -> 奈良 | E20: =●【進行】結果入力表!D28 -> 山中 康寛 | F20: =IF(●【進行】結果入力表!F28="","",●【進行】結果入力表!F28) -> 78 | G20: =●【進行】結果入力表!E28 -> 0
A21: 第1節滋賀奈良御手洗 茂 | B21: =●【進行】結果入力表!A29 -> 第1節 | C21: =●【進行】結果入力表!C29 -> 滋賀 | D21: =●【進行】結果入力表!J29 -> 奈良 | E21: =●【進行】結果入力表!D29 -> 御手洗 茂 | F21: =IF(●【進行】結果入力表!F29="","",●【進行】結果入力表!F29) -> 31 | G21: =●【進行】結果入力表!E29 -> 0
A22: 第1節滋賀奈良高島 太一 | B22: =●【進行】結果入力表!A30 -> 第1節 | C22: =●【進行】結果入力表!C30 -> 滋賀 | D22: =●【進行】結果入力表!J30 -> 奈良 | E22: =●【進行】結果入力表!D30 -> 高島 太一 | F22: =IF(●【進行】結果入力表!F30="","",●【進行】結果入力表!F30) -> W | G22: =●【進行】結果入力表!E30 -> 0
A23: 第1節滋賀奈良0 | B23: =●【進行】結果入力表!A31 -> 第1節 | C23: =●【進行】結果入力表!C31 -> 滋賀 | D23: =●【進行】結果入力表!J31 -> 奈良 | E23: =●【進行】結果入力表!D31 -> 0 | F23: =IF(●【進行】結果入力表!F31="","",●【進行】結果入力表!F31) ->  | G23: =●【進行】結果入力表!E31 -> 0
A24: 第1節滋賀奈良0 | B24: =●【進行】結果入力表!A32 -> 第1節 | C24: =●【進行】結果入力表!C32 -> 滋賀 | D24: =●【進行】結果入力表!J32 -> 奈良 | E24: =●【進行】結果入力表!D32 -> 0 | F24: =IF(●【進行】結果入力表!F32="","",●【進行】結果入力表!F32) ->  | G24: =●【進行】結果入力表!E32 -> 0
A25: 第2節兵庫奈良堂園 雅也 | B25: =●【進行】結果入力表!A33 -> 第2節 | C25: =●【進行】結果入力表!C33 -> 兵庫 | D25: =●【進行】結果入力表!J33 -> 奈良 | E25: =●【進行】結果入力表!D33 -> 堂園 雅也 | F25: =IF(●【進行】結果入力表!F33="","",●【進行】結果入力表!F33) -> W | G25: =●【進行】結果入力表!E33 -> 0
A26: 第2節兵庫奈良藤中 健太郎 | B26: =●【進行】結果入力表!A34 -> 第2節 | C26: =●【進行】結果入力表!C34 -> 兵庫 | D26: =●【進行】結果入力表!J34 -> 奈良 | E26: =●【進行】結果入力表!D34 -> 藤中 健太郎 | F26: =IF(●【進行】結果入力表!F34="","",●【進行】結果入力表!F34) -> 88 | G26: =●【進行】結果入力表!E34 -> 0
A27: 第2節兵庫奈良宮本 一 | B27: =●【進行】結果入力表!A35 -> 第2節 | C27: =●【進行】結果入力表!C35 -> 兵庫 | D27: =●【進行】結果入力表!J35 -> 奈良 | E27: =●【進行】結果入力表!D35 -> 宮本 一 | F27: =IF(●【進行】結果入力表!F35="","",●【進行】結果入力表!F35) -> W | G27: =●【進行】結果入力表!E35 -> 108
A28: 第2節兵庫奈良鐵山 泰三 | B28: =●【進行】結果入力表!A36 -> 第2節 | C28: =●【進行】結果入力表!C36 -> 兵庫 | D28: =●【進行】結果入力表!J36 -> 奈良 | E28: =●【進行】結果入力表!D36 -> 鐵山 泰三 | F28: =IF(●【進行】結果入力表!F36="","",●【進行】結果入力表!F36) -> W | G28: =●【進行】結果入力表!E36 -> 100
A29: 第2節兵庫奈良中尾 亮太 | B29: =●【進行】結果入力表!A37 -> 第2節 | C29: =●【進行】結果入力表!C37 -> 兵庫 | D29: =●【進行】結果入力表!J37 -> 奈良 | E29: =●【進行】結果入力表!D37 -> 中尾 亮太 | F29: =IF(●【進行】結果入力表!F37="","",●【進行】結果入力表!F37) -> 53 | G29: =●【進行】結果入力表!E37 -> 0
A30: 第2節兵庫奈良平井 洸志 | B30: =●【進行】結果入力表!A38 -> 第2節 | C30: =●【進行】結果入力表!C38 -> 兵庫 | D30: =●【進行】結果入力表!J38 -> 奈良 | E30: =●【進行】結果入力表!D38 -> 平井 洸志 | F30: =IF(●【進行】結果入力表!F38="","",●【進行】結果入力表!F38) -> W | G30: =●【進行】結果入力表!E38 -> 0
A31: 第2節兵庫奈良0 | B31: =●【進行】結果入力表!A39 -> 第2節 | C31: =●【進行】結果入力表!C39 -> 兵庫 | D31: =●【進行】結果入力表!J39 -> 奈良 | E31: =●【進行】結果入力表!D39 -> 0 | F31: =IF(●【進行】結果入力表!F39="","",●【進行】結果入力表!F39) ->  | G31: =●【進行】結果入力表!E39 -> 0
A32: 第2節兵庫奈良0 | B32: =●【進行】結果入力表!A40 -> 第2節 | C32: =●【進行】結果入力表!C40 -> 兵庫 | D32: =●【進行】結果入力表!J40 -> 奈良 | E32: =●【進行】結果入力表!D40 -> 0 | F32: =IF(●【進行】結果入力表!F40="","",●【進行】結果入力表!F40) ->  | G32: =●【進行】結果入力表!E40 -> 0
A33: =B33&C33&D33&E33 -> 第2節兵庫滋賀堂園 雅也 | B33: =●【進行】結果入力表!A41 -> 第2節 | C33: =●【進行】結果入力表!C41 -> 兵庫 | D33: =●【進行】結果入力表!J41 -> 滋賀 | E33: =●【進行】結果入力表!D41 -> 堂園 雅也 | F33: =IF(●【進行】結果入力表!F41="","",●【進行】結果入力表!F41) -> 156 | G33: =●【進行】結果入力表!E41 -> 0
A34: 第2節兵庫滋賀藤中 健太郎 | B34: =●【進行】結果入力表!A42 -> 第2節 | C34: =●【進行】結果入力表!C42 -> 兵庫 | D34: =●【進行】結果入力表!J42 -> 滋賀 | E34: =●【進行】結果入力表!D42 -> 藤中 健太郎 | F34: =IF(●【進行】結果入力表!F42="","",●【進行】結果入力表!F42) -> 24 | G34: =●【進行】結果入力表!E42 -> 0
A35: 第2節兵庫滋賀宮本 一 | B35: =●【進行】結果入力表!A43 -> 第2節 | C35: =●【進行】結果入力表!C43 -> 兵庫 | D35: =●【進行】結果入力表!J43 -> 滋賀 | E35: =●【進行】結果入力表!D43 -> 宮本 一 | F35: =IF(●【進行】結果入力表!F43="","",●【進行】結果入力表!F43) -> W | G35: =●【進行】結果入力表!E43 -> 0
A36: 第2節兵庫滋賀鐵山 泰三 | B36: =●【進行】結果入力表!A44 -> 第2節 | C36: =●【進行】結果入力表!C44 -> 兵庫 | D36: =●【進行】結果入力表!J44 -> 滋賀 | E36: =●【進行】結果入力表!D44 -> 鐵山 泰三 | F36: =IF(●【進行】結果入力表!F44="","",●【進行】結果入力表!F44) -> W | G36: =●【進行】結果入力表!E44 -> 0
A37: 第2節兵庫滋賀中尾 亮太 | B37: =●【進行】結果入力表!A45 -> 第2節 | C37: =●【進行】結果入力表!C45 -> 兵庫 | D37: =●【進行】結果入力表!J45 -> 滋賀 | E37: =●【進行】結果入力表!D45 -> 中尾 亮太 | F37: =IF(●【進行】結果入力表!F45="","",●【進行】結果入力表!F45) -> 149 | G37: =●【進行】結果入力表!E45 -> 0
A38: 第2節兵庫滋賀平井 洸志 | B38: =●【進行】結果入力表!A46 -> 第2節 | C38: =●【進行】結果入力表!C46 -> 兵庫 | D38: =●【進行】結果入力表!J46 -> 滋賀 | E38: =●【進行】結果入力表!D46 -> 平井 洸志 | F38: =IF(●【進行】結果入力表!F46="","",●【進行】結果入力表!F46) -> W | G38: =●【進行】結果入力表!E46 -> 0
A39: 第2節兵庫滋賀0 | B39: =●【進行】結果入力表!A47 -> 第2節 | C39: =●【進行】結果入力表!C47 -> 兵庫 | D39: =●【進行】結果入力表!J47 -> 滋賀 | E39: =●【進行】結果入力表!D47 -> 0 | F39: =IF(●【進行】結果入力表!F47="","",●【進行】結果入力表!F47) ->  | G39: =●【進行】結果入力表!E47 -> 0
A40: 第2節兵庫滋賀0 | B40: =●【進行】結果入力表!A48 -> 第2節 | C40: =●【進行】結果入力表!C48 -> 兵庫 | D40: =●【進行】結果入力表!J48 -> 滋賀 | E40: =●【進行】結果入力表!D48 -> 0 | F40: =IF(●【進行】結果入力表!F48="","",●【進行】結果入力表!F48) ->  | G40: =●【進行】結果入力表!E48 -> 0
A41: 第2節滋賀奈良高島 太一 | B41: =●【進行】結果入力表!A49 -> 第2節 | C41: =●【進行】結果入力表!C49 -> 滋賀 | D41: =●【進行】結果入力表!J49 -> 奈良 | E41: =●【進行】結果入力表!D49 -> 高島 太一 | F41: =IF(●【進行】結果入力表!F49="","",●【進行】結果入力表!F49) -> 100 | G41: =●【進行】結果入力表!E49 -> 0
A42: 第2節滋賀奈良大橋 義治 | B42: =●【進行】結果入力表!A50 -> 第2節 | C42: =●【進行】結果入力表!C50 -> 滋賀 | D42: =●【進行】結果入力表!J50 -> 奈良 | E42: =●【進行】結果入力表!D50 -> 大橋 義治 | F42: =IF(●【進行】結果入力表!F50="","",●【進行】結果入力表!F50) -> W | G42: =●【進行】結果入力表!E50 -> 0
A43: 第2節滋賀奈良大橋 正寛 | B43: =●【進行】結果入力表!A51 -> 第2節 | C43: =●【進行】結果入力表!C51 -> 滋賀 | D43: =●【進行】結果入力表!J51 -> 奈良 | E43: =●【進行】結果入力表!D51 -> 大橋 正寛 | F43: =IF(●【進行】結果入力表!F51="","",●【進行】結果入力表!F51) -> W | G43: =●【進行】結果入力表!E51 -> 0
A44: 第2節滋賀奈良西峰 久祐 | B44: =●【進行】結果入力表!A52 -> 第2節 | C44: =●【進行】結果入力表!C52 -> 滋賀 | D44: =●【進行】結果入力表!J52 -> 奈良 | E44: =●【進行】結果入力表!D52 -> 西峰 久祐 | F44: =IF(●【進行】結果入力表!F52="","",●【進行】結果入力表!F52) -> W | G44: =●【進行】結果入力表!E52 -> 0
A45: 第2節滋賀奈良山中 康寛 | B45: =●【進行】結果入力表!A53 -> 第2節 | C45: =●【進行】結果入力表!C53 -> 滋賀 | D45: =●【進行】結果入力表!J53 -> 奈良 | E45: =●【進行】結果入力表!D53 -> 山中 康寛 | F45: =IF(●【進行】結果入力表!F53="","",●【進行】結果入力表!F53) -> 135 | G45: =●【進行】結果入力表!E53 -> 0
A46: 第2節滋賀奈良御手洗 茂 | B46: =●【進行】結果入力表!A54 -> 第2節 | C46: =●【進行】結果入力表!C54 -> 滋賀 | D46: =●【進行】結果入力表!J54 -> 奈良 | E46: =●【進行】結果入力表!D54 -> 御手洗 茂 | F46: =IF(●【進行】結果入力表!F54="","",●【進行】結果入力表!F54) -> 96 | G46: =●【進行】結果入力表!E54 -> 0
A47: 第2節滋賀奈良0 | B47: =●【進行】結果入力表!A55 -> 第2節 | C47: =●【進行】結果入力表!C55 -> 滋賀 | D47: =●【進行】結果入力表!J55 -> 奈良 | E47: =●【進行】結果入力表!D55 -> 0 | F47: =IF(●【進行】結果入力表!F55="","",●【進行】結果入力表!F55) ->  | G47: =●【進行】結果入力表!E55 -> 0
A48: 第2節滋賀奈良0 | B48: =●【進行】結果入力表!A56 -> 第2節 | C48: =●【進行】結果入力表!C56 -> 滋賀 | D48: =●【進行】結果入力表!J56 -> 奈良 | E48: =●【進行】結果入力表!D56 -> 0 | F48: =IF(●【進行】結果入力表!F56="","",●【進行】結果入力表!F56) ->  | G48: =●【進行】結果入力表!E56 -> 0
A49: 第3節兵庫奈良中尾 亮太 | B49: =●【進行】結果入力表!A57 -> 第3節 | C49: =●【進行】結果入力表!C57 -> 兵庫 | D49: =●【進行】結果入力表!J57 -> 奈良 | E49: =●【進行】結果入力表!D57 -> 中尾 亮太 | F49: =IF(●【進行】結果入力表!F57="","",●【進行】結果入力表!F57) -> W | G49: =●【進行】結果入力表!E57 -> 0
A50: 第3節兵庫奈良平井 洸志 | B50: =●【進行】結果入力表!A58 -> 第3節 | C50: =●【進行】結果入力表!C58 -> 兵庫 | D50: =●【進行】結果入力表!J58 -> 奈良 | E50: =●【進行】結果入力表!D58 -> 平井 洸志 | F50: =IF(●【進行】結果入力表!F58="","",●【進行】結果入力表!F58) -> W | G50: =●【進行】結果入力表!E58 -> 0
A51: 第3節兵庫奈良堂園 雅也 | B51: =●【進行】結果入力表!A59 -> 第3節 | C51: =●【進行】結果入力表!C59 -> 兵庫 | D51: =●【進行】結果入力表!J59 -> 奈良 | E51: =●【進行】結果入力表!D59 -> 堂園 雅也 | F51: =IF(●【進行】結果入力表!F59="","",●【進行】結果入力表!F59) -> W | G51: =●【進行】結果入力表!E59 -> 110
A52: 第3節兵庫奈良藤中 健太郎 | B52: =●【進行】結果入力表!A60 -> 第3節 | C52: =●【進行】結果入力表!C60 -> 兵庫 | D52: =●【進行】結果入力表!J60 -> 奈良 | E52: =●【進行】結果入力表!D60 -> 藤中 健太郎 | F52: =IF(●【進行】結果入力表!F60="","",●【進行】結果入力表!F60) -> W | G52: =●【進行】結果入力表!E60 -> 107
A53: 第3節兵庫奈良宮本 一 | B53: =●【進行】結果入力表!A61 -> 第3節 | C53: =●【進行】結果入力表!C61 -> 兵庫 | D53: =●【進行】結果入力表!J61 -> 奈良 | E53: =●【進行】結果入力表!D61 -> 宮本 一 | F53: =IF(●【進行】結果入力表!F61="","",●【進行】結果入力表!F61) -> W | G53: =●【進行】結果入力表!E61 -> 0
A54: 第3節兵庫奈良鐵山 泰三 | B54: =●【進行】結果入力表!A62 -> 第3節 | C54: =●【進行】結果入力表!C62 -> 兵庫 | D54: =●【進行】結果入力表!J62 -> 奈良 | E54: =●【進行】結果入力表!D62 -> 鐵山 泰三 | F54: =IF(●【進行】結果入力表!F62="","",●【進行】結果入力表!F62) -> W | G54: =●【進行】結果入力表!E62 -> 0
A55: 第3節兵庫奈良0 | B55: =●【進行】結果入力表!A63 -> 第3節 | C55: =●【進行】結果入力表!C63 -> 兵庫 | D55: =●【進行】結果入力表!J63 -> 奈良 | E55: =●【進行】結果入力表!D63 -> 0 | F55: =IF(●【進行】結果入力表!F63="","",●【進行】結果入力表!F63) ->  | G55: =●【進行】結果入力表!E63 -> 0
A56: 第3節兵庫奈良0 | B56: =●【進行】結果入力表!A64 -> 第3節 | C56: =●【進行】結果入力表!C64 -> 兵庫 | D56: =●【進行】結果入力表!J64 -> 奈良 | E56: =●【進行】結果入力表!D64 -> 0 | F56: =IF(●【進行】結果入力表!F64="","",●【進行】結果入力表!F64) ->  | G56: =●【進行】結果入力表!E64 -> 0
A57: 第3節兵庫滋賀中尾 亮太 | B57: =●【進行】結果入力表!A65 -> 第3節 | C57: =●【進行】結果入力表!C65 -> 兵庫 | D57: =●【進行】結果入力表!J65 -> 滋賀 | E57: =●【進行】結果入力表!D65 -> 中尾 亮太 | F57: =IF(●【進行】結果入力表!F65="","",●【進行】結果入力表!F65) -> W | G57: =●【進行】結果入力表!E65 -> 0
A58: 第3節兵庫滋賀平井 洸志 | B58: =●【進行】結果入力表!A66 -> 第3節 | C58: =●【進行】結果入力表!C66 -> 兵庫 | D58: =●【進行】結果入力表!J66 -> 滋賀 | E58: =●【進行】結果入力表!D66 -> 平井 洸志 | F58: =IF(●【進行】結果入力表!F66="","",●【進行】結果入力表!F66) -> 45 | G58: =●【進行】結果入力表!E66 -> 0
A59: 第3節兵庫滋賀堂園 雅也 | B59: =●【進行】結果入力表!A67 -> 第3節 | C59: =●【進行】結果入力表!C67 -> 兵庫 | D59: =●【進行】結果入力表!J67 -> 滋賀 | E59: =●【進行】結果入力表!D67 -> 堂園 雅也 | F59: =IF(●【進行】結果入力表!F67="","",●【進行】結果入力表!F67) -> 88 | G59: =●【進行】結果入力表!E67 -> 0
A60: 第3節兵庫滋賀藤中 健太郎 | B60: =●【進行】結果入力表!A68 -> 第3節 | C60: =●【進行】結果入力表!C68 -> 兵庫 | D60: =●【進行】結果入力表!J68 -> 滋賀 | E60: =●【進行】結果入力表!D68 -> 藤中 健太郎 | F60: =IF(●【進行】結果入力表!F68="","",●【進行】結果入力表!F68) -> W | G60: =●【進行】結果入力表!E68 -> 0
A61: 第3節兵庫滋賀宮本 一 | B61: =●【進行】結果入力表!A69 -> 第3節 | C61: =●【進行】結果入力表!C69 -> 兵庫 | D61: =●【進行】結果入力表!J69 -> 滋賀 | E61: =●【進行】結果入力表!D69 -> 宮本 一 | F61: =IF(●【進行】結果入力表!F69="","",●【進行】結果入力表!F69) -> W | G61: =●【進行】結果入力表!E69 -> 0
A62: 第3節兵庫滋賀鐵山 泰三 | B62: =●【進行】結果入力表!A70 -> 第3節 | C62: =●【進行】結果入力表!C70 -> 兵庫 | D62: =●【進行】結果入力表!J70 -> 滋賀 | E62: =●【進行】結果入力表!D70 -> 鐵山 泰三 | F62: =IF(●【進行】結果入力表!F70="","",●【進行】結果入力表!F70) -> 178 | G62: =●【進行】結果入力表!E70 -> 0
A63: 第3節兵庫滋賀0 | B63: =●【進行】結果入力表!A71 -> 第3節 | C63: =●【進行】結果入力表!C71 -> 兵庫 | D63: =●【進行】結果入力表!J71 -> 滋賀 | E63: =●【進行】結果入力表!D71 -> 0 | F63: =IF(●【進行】結果入力表!F71="","",●【進行】結果入力表!F71) ->  | G63: =●【進行】結果入力表!E71 -> 0
A64: 第3節兵庫滋賀0 | B64: =●【進行】結果入力表!A72 -> 第3節 | C64: =●【進行】結果入力表!C72 -> 兵庫 | D64: =●【進行】結果入力表!J72 -> 滋賀 | E64: =●【進行】結果入力表!D72 -> 0 | F64: =IF(●【進行】結果入力表!F72="","",●【進行】結果入力表!F72) ->  | G64: =●【進行】結果入力表!E72 -> 0
A65: =B65&C65&D65&E65 -> 第3節滋賀奈良御手洗 茂 | B65: =●【進行】結果入力表!A73 -> 第3節 | C65: =●【進行】結果入力表!C73 -> 滋賀 | D65: =●【進行】結果入力表!J73 -> 奈良 | E65: =●【進行】結果入力表!D73 -> 御手洗 茂 | F65: =IF(●【進行】結果入力表!F73="","",●【進行】結果入力表!F73) -> 134 | G65: =●【進行】結果入力表!E73 -> 0
A66: 第3節滋賀奈良高島 太一 | B66: =●【進行】結果入力表!A74 -> 第3節 | C66: =●【進行】結果入力表!C74 -> 滋賀 | D66: =●【進行】結果入力表!J74 -> 奈良 | E66: =●【進行】結果入力表!D74 -> 高島 太一 | F66: =IF(●【進行】結果入力表!F74="","",●【進行】結果入力表!F74) -> 132 | G66: =●【進行】結果入力表!E74 -> 0
A67: 第3節滋賀奈良大橋 義治 | B67: =●【進行】結果入力表!A75 -> 第3節 | C67: =●【進行】結果入力表!C75 -> 滋賀 | D67: =●【進行】結果入力表!J75 -> 奈良 | E67: =●【進行】結果入力表!D75 -> 大橋 義治 | F67: =IF(●【進行】結果入力表!F75="","",●【進行】結果入力表!F75) -> W | G67: =●【進行】結果入力表!E75 -> 0
A68: 第3節滋賀奈良大橋 正寛 | B68: =●【進行】結果入力表!A76 -> 第3節 | C68: =●【進行】結果入力表!C76 -> 滋賀 | D68: =●【進行】結果入力表!J76 -> 奈良 | E68: =●【進行】結果入力表!D76 -> 大橋 正寛 | F68: =IF(●【進行】結果入力表!F76="","",●【進行】結果入力表!F76) -> 75 | G68: =●【進行】結果入力表!E76 -> 0
A69: 第3節滋賀奈良西峰 久祐 | B69: =●【進行】結果入力表!A77 -> 第3節 | C69: =●【進行】結果入力表!C77 -> 滋賀 | D69: =●【進行】結果入力表!J77 -> 奈良 | E69: =●【進行】結果入力表!D77 -> 西峰 久祐 | F69: =IF(●【進行】結果入力表!F77="","",●【進行】結果入力表!F77) -> W | G69: =●【進行】結果入力表!E77 -> 0
A70: 第3節滋賀奈良山中 康寛 | B70: =●【進行】結果入力表!A78 -> 第3節 | C70: =●【進行】結果入力表!C78 -> 滋賀 | D70: =●【進行】結果入力表!J78 -> 奈良 | E70: =●【進行】結果入力表!D78 -> 山中 康寛 | F70: =IF(●【進行】結果入力表!F78="","",●【進行】結果入力表!F78) -> 80 | G70: =●【進行】結果入力表!E78 -> 0
A71: 第3節滋賀奈良0 | B71: =●【進行】結果入力表!A79 -> 第3節 | C71: =●【進行】結果入力表!C79 -> 滋賀 | D71: =●【進行】結果入力表!J79 -> 奈良 | E71: =●【進行】結果入力表!D79 -> 0 | F71: =IF(●【進行】結果入力表!F79="","",●【進行】結果入力表!F79) ->  | G71: =●【進行】結果入力表!E79 -> 0
A72: 第3節滋賀奈良0 | B72: =●【進行】結果入力表!A80 -> 第3節 | C72: =●【進行】結果入力表!C80 -> 滋賀 | D72: =●【進行】結果入力表!J80 -> 奈良 | E72: =●【進行】結果入力表!D80 -> 0 | F72: =IF(●【進行】結果入力表!F80="","",●【進行】結果入力表!F80) ->  | G72: =●【進行】結果入力表!E80 -> 0
A73: 第1節奈良兵庫田尻 哲司 | B73: =●【進行】結果入力表!A9 -> 第1節 | C73: =●【進行】結果入力表!J9 -> 奈良 | D73: =●【進行】結果入力表!C9 -> 兵庫 | E73: =●【進行】結果入力表!I9 -> 田尻 哲司 | F73: =IF(●【進行】結果入力表!G9="","",●【進行】結果入力表!G9) -> 52 | G73: =●【進行】結果入力表!H9 -> 0
A74: 第1節奈良兵庫吉向 翔平 | B74: =●【進行】結果入力表!A10 -> 第1節 | C74: =●【進行】結果入力表!J10 -> 奈良 | D74: =●【進行】結果入力表!C10 -> 兵庫 | E74: =●【進行】結果入力表!I10 -> 吉向 翔平 | F74: =IF(●【進行】結果入力表!G10="","",●【進行】結果入力表!G10) -> W | G74: =●【進行】結果入力表!H10 -> 0
A75: 第1節奈良兵庫巽 大地 | B75: =●【進行】結果入力表!A11 -> 第1節 | C75: =●【進行】結果入力表!J11 -> 奈良 | D75: =●【進行】結果入力表!C11 -> 兵庫 | E75: =●【進行】結果入力表!I11 -> 巽 大地 | F75: =IF(●【進行】結果入力表!G11="","",●【進行】結果入力表!G11) -> W | G75: =●【進行】結果入力表!H11 -> 0
A76: 第1節奈良兵庫山田 晃司 | B76: =●【進行】結果入力表!A12 -> 第1節 | C76: =●【進行】結果入力表!J12 -> 奈良 | D76: =●【進行】結果入力表!C12 -> 兵庫 | E76: =●【進行】結果入力表!I12 -> 山田 晃司 | F76: =IF(●【進行】結果入力表!G12="","",●【進行】結果入力表!G12) -> W | G76: =●【進行】結果入力表!H12 -> 0
A77: 第1節奈良兵庫鷲尾 隆杜 | B77: =●【進行】結果入力表!A13 -> 第1節 | C77: =●【進行】結果入力表!J13 -> 奈良 | D77: =●【進行】結果入力表!C13 -> 兵庫 | E77: =●【進行】結果入力表!I13 -> 鷲尾 隆杜 | F77: =IF(●【進行】結果入力表!G13="","",●【進行】結果入力表!G13) -> 155 | G77: =●【進行】結果入力表!H13 -> 0
A78: 第1節奈良兵庫長谷川 進 | B78: =●【進行】結果入力表!A14 -> 第1節 | C78: =●【進行】結果入力表!J14 -> 奈良 | D78: =●【進行】結果入力表!C14 -> 兵庫 | E78: =●【進行】結果入力表!I14 -> 長谷川 進 | F78: =IF(●【進行】結果入力表!G14="","",●【進行】結果入力表!G14) -> 164 | G78: =●【進行】結果入力表!H14 -> 0
A79: 第1節奈良兵庫0 | B79: =●【進行】結果入力表!A15 -> 第1節 | C79: =●【進行】結果入力表!J15 -> 奈良 | D79: =●【進行】結果入力表!C15 -> 兵庫 | E79: =●【進行】結果入力表!I15 -> 0 | F79: =IF(●【進行】結果入力表!G15="","",●【進行】結果入力表!G15) ->  | G79: =●【進行】結果入力表!H15 -> 0
A80: 第1節奈良兵庫0 | B80: =●【進行】結果入力表!A16 -> 第1節 | C80: =●【進行】結果入力表!J16 -> 奈良 | D80: =●【進行】結果入力表!C16 -> 兵庫 | E80: =●【進行】結果入力表!I16 -> 0 | F80: =IF(●【進行】結果入力表!G16="","",●【進行】結果入力表!G16) ->  | G80: =●【進行】結果入力表!H16 -> 0
A81: 第1節滋賀兵庫大橋 義治 | B81: =●【進行】結果入力表!A17 -> 第1節 | C81: =●【進行】結果入力表!J17 -> 滋賀 | D81: =●【進行】結果入力表!C17 -> 兵庫 | E81: =●【進行】結果入力表!I17 -> 大橋 義治 | F81: =IF(●【進行】結果入力表!G17="","",●【進行】結果入力表!G17) -> 176 | G81: =●【進行】結果入力表!H17 -> 0
A82: 第1節滋賀兵庫大橋 正寛 | B82: =●【進行】結果入力表!A18 -> 第1節 | C82: =●【進行】結果入力表!J18 -> 滋賀 | D82: =●【進行】結果入力表!C18 -> 兵庫 | E82: =●【進行】結果入力表!I18 -> 大橋 正寛 | F82: =IF(●【進行】結果入力表!G18="","",●【進行】結果入力表!G18) -> 159 | G82: =●【進行】結果入力表!H18 -> 0
A83: 第1節滋賀兵庫西峰 久祐 | B83: =●【進行】結果入力表!A19 -> 第1節 | C83: =●【進行】結果入力表!J19 -> 滋賀 | D83: =●【進行】結果入力表!C19 -> 兵庫 | E83: =●【進行】結果入力表!I19 -> 西峰 久祐 | F83: =IF(●【進行】結果入力表!G19="","",●【進行】結果入力表!G19) -> W | G83: =●【進行】結果入力表!H19 -> 0
A84: 第1節滋賀兵庫山中 康寛 | B84: =●【進行】結果入力表!A20 -> 第1節 | C84: =●【進行】結果入力表!J20 -> 滋賀 | D84: =●【進行】結果入力表!C20 -> 兵庫 | E84: =●【進行】結果入力表!I20 -> 山中 康寛 | F84: =IF(●【進行】結果入力表!G20="","",●【進行】結果入力表!G20) -> W | G84: =●【進行】結果入力表!H20 -> 0
A85: 第1節滋賀兵庫御手洗 茂 | B85: =●【進行】結果入力表!A21 -> 第1節 | C85: =●【進行】結果入力表!J21 -> 滋賀 | D85: =●【進行】結果入力表!C21 -> 兵庫 | E85: =●【進行】結果入力表!I21 -> 御手洗 茂 | F85: =IF(●【進行】結果入力表!G21="","",●【進行】結果入力表!G21) -> 95 | G85: =●【進行】結果入力表!H21 -> 0
A86: 第1節滋賀兵庫高島 太一 | B86: =●【進行】結果入力表!A22 -> 第1節 | C86: =●【進行】結果入力表!J22 -> 滋賀 | D86: =●【進行】結果入力表!C22 -> 兵庫 | E86: =●【進行】結果入力表!I22 -> 高島 太一 | F86: =IF(●【進行】結果入力表!G22="","",●【進行】結果入力表!G22) -> W | G86: =●【進行】結果入力表!H22 -> 0
A87: 第1節滋賀兵庫0 | B87: =●【進行】結果入力表!A23 -> 第1節 | C87: =●【進行】結果入力表!J23 -> 滋賀 | D87: =●【進行】結果入力表!C23 -> 兵庫 | E87: =●【進行】結果入力表!I23 -> 0 | F87: =IF(●【進行】結果入力表!G23="","",●【進行】結果入力表!G23) ->  | G87: =●【進行】結果入力表!H23 -> 0
A88: 第1節滋賀兵庫0 | B88: =●【進行】結果入力表!A24 -> 第1節 | C88: =●【進行】結果入力表!J24 -> 滋賀 | D88: =●【進行】結果入力表!C24 -> 兵庫 | E88: =●【進行】結果入力表!I24 -> 0 | F88: =IF(●【進行】結果入力表!G24="","",●【進行】結果入力表!G24) ->  | G88: =●【進行】結果入力表!H24 -> 0
A89: 第1節奈良滋賀田尻 哲司 | B89: =●【進行】結果入力表!A25 -> 第1節 | C89: =●【進行】結果入力表!J25 -> 奈良 | D89: =●【進行】結果入力表!C25 -> 滋賀 | E89: =●【進行】結果入力表!I25 -> 田尻 哲司 | F89: =IF(●【進行】結果入力表!G25="","",●【進行】結果入力表!G25) -> 172 | G89: =●【進行】結果入力表!H25 -> 0
A90: 第1節奈良滋賀吉向 翔平 | B90: =●【進行】結果入力表!A26 -> 第1節 | C90: =●【進行】結果入力表!J26 -> 奈良 | D90: =●【進行】結果入力表!C26 -> 滋賀 | E90: =●【進行】結果入力表!I26 -> 吉向 翔平 | F90: =IF(●【進行】結果入力表!G26="","",●【進行】結果入力表!G26) -> 137 | G90: =●【進行】結果入力表!H26 -> 0
A91: 第1節奈良滋賀巽 大地 | B91: =●【進行】結果入力表!A27 -> 第1節 | C91: =●【進行】結果入力表!J27 -> 奈良 | D91: =●【進行】結果入力表!C27 -> 滋賀 | E91: =●【進行】結果入力表!I27 -> 巽 大地 | F91: =IF(●【進行】結果入力表!G27="","",●【進行】結果入力表!G27) -> 160 | G91: =●【進行】結果入力表!H27 -> 0
A92: 第1節奈良滋賀山田 晃司 | B92: =●【進行】結果入力表!A28 -> 第1節 | C92: =●【進行】結果入力表!J28 -> 奈良 | D92: =●【進行】結果入力表!C28 -> 滋賀 | E92: =●【進行】結果入力表!I28 -> 山田 晃司 | F92: =IF(●【進行】結果入力表!G28="","",●【進行】結果入力表!G28) -> W | G92: =●【進行】結果入力表!H28 -> 102
A93: 第1節奈良滋賀鷲尾 隆杜 | B93: =●【進行】結果入力表!A29 -> 第1節 | C93: =●【進行】結果入力表!J29 -> 奈良 | D93: =●【進行】結果入力表!C29 -> 滋賀 | E93: =●【進行】結果入力表!I29 -> 鷲尾 隆杜 | F93: =IF(●【進行】結果入力表!G29="","",●【進行】結果入力表!G29) -> W | G93: =●【進行】結果入力表!H29 -> 105
A94: 第1節奈良滋賀長谷川 進 | B94: =●【進行】結果入力表!A30 -> 第1節 | C94: =●【進行】結果入力表!J30 -> 奈良 | D94: =●【進行】結果入力表!C30 -> 滋賀 | E94: =●【進行】結果入力表!I30 -> 長谷川 進 | F94: =IF(●【進行】結果入力表!G30="","",●【進行】結果入力表!G30) -> 108 | G94: =●【進行】結果入力表!H30 -> 0
A95: 第1節奈良滋賀0 | B95: =●【進行】結果入力表!A31 -> 第1節 | C95: =●【進行】結果入力表!J31 -> 奈良 | D95: =●【進行】結果入力表!C31 -> 滋賀 | E95: =●【進行】結果入力表!I31 -> 0 | F95: =IF(●【進行】結果入力表!G31="","",●【進行】結果入力表!G31) ->  | G95: =●【進行】結果入力表!H31 -> 0
A96: 第1節奈良滋賀0 | B96: =●【進行】結果入力表!A32 -> 第1節 | C96: =●【進行】結果入力表!J32 -> 奈良 | D96: =●【進行】結果入力表!C32 -> 滋賀 | E96: =●【進行】結果入力表!I32 -> 0 | F96: =IF(●【進行】結果入力表!G32="","",●【進行】結果入力表!G32) ->  | G96: =●【進行】結果入力表!H32 -> 0
A97: =B97&C97&D97&E97 -> 第2節奈良兵庫山田 晃司 | B97: =●【進行】結果入力表!A33 -> 第2節 | C97: =●【進行】結果入力表!J33 -> 奈良 | D97: =●【進行】結果入力表!C33 -> 兵庫 | E97: =●【進行】結果入力表!I33 -> 山田 晃司 | F97: =IF(●【進行】結果入力表!G33="","",●【進行】結果入力表!G33) -> 73 | G97: =●【進行】結果入力表!H33 -> 0
A98: 第2節奈良兵庫鷲尾 隆杜 | B98: =●【進行】結果入力表!A34 -> 第2節 | C98: =●【進行】結果入力表!J34 -> 奈良 | D98: =●【進行】結果入力表!C34 -> 兵庫 | E98: =●【進行】結果入力表!I34 -> 鷲尾 隆杜 | F98: =IF(●【進行】結果入力表!G34="","",●【進行】結果入力表!G34) -> W | G98: =●【進行】結果入力表!H34 -> 0
A99: 第2節奈良兵庫長谷川 進 | B99: =●【進行】結果入力表!A35 -> 第2節 | C99: =●【進行】結果入力表!J35 -> 奈良 | D99: =●【進行】結果入力表!C35 -> 兵庫 | E99: =●【進行】結果入力表!I35 -> 長谷川 進 | F99: =IF(●【進行】結果入力表!G35="","",●【進行】結果入力表!G35) -> 50 | G99: =●【進行】結果入力表!H35 -> 0
A100: 第2節奈良兵庫田尻 哲司 | B100: =●【進行】結果入力表!A36 -> 第2節 | C100: =●【進行】結果入力表!J36 -> 奈良 | D100: =●【進行】結果入力表!C36 -> 兵庫 | E100: =●【進行】結果入力表!I36 -> 田尻 哲司 | F100: =IF(●【進行】結果入力表!G36="","",●【進行】結果入力表!G36) -> 53 | G100: =●【進行】結果入力表!H36 -> 0
A101: 第2節奈良兵庫吉向 翔平 | B101: =●【進行】結果入力表!A37 -> 第2節 | C101: =●【進行】結果入力表!J37 -> 奈良 | D101: =●【進行】結果入力表!C37 -> 兵庫 | E101: =●【進行】結果入力表!I37 -> 吉向 翔平 | F101: =IF(●【進行】結果入力表!G37="","",●【進行】結果入力表!G37) -> W | G101: =●【進行】結果入力表!H37 -> 0
A102: 第2節奈良兵庫巽 大地 | B102: =●【進行】結果入力表!A38 -> 第2節 | C102: =●【進行】結果入力表!J38 -> 奈良 | D102: =●【進行】結果入力表!C38 -> 兵庫 | E102: =●【進行】結果入力表!I38 -> 巽 大地 | F102: =IF(●【進行】結果入力表!G38="","",●【進行】結果入力表!G38) -> 91 | G102: =●【進行】結果入力表!H38 -> 0
A103: 第2節奈良兵庫0 | B103: =●【進行】結果入力表!A39 -> 第2節 | C103: =●【進行】結果入力表!J39 -> 奈良 | D103: =●【進行】結果入力表!C39 -> 兵庫 | E103: =●【進行】結果入力表!I39 -> 0 | F103: =IF(●【進行】結果入力表!G39="","",●【進行】結果入力表!G39) ->  | G103: =●【進行】結果入力表!H39 -> 0
A104: 第2節奈良兵庫0 | B104: =●【進行】結果入力表!A40 -> 第2節 | C104: =●【進行】結果入力表!J40 -> 奈良 | D104: =●【進行】結果入力表!C40 -> 兵庫 | E104: =●【進行】結果入力表!I40 -> 0 | F104: =IF(●【進行】結果入力表!G40="","",●【進行】結果入力表!G40) ->  | G104: =●【進行】結果入力表!H40 -> 0
A105: 第2節滋賀兵庫高島 太一 | B105: =●【進行】結果入力表!A41 -> 第2節 | C105: =●【進行】結果入力表!J41 -> 滋賀 | D105: =●【進行】結果入力表!C41 -> 兵庫 | E105: =●【進行】結果入力表!I41 -> 高島 太一 | F105: =IF(●【進行】結果入力表!G41="","",●【進行】結果入力表!G41) -> W | G105: =●【進行】結果入力表!H41 -> 0
A106: 第2節滋賀兵庫大橋 義治 | B106: =●【進行】結果入力表!A42 -> 第2節 | C106: =●【進行】結果入力表!J42 -> 滋賀 | D106: =●【進行】結果入力表!C42 -> 兵庫 | E106: =●【進行】結果入力表!I42 -> 大橋 義治 | F106: =IF(●【進行】結果入力表!G42="","",●【進行】結果入力表!G42) -> W | G106: =●【進行】結果入力表!H42 -> 0
A107: 第2節滋賀兵庫大橋 正寛 | B107: =●【進行】結果入力表!A43 -> 第2節 | C107: =●【進行】結果入力表!J43 -> 滋賀 | D107: =●【進行】結果入力表!C43 -> 兵庫 | E107: =●【進行】結果入力表!I43 -> 大橋 正寛 | F107: =IF(●【進行】結果入力表!G43="","",●【進行】結果入力表!G43) -> 156 | G107: =●【進行】結果入力表!H43 -> 0
A108: 第2節滋賀兵庫西峰 久祐 | B108: =●【進行】結果入力表!A44 -> 第2節 | C108: =●【進行】結果入力表!J44 -> 滋賀 | D108: =●【進行】結果入力表!C44 -> 兵庫 | E108: =●【進行】結果入力表!I44 -> 西峰 久祐 | F108: =IF(●【進行】結果入力表!G44="","",●【進行】結果入力表!G44) -> 62 | G108: =●【進行】結果入力表!H44 -> 0
A109: 第2節滋賀兵庫山中 康寛 | B109: =●【進行】結果入力表!A45 -> 第2節 | C109: =●【進行】結果入力表!J45 -> 滋賀 | D109: =●【進行】結果入力表!C45 -> 兵庫 | E109: =●【進行】結果入力表!I45 -> 山中 康寛 | F109: =IF(●【進行】結果入力表!G45="","",●【進行】結果入力表!G45) -> W | G109: =●【進行】結果入力表!H45 -> 0
A110: 第2節滋賀兵庫御手洗 茂 | B110: =●【進行】結果入力表!A46 -> 第2節 | C110: =●【進行】結果入力表!J46 -> 滋賀 | D110: =●【進行】結果入力表!C46 -> 兵庫 | E110: =●【進行】結果入力表!I46 -> 御手洗 茂 | F110: =IF(●【進行】結果入力表!G46="","",●【進行】結果入力表!G46) -> 88 | G110: =●【進行】結果入力表!H46 -> 0
A111: 第2節滋賀兵庫0 | B111: =●【進行】結果入力表!A47 -> 第2節 | C111: =●【進行】結果入力表!J47 -> 滋賀 | D111: =●【進行】結果入力表!C47 -> 兵庫 | E111: =●【進行】結果入力表!I47 -> 0 | F111: =IF(●【進行】結果入力表!G47="","",●【進行】結果入力表!G47) ->  | G111: =●【進行】結果入力表!H47 -> 0
A112: 第2節滋賀兵庫0 | B112: =●【進行】結果入力表!A48 -> 第2節 | C112: =●【進行】結果入力表!J48 -> 滋賀 | D112: =●【進行】結果入力表!C48 -> 兵庫 | E112: =●【進行】結果入力表!I48 -> 0 | F112: =IF(●【進行】結果入力表!G48="","",●【進行】結果入力表!G48) ->  | G112: =●【進行】結果入力表!H48 -> 0
A113: 第2節奈良滋賀山田 晃司 | B113: =●【進行】結果入力表!A49 -> 第2節 | C113: =●【進行】結果入力表!J49 -> 奈良 | D113: =●【進行】結果入力表!C49 -> 滋賀 | E113: =●【進行】結果入力表!I49 -> 山田 晃司 | F113: =IF(●【進行】結果入力表!G49="","",●【進行】結果入力表!G49) -> W | G113: =●【進行】結果入力表!H49 -> 0
A114: 第2節奈良滋賀鷲尾 隆杜 | B114: =●【進行】結果入力表!A50 -> 第2節 | C114: =●【進行】結果入力表!J50 -> 奈良 | D114: =●【進行】結果入力表!C50 -> 滋賀 | E114: =●【進行】結果入力表!I50 -> 鷲尾 隆杜 | F114: =IF(●【進行】結果入力表!G50="","",●【進行】結果入力表!G50) -> 57 | G114: =●【進行】結果入力表!H50 -> 0
A115: 第2節奈良滋賀長谷川 進 | B115: =●【進行】結果入力表!A51 -> 第2節 | C115: =●【進行】結果入力表!J51 -> 奈良 | D115: =●【進行】結果入力表!C51 -> 滋賀 | E115: =●【進行】結果入力表!I51 -> 長谷川 進 | F115: =IF(●【進行】結果入力表!G51="","",●【進行】結果入力表!G51) -> 96 | G115: =●【進行】結果入力表!H51 -> 0
A116: 第2節奈良滋賀田尻 哲司 | B116: =●【進行】結果入力表!A52 -> 第2節 | C116: =●【進行】結果入力表!J52 -> 奈良 | D116: =●【進行】結果入力表!C52 -> 滋賀 | E116: =●【進行】結果入力表!I52 -> 田尻 哲司 | F116: =IF(●【進行】結果入力表!G52="","",●【進行】結果入力表!G52) -> 65 | G116: =●【進行】結果入力表!H52 -> 0
A117: 第2節奈良滋賀吉向 翔平 | B117: =●【進行】結果入力表!A53 -> 第2節 | C117: =●【進行】結果入力表!J53 -> 奈良 | D117: =●【進行】結果入力表!C53 -> 滋賀 | E117: =●【進行】結果入力表!I53 -> 吉向 翔平 | F117: =IF(●【進行】結果入力表!G53="","",●【進行】結果入力表!G53) -> W | G117: =●【進行】結果入力表!H53 -> 0
A118: 第2節奈良滋賀巽 大地 | B118: =●【進行】結果入力表!A54 -> 第2節 | C118: =●【進行】結果入力表!J54 -> 奈良 | D118: =●【進行】結果入力表!C54 -> 滋賀 | E118: =●【進行】結果入力表!I54 -> 巽 大地 | F118: =IF(●【進行】結果入力表!G54="","",●【進行】結果入力表!G54) -> W | G118: =●【進行】結果入力表!H54 -> 0
A119: 第2節奈良滋賀0 | B119: =●【進行】結果入力表!A55 -> 第2節 | C119: =●【進行】結果入力表!J55 -> 奈良 | D119: =●【進行】結果入力表!C55 -> 滋賀 | E119: =●【進行】結果入力表!I55 -> 0 | F119: =IF(●【進行】結果入力表!G55="","",●【進行】結果入力表!G55) ->  | G119: =●【進行】結果入力表!H55 -> 0
A120: 第2節奈良滋賀0 | B120: =●【進行】結果入力表!A56 -> 第2節 | C120: =●【進行】結果入力表!J56 -> 奈良 | D120: =●【進行】結果入力表!C56 -> 滋賀 | E120: =●【進行】結果入力表!I56 -> 0 | F120: =IF(●【進行】結果入力表!G56="","",●【進行】結果入力表!G56) ->  | G120: =●【進行】結果入力表!H56 -> 0
A121: 第3節奈良兵庫田尻 哲司 | B121: =●【進行】結果入力表!A57 -> 第3節 | C121: =●【進行】結果入力表!J57 -> 奈良 | D121: =●【進行】結果入力表!C57 -> 兵庫 | E121: =●【進行】結果入力表!I57 -> 田尻 哲司 | F121: =IF(●【進行】結果入力表!G57="","",●【進行】結果入力表!G57) -> 99 | G121: =●【進行】結果入力表!H57 -> 0
A122: 第3節奈良兵庫吉向 翔平 | B122: =●【進行】結果入力表!A58 -> 第3節 | C122: =●【進行】結果入力表!J58 -> 奈良 | D122: =●【進行】結果入力表!C58 -> 兵庫 | E122: =●【進行】結果入力表!I58 -> 吉向 翔平 | F122: =IF(●【進行】結果入力表!G58="","",●【進行】結果入力表!G58) -> 124 | G122: =●【進行】結果入力表!H58 -> 0
A123: 第3節奈良兵庫巽 大地 | B123: =●【進行】結果入力表!A59 -> 第3節 | C123: =●【進行】結果入力表!J59 -> 奈良 | D123: =●【進行】結果入力表!C59 -> 兵庫 | E123: =●【進行】結果入力表!I59 -> 巽 大地 | F123: =IF(●【進行】結果入力表!G59="","",●【進行】結果入力表!G59) -> 42 | G123: =●【進行】結果入力表!H59 -> 0
A124: 第3節奈良兵庫山田 晃司 | B124: =●【進行】結果入力表!A60 -> 第3節 | C124: =●【進行】結果入力表!J60 -> 奈良 | D124: =●【進行】結果入力表!C60 -> 兵庫 | E124: =●【進行】結果入力表!I60 -> 山田 晃司 | F124: =IF(●【進行】結果入力表!G60="","",●【進行】結果入力表!G60) -> 164 | G124: =●【進行】結果入力表!H60 -> 0
A125: 第3節奈良兵庫鷲尾 隆杜 | B125: =●【進行】結果入力表!A61 -> 第3節 | C125: =●【進行】結果入力表!J61 -> 奈良 | D125: =●【進行】結果入力表!C61 -> 兵庫 | E125: =●【進行】結果入力表!I61 -> 鷲尾 隆杜 | F125: =IF(●【進行】結果入力表!G61="","",●【進行】結果入力表!G61) -> 112 | G125: =●【進行】結果入力表!H61 -> 0
A126: 第3節奈良兵庫長谷川 進 | B126: =●【進行】結果入力表!A62 -> 第3節 | C126: =●【進行】結果入力表!J62 -> 奈良 | D126: =●【進行】結果入力表!C62 -> 兵庫 | E126: =●【進行】結果入力表!I62 -> 長谷川 進 | F126: =IF(●【進行】結果入力表!G62="","",●【進行】結果入力表!G62) -> 58 | G126: =●【進行】結果入力表!H62 -> 0
A127: 第3節奈良兵庫0 | B127: =●【進行】結果入力表!A63 -> 第3節 | C127: =●【進行】結果入力表!J63 -> 奈良 | D127: =●【進行】結果入力表!C63 -> 兵庫 | E127: =●【進行】結果入力表!I63 -> 0 | F127: =IF(●【進行】結果入力表!G63="","",●【進行】結果入力表!G63) ->  | G127: =●【進行】結果入力表!H63 -> 0
A128: 第3節奈良兵庫0 | B128: =●【進行】結果入力表!A64 -> 第3節 | C128: =●【進行】結果入力表!J64 -> 奈良 | D128: =●【進行】結果入力表!C64 -> 兵庫 | E128: =●【進行】結果入力表!I64 -> 0 | F128: =IF(●【進行】結果入力表!G64="","",●【進行】結果入力表!G64) ->  | G128: =●【進行】結果入力表!H64 -> 0
A129: =B129&C129&D129&E129 -> 第3節滋賀兵庫御手洗 茂 | B129: =●【進行】結果入力表!A65 -> 第3節 | C129: =●【進行】結果入力表!J65 -> 滋賀 | D129: =●【進行】結果入力表!C65 -> 兵庫 | E129: =●【進行】結果入力表!I65 -> 御手洗 茂 | F129: =IF(●【進行】結果入力表!G65="","",●【進行】結果入力表!G65) -> 61 | G129: =●【進行】結果入力表!H65 -> 0
A130: 第3節滋賀兵庫高島 太一 | B130: =●【進行】結果入力表!A66 -> 第3節 | C130: =●【進行】結果入力表!J66 -> 滋賀 | D130: =●【進行】結果入力表!C66 -> 兵庫 | E130: =●【進行】結果入力表!I66 -> 高島 太一 | F130: =IF(●【進行】結果入力表!G66="","",●【進行】結果入力表!G66) -> W | G130: =●【進行】結果入力表!H66 -> 0
A131: 第3節滋賀兵庫大橋 義治 | B131: =●【進行】結果入力表!A67 -> 第3節 | C131: =●【進行】結果入力表!J67 -> 滋賀 | D131: =●【進行】結果入力表!C67 -> 兵庫 | E131: =●【進行】結果入力表!I67 -> 大橋 義治 | F131: =IF(●【進行】結果入力表!G67="","",●【進行】結果入力表!G67) -> W | G131: =●【進行】結果入力表!H67 -> 0
A132: 第3節滋賀兵庫大橋 正寛 | B132: =●【進行】結果入力表!A68 -> 第3節 | C132: =●【進行】結果入力表!J68 -> 滋賀 | D132: =●【進行】結果入力表!C68 -> 兵庫 | E132: =●【進行】結果入力表!I68 -> 大橋 正寛 | F132: =IF(●【進行】結果入力表!G68="","",●【進行】結果入力表!G68) -> 17 | G132: =●【進行】結果入力表!H68 -> 0
A133: 第3節滋賀兵庫西峰 久祐 | B133: =●【進行】結果入力表!A69 -> 第3節 | C133: =●【進行】結果入力表!J69 -> 滋賀 | D133: =●【進行】結果入力表!C69 -> 兵庫 | E133: =●【進行】結果入力表!I69 -> 西峰 久祐 | F133: =IF(●【進行】結果入力表!G69="","",●【進行】結果入力表!G69) -> 120 | G133: =●【進行】結果入力表!H69 -> 0
A134: 第3節滋賀兵庫山中 康寛 | B134: =●【進行】結果入力表!A70 -> 第3節 | C134: =●【進行】結果入力表!J70 -> 滋賀 | D134: =●【進行】結果入力表!C70 -> 兵庫 | E134: =●【進行】結果入力表!I70 -> 山中 康寛 | F134: =IF(●【進行】結果入力表!G70="","",●【進行】結果入力表!G70) -> W | G134: =●【進行】結果入力表!H70 -> 0
A135: 第3節滋賀兵庫0 | B135: =●【進行】結果入力表!A71 -> 第3節 | C135: =●【進行】結果入力表!J71 -> 滋賀 | D135: =●【進行】結果入力表!C71 -> 兵庫 | E135: =●【進行】結果入力表!I71 -> 0 | F135: =IF(●【進行】結果入力表!G71="","",●【進行】結果入力表!G71) ->  | G135: =●【進行】結果入力表!H71 -> 0
A136: 第3節滋賀兵庫0 | B136: =●【進行】結果入力表!A72 -> 第3節 | C136: =●【進行】結果入力表!J72 -> 滋賀 | D136: =●【進行】結果入力表!C72 -> 兵庫 | E136: =●【進行】結果入力表!I72 -> 0 | F136: =IF(●【進行】結果入力表!G72="","",●【進行】結果入力表!G72) ->  | G136: =●【進行】結果入力表!H72 -> 0
A137: 第3節奈良滋賀田尻 哲司 | B137: =●【進行】結果入力表!A73 -> 第3節 | C137: =●【進行】結果入力表!J73 -> 奈良 | D137: =●【進行】結果入力表!C73 -> 滋賀 | E137: =●【進行】結果入力表!I73 -> 田尻 哲司 | F137: =IF(●【進行】結果入力表!G73="","",●【進行】結果入力表!G73) -> W | G137: =●【進行】結果入力表!H73 -> 0
A138: 第3節奈良滋賀吉向 翔平 | B138: =●【進行】結果入力表!A74 -> 第3節 | C138: =●【進行】結果入力表!J74 -> 奈良 | D138: =●【進行】結果入力表!C74 -> 滋賀 | E138: =●【進行】結果入力表!I74 -> 吉向 翔平 | F138: =IF(●【進行】結果入力表!G74="","",●【進行】結果入力表!G74) -> W | G138: =●【進行】結果入力表!H74 -> 0
A139: 第3節奈良滋賀巽 大地 | B139: =●【進行】結果入力表!A75 -> 第3節 | C139: =●【進行】結果入力表!J75 -> 奈良 | D139: =●【進行】結果入力表!C75 -> 滋賀 | E139: =●【進行】結果入力表!I75 -> 巽 大地 | F139: =IF(●【進行】結果入力表!G75="","",●【進行】結果入力表!G75) -> 39 | G139: =●【進行】結果入力表!H75 -> 0
A140: 第3節奈良滋賀山田 晃司 | B140: =●【進行】結果入力表!A76 -> 第3節 | C140: =●【進行】結果入力表!J76 -> 奈良 | D140: =●【進行】結果入力表!C76 -> 滋賀 | E140: =●【進行】結果入力表!I76 -> 山田 晃司 | F140: =IF(●【進行】結果入力表!G76="","",●【進行】結果入力表!G76) -> W | G140: =●【進行】結果入力表!H76 -> 0
A141: 第3節奈良滋賀鷲尾 隆杜 | B141: =●【進行】結果入力表!A77 -> 第3節 | C141: =●【進行】結果入力表!J77 -> 奈良 | D141: =●【進行】結果入力表!C77 -> 滋賀 | E141: =●【進行】結果入力表!I77 -> 鷲尾 隆杜 | F141: =IF(●【進行】結果入力表!G77="","",●【進行】結果入力表!G77) -> 89 | G141: =●【進行】結果入力表!H77 -> 0
A142: 第3節奈良滋賀長谷川 進 | B142: =●【進行】結果入力表!A78 -> 第3節 | C142: =●【進行】結果入力表!J78 -> 奈良 | D142: =●【進行】結果入力表!C78 -> 滋賀 | E142: =●【進行】結果入力表!I78 -> 長谷川 進 | F142: =IF(●【進行】結果入力表!G78="","",●【進行】結果入力表!G78) -> W | G142: =●【進行】結果入力表!H78 -> 0
A143: 第3節奈良滋賀0 | B143: =●【進行】結果入力表!A79 -> 第3節 | C143: =●【進行】結果入力表!J79 -> 奈良 | D143: =●【進行】結果入力表!C79 -> 滋賀 | E143: =●【進行】結果入力表!I79 -> 0 | F143: =IF(●【進行】結果入力表!G79="","",●【進行】結果入力表!G79) ->  | G143: =●【進行】結果入力表!H79 -> 0
A144: 第3節奈良滋賀0 | B144: =●【進行】結果入力表!A80 -> 第3節 | C144: =●【進行】結果入力表!J80 -> 奈良 | D144: =●【進行】結果入力表!C80 -> 滋賀 | E144: =●【進行】結果入力表!I80 -> 0 | F144: =IF(●【進行】結果入力表!G80="","",●【進行】結果入力表!G80) ->  | G144: =●【進行】結果入力表!H80 -> 0

Sheet 【準備】対戦カード
K1: =●【結果】個人成績表!$A$1 -> 第8回 神奈滋対抗戦 (奈良；キングスポット)
B3: 印刷範囲の設定 | K3: G-No | O3: T-No
N5: 所属
N6: 氏名
N7: 得点
N8: HR
O10: レフリー
B11: =●【結果】個人成績表!$A$1 -> 第8回 神奈滋対抗戦 (奈良；キングスポット) | K11: =●【結果】個人成績表!$A$1 -> 第8回 神奈滋対抗戦 (奈良；キングスポット) | T11: =●【結果】個人成績表!$A$1 -> 第8回 神奈滋対抗戦 (奈良；キングスポット) | AC11: =●【結果】個人成績表!$A$1 -> 第8回 神奈滋対抗戦 (奈良；キングスポット) | AL11: =●【結果】個人成績表!$A$1 -> 第8回 神奈滋対抗戦 (奈良；キングスポット) | AU11: =●【結果】個人成績表!$A$1 -> 第8回 神奈滋対抗戦 (奈良；キングスポット) | BD11: =●【結果】個人成績表!$A$1 -> 第8回 神奈滋対抗戦 (奈良；キングスポット) | BM11: =●【結果】個人成績表!$A$1 -> 第8回 神奈滋対抗戦 (奈良；キングスポット)
B13: G-No | C13: =●【進行】結果入力表!B9 -> 1 | F13: T-No | K13: G-No | L13: =●【進行】結果入力表!B10 -> 2 | O13: T-No | T13: G-No | U13: =●【進行】結果入力表!B11 -> 3 | X13: T-No | AC13: G-No | AD13: =●【進行】結果入力表!B12 -> 4 | AG13: T-No | AL13: G-No | AM13: =●【進行】結果入力表!B13 -> 5 | AP13: T-No | AU13: G-No | AV13: =●【進行】結果入力表!B14 -> 6 | AY13: T-No | BD13: G-No | BE13: =●【進行】結果入力表!B15 ->  | BH13: T-No | BM13: G-No | BN13: =●【進行】結果入力表!B16 ->  | BQ13: T-No
B15: =VLOOKUP(C13,●【進行】結果入力表!$B$9:$J$80,2,FALSE) -> 兵庫 | E15: 所属 | F15: =VLOOKUP(C13,●【進行】結果入力表!$B$9:$J$80,9,FALSE) -> 奈良 | K15: =VLOOKUP(L13,●【進行】結果入力表!$B$9:$J$80,2,FALSE) -> 兵庫 | N15: 所属 | O15: =VLOOKUP(L13,●【進行】結果入力表!$B$9:$J$80,9,FALSE) -> 奈良 | T15: =VLOOKUP(U13,●【進行】結果入力表!$B$9:$J$80,2,FALSE) -> 兵庫 | W15: 所属 | X15: =VLOOKUP(U13,●【進行】結果入力表!$B$9:$J$80,9,FALSE) -> 奈良 | AC15: =VLOOKUP(AD13,●【進行】結果入力表!$B$9:$J$80,2,FALSE) -> 兵庫 | AF15: 所属 | AG15: =VLOOKUP(AD13,●【進行】結果入力表!$B$9:$J$80,9,FALSE) -> 奈良 | AL15: =VLOOKUP(AM13,●【進行】結果入力表!$B$9:$J$80,2,FALSE) -> 兵庫 | AO15: 所属 | AP15: =VLOOKUP(AM13,●【進行】結果入力表!$B$9:$J$80,9,FALSE) -> 奈良 | AU15: =VLOOKUP(AV13,●【進行】結果入力表!$B$9:$J$80,2,FALSE) -> 兵庫 | AX15: 所属 | AY15: =VLOOKUP(AV13,●【進行】結果入力表!$B$9:$J$80,9,FALSE) -> 奈良 | BD15: =VLOOKUP(BE13,●【進行】結果入力表!$B$9:$J$80,2,FALSE) -> 兵庫 | BG15: 所属 | BH15: =VLOOKUP(BE13,●【進行】結果入力表!$B$9:$J$80,9,FALSE) -> 奈良 | BM15: =VLOOKUP(BN13,●【進行】結果入力表!$B$9:$J$80,2,FALSE) -> 兵庫 | BP15: 所属 | BQ15: =VLOOKUP(BN13,●【進行】結果入力表!$B$9:$J$80,9,FALSE) -> 奈良
B16: =VLOOKUP(C13,●【進行】結果入力表!$B$9:$J$80,3,FALSE) -> 宮本 一 | E16: 氏名 | F16: =VLOOKUP(C13,●【進行】結果入力表!$B$9:$J$80,8,FALSE) -> 田尻 哲司 | K16: =VLOOKUP(L13,●【進行】結果入力表!$B$9:$J$80,3,FALSE) -> 鐵山 泰三 | N16: 氏名 | O16: =VLOOKUP(L13,●【進行】結果入力表!$B$9:$J$80,8,FALSE) -> 吉向 翔平 | T16: =VLOOKUP(U13,●【進行】結果入力表!$B$9:$J$80,3,FALSE) -> 中尾 亮太 | W16: 氏名 | X16: =VLOOKUP(U13,●【進行】結果入力表!$B$9:$J$80,8,FALSE) -> 巽 大地 | AC16: =VLOOKUP(AD13,●【進行】結果入力表!$B$9:$J$80,3,FALSE) -> 平井 洸志 | AF16: 氏名 | AG16: =VLOOKUP(AD13,●【進行】結果入力表!$B$9:$J$80,8,FALSE) -> 山田 晃司 | AL16: =VLOOKUP(AM13,●【進行】結果入力表!$B$9:$J$80,3,FALSE) -> 堂園 雅也 | AO16: 氏名 | AP16: =VLOOKUP(AM13,●【進行】結果入力表!$B$9:$J$80,8,FALSE) -> 鷲尾 隆杜 | AU16: =VLOOKUP(AV13,●【進行】結果入力表!$B$9:$J$80,3,FALSE) -> 藤中 健太郎 | AX16: 氏名 | AY16: =VLOOKUP(AV13,●【進行】結果入力表!$B$9:$J$80,8,FALSE) -> 長谷川 進 | BD16: =VLOOKUP(BE13,●【進行】結果入力表!$B$9:$J$80,3,FALSE) -> 0 | BG16: 氏名 | BH16: =VLOOKUP(BE13,●【進行】結果入力表!$B$9:$J$80,8,FALSE) -> 0 | BM16: =VLOOKUP(BN13,●【進行】結果入力表!$B$9:$J$80,3,FALSE) -> 0 | BP16: 氏名 | BQ16: =VLOOKUP(BN13,●【進行】結果入力表!$B$9:$J$80,8,FALSE) -> 0
E17: 得点 | N17: 得点 | W17: 得点 | AF17: 得点 | AO17: 得点 | AX17: 得点 | BG17: 得点 | BP17: 得点
E18: HR | N18: HR | W18: HR | AF18: HR | AO18: HR | AX18: HR | BG18: HR | BP18: HR
B21: =●【結果】個人成績表!$A$1 -> 第8回 神奈滋対抗戦 (奈良；キングスポット) | K21: =●【結果】個人成績表!$A$1 -> 第8回 神奈滋対抗戦 (奈良；キングスポット) | T21: =●【結果】個人成績表!$A$1 -> 第8回 神奈滋対抗戦 (奈良；キングスポット) | AC21: =●【結果】個人成績表!$A$1 -> 第8回 神奈滋対抗戦 (奈良；キングスポット) | AL21: =●【結果】個人成績表!$A$1 -> 第8回 神奈滋対抗戦 (奈良；キングスポット) | AU21: =●【結果】個人成績表!$A$1 -> 第8回 神奈滋対抗戦 (奈良；キングスポット) | BD21: =●【結果】個人成績表!$A$1 -> 第8回 神奈滋対抗戦 (奈良；キングスポット) | BM21: =●【結果】個人成績表!$A$1 -> 第8回 神奈滋対抗戦 (奈良；キングスポット)
B23: G-No | C23: =●【進行】結果入力表!B17 -> 7 | F23: T-No | K23: G-No | L23: =●【進行】結果入力表!B18 -> 8 | O23: T-No | T23: G-No | U23: =●【進行】結果入力表!B19 -> 9 | X23: T-No | AC23: G-No | AD23: =●【進行】結果入力表!B20 -> 10 | AG23: T-No | AL23: G-No | AM23: =●【進行】結果入力表!B21 -> 11 | AP23: T-No | AU23: G-No | AV23: =●【進行】結果入力表!B22 -> 12 | AY23: T-No | BD23: G-No | BE23: =●【進行】結果入力表!B23 ->  | BH23: T-No | BM23: G-No | BN23: =●【進行】結果入力表!B24 ->  | BQ23: T-No
B25: =VLOOKUP(C23,●【進行】結果入力表!$B$9:$J$80,2,FALSE) -> 兵庫 | E25: 所属 | F25: =VLOOKUP(C23,●【進行】結果入力表!$B$9:$J$80,9,FALSE) -> 滋賀 | K25: =VLOOKUP(L23,●【進行】結果入力表!$B$9:$J$80,2,FALSE) -> 兵庫 | N25: 所属 | O25: =VLOOKUP(L23,●【進行】結果入力表!$B$9:$J$80,9,FALSE) -> 滋賀 | T25: =VLOOKUP(U23,●【進行】結果入力表!$B$9:$J$80,2,FALSE) -> 兵庫 | W25: 所属 | X25: =VLOOKUP(U23,●【進行】結果入力表!$B$9:$J$80,9,FALSE) -> 滋賀 | AC25: =VLOOKUP(AD23,●【進行】結果入力表!$B$9:$J$80,2,FALSE) -> 兵庫 | AF25: 所属 | AG25: =VLOOKUP(AD23,●【進行】結果入力表!$B$9:$J$80,9,FALSE) -> 滋賀 | AL25: =VLOOKUP(AM23,●【進行】結果入力表!$B$9:$J$80,2,FALSE) -> 兵庫 | AO25: 所属 | AP25: =VLOOKUP(AM23,●【進行】結果入力表!$B$9:$J$80,9,FALSE) -> 滋賀 | AU25: =VLOOKUP(AV23,●【進行】結果入力表!$B$9:$J$80,2,FALSE) -> 兵庫 | AX25: 所属 | AY25: =VLOOKUP(AV23,●【進行】結果入力表!$B$9:$J$80,9,FALSE) -> 滋賀 | BD25: =VLOOKUP(BE23,●【進行】結果入力表!$B$9:$J$80,2,FALSE) -> 兵庫 | BG25: 所属 | BH25: =VLOOKUP(BE23,●【進行】結果入力表!$B$9:$J$80,9,FALSE) -> 奈良 | BM25: =VLOOKUP(BN23,●【進行】結果入力表!$B$9:$J$80,2,FALSE) -> 兵庫 | BP25: 所属 | BQ25: =VLOOKUP(BN23,●【進行】結果入力表!$B$9:$J$80,9,FALSE) -> 奈良
B26: =VLOOKUP(C23,●【進行】結果入力表!$B$9:$J$80,3,FALSE) -> 宮本 一 | E26: 氏名 | F26: =VLOOKUP(C23,●【進行】結果入力表!$B$9:$J$80,8,FALSE) -> 大橋 義治 | K26: =VLOOKUP(L23,●【進行】結果入力表!$B$9:$J$80,3,FALSE) -> 鐵山 泰三 | N26: 氏名 | O26: =VLOOKUP(L23,●【進行】結果入力表!$B$9:$J$80,8,FALSE) -> 大橋 正寛 | T26: =VLOOKUP(U23,●【進行】結果入力表!$B$9:$J$80,3,FALSE) -> 中尾 亮太 | W26: 氏名 | X26: =VLOOKUP(U23,●【進行】結果入力表!$B$9:$J$80,8,FALSE) -> 西峰 久祐 | AC26: =VLOOKUP(AD23,●【進行】結果入力表!$B$9:$J$80,3,FALSE) -> 平井 洸志 | AF26: 氏名 | AG26: =VLOOKUP(AD23,●【進行】結果入力表!$B$9:$J$80,8,FALSE) -> 山中 康寛 | AL26: =VLOOKUP(AM23,●【進行】結果入力表!$B$9:$J$80,3,FALSE) -> 堂園 雅也 | AO26: 氏名 | AP26: =VLOOKUP(AM23,●【進行】結果入力表!$B$9:$J$80,8,FALSE) -> 御手洗 茂 | AU26: =VLOOKUP(AV23,●【進行】結果入力表!$B$9:$J$80,3,FALSE) -> 藤中 健太郎 | AX26: 氏名 | AY26: =VLOOKUP(AV23,●【進行】結果入力表!$B$9:$J$80,8,FALSE) -> 高島 太一 | BD26: =VLOOKUP(BE23,●【進行】結果入力表!$B$9:$J$80,3,FALSE) -> 0 | BG26: 氏名 | BH26: =VLOOKUP(BE23,●【進行】結果入力表!$B$9:$J$80,8,FALSE) -> 0 | BM26: =VLOOKUP(BN23,●【進行】結果入力表!$B$9:$J$80,3,FALSE) -> 0 | BP26: 氏名 | BQ26: =VLOOKUP(BN23,●【進行】結果入力表!$B$9:$J$80,8,FALSE) -> 0
E27: 得点 | N27: 得点 | W27: 得点 | AF27: 得点 | AO27: 得点 | AX27: 得点 | BG27: 得点 | BP27: 得点
E28: HR | N28: HR | W28: HR | AF28: HR | AO28: HR | AX28: HR | BG28: HR | BP28: HR
B31: =●【結果】個人成績表!$A$1 -> 第8回 神奈滋対抗戦 (奈良；キングスポット) | K31: =●【結果】個人成績表!$A$1 -> 第8回 神奈滋対抗戦 (奈良；キングスポット) | T31: =●【結果】個人成績表!$A$1 -> 第8回 神奈滋対抗戦 (奈良；キングスポット) | AC31: =●【結果】個人成績表!$A$1 -> 第8回 神奈滋対抗戦 (奈良；キングスポット) | AL31: =●【結果】個人成績表!$A$1 -> 第8回 神奈滋対抗戦 (奈良；キングスポット) | AU31: =●【結果】個人成績表!$A$1 -> 第8回 神奈滋対抗戦 (奈良；キングスポット) | BD31: =●【結果】個人成績表!$A$1 -> 第8回 神奈滋対抗戦 (奈良；キングスポット) | BM31: =●【結果】個人成績表!$A$1 -> 第8回 神奈滋対抗戦 (奈良；キングスポット)
B33: G-No | C33: =●【進行】結果入力表!B25 -> 13 | F33: T-No | K33: G-No | L33: =●【進行】結果入力表!B26 -> 14 | O33: T-No | T33: G-No | U33: =●【進行】結果入力表!B27 -> 15 | X33: T-No | AC33: G-No | AD33: =●【進行】結果入力表!B28 -> 16 | AG33: T-No | AL33: G-No | AM33: =●【進行】結果入力表!B29 -> 17 | AP33: T-No | AU33: G-No | AV33: =●【進行】結果入力表!B30 -> 18 | AY33: T-No | BD33: G-No | BE33: =●【進行】結果入力表!B31 ->  | BH33: T-No | BM33: G-No | BN33: =●【進行】結果入力表!B32 ->  | BQ33: T-No
B35: =VLOOKUP(C33,●【進行】結果入力表!$B$9:$J$80,2,FALSE) -> 滋賀 | E35: 所属 | F35: =VLOOKUP(C33,●【進行】結果入力表!$B$9:$J$80,9,FALSE) -> 奈良 | K35: =VLOOKUP(L33,●【進行】結果入力表!$B$9:$J$80,2,FALSE) -> 滋賀 | N35: 所属 | O35: =VLOOKUP(L33,●【進行】結果入力表!$B$9:$J$80,9,FALSE) -> 奈良 | T35: =VLOOKUP(U33,●【進行】結果入力表!$B$9:$J$80,2,FALSE) -> 滋賀 | W35: 所属 | X35: =VLOOKUP(U33,●【進行】結果入力表!$B$9:$J$80,9,FALSE) -> 奈良 | AC35: =VLOOKUP(AD33,●【進行】結果入力表!$B$9:$J$80,2,FALSE) -> 滋賀 | AF35: 所属 | AG35: =VLOOKUP(AD33,●【進行】結果入力表!$B$9:$J$80,9,FALSE) -> 奈良 | AL35: =VLOOKUP(AM33,●【進行】結果入力表!$B$9:$J$80,2,FALSE) -> 滋賀 | AO35: 所属 | AP35: =VLOOKUP(AM33,●【進行】結果入力表!$B$9:$J$80,9,FALSE) -> 奈良 | AU35: =VLOOKUP(AV33,●【進行】結果入力表!$B$9:$J$80,2,FALSE) -> 滋賀 | AX35: 所属 | AY35: =VLOOKUP(AV33,●【進行】結果入力表!$B$9:$J$80,9,FALSE) -> 奈良 | BD35: =VLOOKUP(BE33,●【進行】結果入力表!$B$9:$J$80,2,FALSE) -> 兵庫 | BG35: 所属 | BH35: =VLOOKUP(BE33,●【進行】結果入力表!$B$9:$J$80,9,FALSE) -> 奈良 | BM35: =VLOOKUP(BN33,●【進行】結果入力表!$B$9:$J$80,2,FALSE) -> 兵庫 | BP35: 所属 | BQ35: =VLOOKUP(BN33,●【進行】結果入力表!$B$9:$J$80,9,FALSE) -> 奈良
B36: =VLOOKUP(C33,●【進行】結果入力表!$B$9:$J$80,3,FALSE) -> 大橋 義治 | E36: 氏名 | F36: =VLOOKUP(C33,●【進行】結果入力表!$B$9:$J$80,8,FALSE) -> 田尻 哲司 | K36: =VLOOKUP(L33,●【進行】結果入力表!$B$9:$J$80,3,FALSE) -> 大橋 正寛 | N36: 氏名 | O36: =VLOOKUP(L33,●【進行】結果入力表!$B$9:$J$80,8,FALSE) -> 吉向 翔平 | T36: =VLOOKUP(U33,●【進行】結果入力表!$B$9:$J$80,3,FALSE) -> 西峰 久祐 | W36: 氏名 | X36: =VLOOKUP(U33,●【進行】結果入力表!$B$9:$J$80,8,FALSE) -> 巽 大地 | AC36: =VLOOKUP(AD33,●【進行】結果入力表!$B$9:$J$80,3,FALSE) -> 山中 康寛 | AF36: 氏名 | AG36: =VLOOKUP(AD33,●【進行】結果入力表!$B$9:$J$80,8,FALSE) -> 山田 晃司 | AL36: =VLOOKUP(AM33,●【進行】結果入力表!$B$9:$J$80,3,FALSE) -> 御手洗 茂 | AO36: 氏名 | AP36: =VLOOKUP(AM33,●【進行】結果入力表!$B$9:$J$80,8,FALSE) -> 鷲尾 隆杜 | AU36: =VLOOKUP(AV33,●【進行】結果入力表!$B$9:$J$80,3,FALSE) -> 高島 太一 | AX36: 氏名 | AY36: =VLOOKUP(AV33,●【進行】結果入力表!$B$9:$J$80,8,FALSE) -> 長谷川 進 | BD36: =VLOOKUP(BE33,●【進行】結果入力表!$B$9:$J$80,3,FALSE) -> 0 | BG36: 氏名 | BH36: =VLOOKUP(BE33,●【進行】結果入力表!$B$9:$J$80,8,FALSE) -> 0 | BM36: =VLOOKUP(BN33,●【進行】結果入力表!$B$9:$J$80,3,FALSE) -> 0 | BP36: 氏名 | BQ36: =VLOOKUP(BN33,●【進行】結果入力表!$B$9:$J$80,8,FALSE) -> 0
E37: 得点 | N37: 得点 | W37: 得点 | AF37: 得点 | AO37: 得点 | AX37: 得点 | BG37: 得点 | BP37: 得点
E38: HR | N38: HR | W38: HR | AF38: HR | AO38: HR | AX38: HR | BG38: HR | BP38: HR
B41: =●【結果】個人成績表!$A$1 -> 第8回 神奈滋対抗戦 (奈良；キングスポット) | K41: =●【結果】個人成績表!$A$1 -> 第8回 神奈滋対抗戦 (奈良；キングスポット) | T41: =●【結果】個人成績表!$A$1 -> 第8回 神奈滋対抗戦 (奈良；キングスポット) | AC41: =●【結果】個人成績表!$A$1 -> 第8回 神奈滋対抗戦 (奈良；キングスポット) | AL41: =●【結果】個人成績表!$A$1 -> 第8回 神奈滋対抗戦 (奈良；キングスポット) | AU41: =●【結果】個人成績表!$A$1 -> 第8回 神奈滋対抗戦 (奈良；キングスポット) | BD41: =●【結果】個人成績表!$A$1 -> 第8回 神奈滋対抗戦 (奈良；キングスポット) | BM41: =●【結果】個人成績表!$A$1 -> 第8回 神奈滋対抗戦 (奈良；キングスポット)
B43: G-No | C43: =●【進行】結果入力表!B33 -> 19 | F43: T-No | K43: G-No | L43: =●【進行】結果入力表!B34 -> 20 | O43: T-No | T43: G-No | U43: =●【進行】結果入力表!B35 -> 21 | X43: T-No | AC43: G-No | AD43: =●【進行】結果入力表!B36 -> 22 | AG43: T-No | AL43: G-No | AM43: =●【進行】結果入力表!B37 -> 23 | AP43: T-No | AU43: G-No | AV43: =●【進行】結果入力表!B38 -> 24 | AY43: T-No | BD43: G-No | BE43: =●【進行】結果入力表!B39 ->  | BH43: T-No | BM43: G-No | BN43: =●【進行】結果入力表!B40 ->  | BQ43: T-No
B45: =VLOOKUP(C43,●【進行】結果入力表!$B$9:$J$80,2,FALSE) -> 兵庫 | E45: 所属 | F45: =VLOOKUP(C43,●【進行】結果入力表!$B$9:$J$80,9,FALSE) -> 奈良 | K45: =VLOOKUP(L43,●【進行】結果入力表!$B$9:$J$80,2,FALSE) -> 兵庫 | N45: 所属 | O45: =VLOOKUP(L43,●【進行】結果入力表!$B$9:$J$80,9,FALSE) -> 奈良 | T45: =VLOOKUP(U43,●【進行】結果入力表!$B$9:$J$80,2,FALSE) -> 兵庫 | W45: 所属 | X45: =VLOOKUP(U43,●【進行】結果入力表!$B$9:$J$80,9,FALSE) -> 奈良 | AC45: =VLOOKUP(AD43,●【進行】結果入力表!$B$9:$J$80,2,FALSE) -> 兵庫 | AF45: 所属 | AG45: =VLOOKUP(AD43,●【進行】結果入力表!$B$9:$J$80,9,FALSE) -> 奈良 | AL45: =VLOOKUP(AM43,●【進行】結果入力表!$B$9:$J$80,2,FALSE) -> 兵庫 | AO45: 所属 | AP45: =VLOOKUP(AM43,●【進行】結果入力表!$B$9:$J$80,9,FALSE) -> 奈良 | AU45: =VLOOKUP(AV43,●【進行】結果入力表!$B$9:$J$80,2,FALSE) -> 兵庫 | AX45: 所属 | AY45: =VLOOKUP(AV43,●【進行】結果入力表!$B$9:$J$80,9,FALSE) -> 奈良 | BD45: =VLOOKUP(BE43,●【進行】結果入力表!$B$9:$J$80,2,FALSE) -> 兵庫 | BG45: 所属 | BH45: =VLOOKUP(BE43,●【進行】結果入力表!$B$9:$J$80,9,FALSE) -> 奈良 | BM45: =VLOOKUP(BN43,●【進行】結果入力表!$B$9:$J$80,2,FALSE) -> 兵庫 | BP45: 所属 | BQ45: =VLOOKUP(BN43,●【進行】結果入力表!$B$9:$J$80,9,FALSE) -> 奈良
B46: =VLOOKUP(C43,●【進行】結果入力表!$B$9:$J$80,3,FALSE) -> 堂園 雅也 | E46: 氏名 | F46: =VLOOKUP(C43,●【進行】結果入力表!$B$9:$J$80,8,FALSE) -> 山田 晃司 | K46: =VLOOKUP(L43,●【進行】結果入力表!$B$9:$J$80,3,FALSE) -> 藤中 健太郎 | N46: 氏名 | O46: =VLOOKUP(L43,●【進行】結果入力表!$B$9:$J$80,8,FALSE) -> 鷲尾 隆杜 | T46: =VLOOKUP(U43,●【進行】結果入力表!$B$9:$J$80,3,FALSE) -> 宮本 一 | W46: 氏名 | X46: =VLOOKUP(U43,●【進行】結果入力表!$B$9:$J$80,8,FALSE) -> 長谷川 進 | AC46: =VLOOKUP(AD43,●【進行】結果入力表!$B$9:$J$80,3,FALSE) -> 鐵山 泰三 | AF46: 氏名 | AG46: =VLOOKUP(AD43,●【進行】結果入力表!$B$9:$J$80,8,FALSE) -> 田尻 哲司 | AL46: =VLOOKUP(AM43,●【進行】結果入力表!$B$9:$J$80,3,FALSE) -> 中尾 亮太 | AO46: 氏名 | AP46: =VLOOKUP(AM43,●【進行】結果入力表!$B$9:$J$80,8,FALSE) -> 吉向 翔平 | AU46: =VLOOKUP(AV43,●【進行】結果入力表!$B$9:$J$80,3,FALSE) -> 平井 洸志 | AX46: 氏名 | AY46: =VLOOKUP(AV43,●【進行】結果入力表!$B$9:$J$80,8,FALSE) -> 巽 大地 | BD46: =VLOOKUP(BE43,●【進行】結果入力表!$B$9:$J$80,3,FALSE) -> 0 | BG46: 氏名 | BH46: =VLOOKUP(BE43,●【進行】結果入力表!$B$9:$J$80,8,FALSE) -> 0 | BM46: =VLOOKUP(BN43,●【進行】結果入力表!$B$9:$J$80,3,FALSE) -> 0 | BP46: 氏名 | BQ46: =VLOOKUP(BN43,●【進行】結果入力表!$B$9:$J$80,8,FALSE) -> 0
E47: 得点 | N47: 得点 | W47: 得点 | AF47: 得点 | AO47: 得点 | AX47: 得点 | BG47: 得点 | BP47: 得点
E48: HR | N48: HR | W48: HR | AF48: HR | AO48: HR | AX48: HR | BG48: HR | BP48: HR
B51: =●【結果】個人成績表!$A$1 -> 第8回 神奈滋対抗戦 (奈良；キングスポット) | K51: =●【結果】個人成績表!$A$1 -> 第8回 神奈滋対抗戦 (奈良；キングスポット) | T51: =●【結果】個人成績表!$A$1 -> 第8回 神奈滋対抗戦 (奈良；キングスポット) | AC51: =●【結果】個人成績表!$A$1 -> 第8回 神奈滋対抗戦 (奈良；キングスポット) | AL51: =●【結果】個人成績表!$A$1 -> 第8回 神奈滋対抗戦 (奈良；キングスポット) | AU51: =●【結果】個人成績表!$A$1 -> 第8回 神奈滋対抗戦 (奈良；キングスポット) | BD51: =●【結果】個人成績表!$A$1 -> 第8回 神奈滋対抗戦 (奈良；キングスポット) | BM51: =●【結果】個人成績表!$A$1 -> 第8回 神奈滋対抗戦 (奈良；キングスポット)
B53: G-No | C53: =●【進行】結果入力表!B41 -> 25 | F53: T-No | K53: G-No | L53: =●【進行】結果入力表!B42 -> 26 | O53: T-No | T53: G-No | U53: =●【進行】結果入力表!B43 -> 27 | X53: T-No | AC53: G-No | AD53: =●【進行】結果入力表!B44 -> 28 | AG53: T-No | AL53: G-No | AM53: =●【進行】結果入力表!B45 -> 29 | AP53: T-No | AU53: G-No | AV53: =●【進行】結果入力表!B46 -> 30 | AY53: T-No | BD53: G-No | BE53: =●【進行】結果入力表!B47 ->  | BH53: T-No | BM53: G-No | BN53: =●【進行】結果入力表!B48 ->  | BQ53: T-No
B55: =VLOOKUP(C53,●【進行】結果入力表!$B$9:$J$80,2,FALSE) -> 兵庫 | E55: 所属 | F55: =VLOOKUP(C53,●【進行】結果入力表!$B$9:$J$80,9,FALSE) -> 滋賀 | K55: =VLOOKUP(L53,●【進行】結果入力表!$B$9:$J$80,2,FALSE) -> 兵庫 | N55: 所属 | O55: =VLOOKUP(L53,●【進行】結果入力表!$B$9:$J$80,9,FALSE) -> 滋賀 | T55: =VLOOKUP(U53,●【進行】結果入力表!$B$9:$J$80,2,FALSE) -> 兵庫 | W55: 所属 | X55: =VLOOKUP(U53,●【進行】結果入力表!$B$9:$J$80,9,FALSE) -> 滋賀 | AC55: =VLOOKUP(AD53,●【進行】結果入力表!$B$9:$J$80,2,FALSE) -> 兵庫 | AF55: 所属 | AG55: =VLOOKUP(AD53,●【進行】結果入力表!$B$9:$J$80,9,FALSE) -> 滋賀 | AL55: =VLOOKUP(AM53,●【進行】結果入力表!$B$9:$J$80,2,FALSE) -> 兵庫 | AO55: 所属 | AP55: =VLOOKUP(AM53,●【進行】結果入力表!$B$9:$J$80,9,FALSE) -> 滋賀 | AU55: =VLOOKUP(AV53,●【進行】結果入力表!$B$9:$J$80,2,FALSE) -> 兵庫 | AX55: 所属 | AY55: =VLOOKUP(AV53,●【進行】結果入力表!$B$9:$J$80,9,FALSE) -> 滋賀 | BD55: =VLOOKUP(BE53,●【進行】結果入力表!$B$9:$J$80,2,FALSE) -> 兵庫 | BG55: 所属 | BH55: =VLOOKUP(BE53,●【進行】結果入力表!$B$9:$J$80,9,FALSE) -> 奈良 | BM55: =VLOOKUP(BN53,●【進行】結果入力表!$B$9:$J$80,2,FALSE) -> 兵庫 | BP55: 所属 | BQ55: =VLOOKUP(BN53,●【進行】結果入力表!$B$9:$J$80,9,FALSE) -> 奈良
B56: =VLOOKUP(C53,●【進行】結果入力表!$B$9:$J$80,3,FALSE) -> 堂園 雅也 | E56: 氏名 | F56: =VLOOKUP(C53,●【進行】結果入力表!$B$9:$J$80,8,FALSE) -> 高島 太一 | K56: =VLOOKUP(L53,●【進行】結果入力表!$B$9:$J$80,3,FALSE) -> 藤中 健太郎 | N56: 氏名 | O56: =VLOOKUP(L53,●【進行】結果入力表!$B$9:$J$80,8,FALSE) -> 大橋 義治 | T56: =VLOOKUP(U53,●【進行】結果入力表!$B$9:$J$80,3,FALSE) -> 宮本 一 | W56: 氏名 | X56: =VLOOKUP(U53,●【進行】結果入力表!$B$9:$J$80,8,FALSE) -> 大橋 正寛 | AC56: =VLOOKUP(AD53,●【進行】結果入力表!$B$9:$J$80,3,FALSE) -> 鐵山 泰三 | AF56: 氏名 | AG56: =VLOOKUP(AD53,●【進行】結果入力表!$B$9:$J$80,8,FALSE) -> 西峰 久祐 | AL56: =VLOOKUP(AM53,●【進行】結果入力表!$B$9:$J$80,3,FALSE) -> 中尾 亮太 | AO56: 氏名 | AP56: =VLOOKUP(AM53,●【進行】結果入力表!$B$9:$J$80,8,FALSE) -> 山中 康寛 | AU56: =VLOOKUP(AV53,●【進行】結果入力表!$B$9:$J$80,3,FALSE) -> 平井 洸志 | AX56: 氏名 | AY56: =VLOOKUP(AV53,●【進行】結果入力表!$B$9:$J$80,8,FALSE) -> 御手洗 茂 | BD56: =VLOOKUP(BE53,●【進行】結果入力表!$B$9:$J$80,3,FALSE) -> 0 | BG56: 氏名 | BH56: =VLOOKUP(BE53,●【進行】結果入力表!$B$9:$J$80,8,FALSE) -> 0 | BM56: =VLOOKUP(BN53,●【進行】結果入力表!$B$9:$J$80,3,FALSE) -> 0 | BP56: 氏名 | BQ56: =VLOOKUP(BN53,●【進行】結果入力表!$B$9:$J$80,8,FALSE) -> 0
E57: 得点 | N57: 得点 | W57: 得点 | AF57: 得点 | AO57: 得点 | AX57: 得点 | BG57: 得点 | BP57: 得点
E58: HR | N58: HR | W58: HR | AF58: HR | AO58: HR | AX58: HR | BG58: HR | BP58: HR
B61: =●【結果】個人成績表!$A$1 -> 第8回 神奈滋対抗戦 (奈良；キングスポット) | K61: =●【結果】個人成績表!$A$1 -> 第8回 神奈滋対抗戦 (奈良；キングスポット) | T61: =●【結果】個人成績表!$A$1 -> 第8回 神奈滋対抗戦 (奈良；キングスポット) | AC61: =●【結果】個人成績表!$A$1 -> 第8回 神奈滋対抗戦 (奈良；キングスポット) | AL61: =●【結果】個人成績表!$A$1 -> 第8回 神奈滋対抗戦 (奈良；キングスポット) | AU61: =●【結果】個人成績表!$A$1 -> 第8回 神奈滋対抗戦 (奈良；キングスポット) | BD61: =●【結果】個人成績表!$A$1 -> 第8回 神奈滋対抗戦 (奈良；キングスポット) | BM61: =●【結果】個人成績表!$A$1 -> 第8回 神奈滋対抗戦 (奈良；キングスポット)
B63: G-No | C63: =●【進行】結果入力表!B49 -> 31 | F63: T-No | K63: G-No | L63: =●【進行】結果入力表!B50 -> 32 | O63: T-No | T63: G-No | U63: =●【進行】結果入力表!B51 -> 33 | X63: T-No | AC63: G-No | AD63: =●【進行】結果入力表!B52 -> 34 | AG63: T-No | AL63: G-No | AM63: =●【進行】結果入力表!B53 -> 35 | AP63: T-No | AU63: G-No | AV63: =●【進行】結果入力表!B54 -> 36 | AY63: T-No | BD63: G-No | BE63: =●【進行】結果入力表!B55 ->  | BH63: T-No | BM63: G-No | BN63: =●【進行】結果入力表!B56 ->  | BQ63: T-No
B65: =VLOOKUP(C63,●【進行】結果入力表!$B$9:$J$80,2,FALSE) -> 滋賀 | E65: 所属 | F65: =VLOOKUP(C63,●【進行】結果入力表!$B$9:$J$80,9,FALSE) -> 奈良 | K65: =VLOOKUP(L63,●【進行】結果入力表!$B$9:$J$80,2,FALSE) -> 滋賀 | N65: 所属 | O65: =VLOOKUP(L63,●【進行】結果入力表!$B$9:$J$80,9,FALSE) -> 奈良 | T65: =VLOOKUP(U63,●【進行】結果入力表!$B$9:$J$80,2,FALSE) -> 滋賀 | W65: 所属 | X65: =VLOOKUP(U63,●【進行】結果入力表!$B$9:$J$80,9,FALSE) -> 奈良 | AC65: =VLOOKUP(AD63,●【進行】結果入力表!$B$9:$J$80,2,FALSE) -> 滋賀 | AF65: 所属 | AG65: =VLOOKUP(AD63,●【進行】結果入力表!$B$9:$J$80,9,FALSE) -> 奈良 | AL65: =VLOOKUP(AM63,●【進行】結果入力表!$B$9:$J$80,2,FALSE) -> 滋賀 | AO65: 所属 | AP65: =VLOOKUP(AM63,●【進行】結果入力表!$B$9:$J$80,9,FALSE) -> 奈良 | AU65: =VLOOKUP(AV63,●【進行】結果入力表!$B$9:$J$80,2,FALSE) -> 滋賀 | AX65: 所属 | AY65: =VLOOKUP(AV63,●【進行】結果入力表!$B$9:$J$80,9,FALSE) -> 奈良 | BD65: =VLOOKUP(BE63,●【進行】結果入力表!$B$9:$J$80,2,FALSE) -> 兵庫 | BG65: 所属 | BH65: =VLOOKUP(BE63,●【進行】結果入力表!$B$9:$J$80,9,FALSE) -> 奈良 | BM65: =VLOOKUP(BN63,●【進行】結果入力表!$B$9:$J$80,2,FALSE) -> 兵庫 | BP65: 所属 | BQ65: =VLOOKUP(BN63,●【進行】結果入力表!$B$9:$J$80,9,FALSE) -> 奈良
B66: =VLOOKUP(C63,●【進行】結果入力表!$B$9:$J$80,3,FALSE) -> 高島 太一 | E66: 氏名 | F66: =VLOOKUP(C63,●【進行】結果入力表!$B$9:$J$80,8,FALSE) -> 山田 晃司 | K66: =VLOOKUP(L63,●【進行】結果入力表!$B$9:$J$80,3,FALSE) -> 大橋 義治 | N66: 氏名 | O66: =VLOOKUP(L63,●【進行】結果入力表!$B$9:$J$80,8,FALSE) -> 鷲尾 隆杜 | T66: =VLOOKUP(U63,●【進行】結果入力表!$B$9:$J$80,3,FALSE) -> 大橋 正寛 | W66: 氏名 | X66: =VLOOKUP(U63,●【進行】結果入力表!$B$9:$J$80,8,FALSE) -> 長谷川 進 | AC66: =VLOOKUP(AD63,●【進行】結果入力表!$B$9:$J$80,3,FALSE) -> 西峰 久祐 | AF66: 氏名 | AG66: =VLOOKUP(AD63,●【進行】結果入力表!$B$9:$J$80,8,FALSE) -> 田尻 哲司 | AL66: =VLOOKUP(AM63,●【進行】結果入力表!$B$9:$J$80,3,FALSE) -> 山中 康寛 | AO66: 氏名 | AP66: =VLOOKUP(AM63,●【進行】結果入力表!$B$9:$J$80,8,FALSE) -> 吉向 翔平 | AU66: =VLOOKUP(AV63,●【進行】結果入力表!$B$9:$J$80,3,FALSE) -> 御手洗 茂 | AX66: 氏名 | AY66: =VLOOKUP(AV63,●【進行】結果入力表!$B$9:$J$80,8,FALSE) -> 巽 大地 | BD66: =VLOOKUP(BE63,●【進行】結果入力表!$B$9:$J$80,3,FALSE) -> 0 | BG66: 氏名 | BH66: =VLOOKUP(BE63,●【進行】結果入力表!$B$9:$J$80,8,FALSE) -> 0 | BM66: =VLOOKUP(BN63,●【進行】結果入力表!$B$9:$J$80,3,FALSE) -> 0 | BP66: 氏名 | BQ66: =VLOOKUP(BN63,●【進行】結果入力表!$B$9:$J$80,8,FALSE) -> 0
E67: 得点 | N67: 得点 | W67: 得点 | AF67: 得点 | AO67: 得点 | AX67: 得点 | BG67: 得点 | BP67: 得点
E68: HR | N68: HR | W68: HR | AF68: HR | AO68: HR | AX68: HR | BG68: HR | BP68: HR
B71: =●【結果】個人成績表!$A$1 -> 第8回 神奈滋対抗戦 (奈良；キングスポット) | K71: =●【結果】個人成績表!$A$1 -> 第8回 神奈滋対抗戦 (奈良；キングスポット) | T71: =●【結果】個人成績表!$A$1 -> 第8回 神奈滋対抗戦 (奈良；キングスポット) | AC71: =●【結果】個人成績表!$A$1 -> 第8回 神奈滋対抗戦 (奈良；キングスポット) | AL71: =●【結果】個人成績表!$A$1 -> 第8回 神奈滋対抗戦 (奈良；キングスポット) | AU71: =●【結果】個人成績表!$A$1 -> 第8回 神奈滋対抗戦 (奈良；キングスポット) | BD71: =●【結果】個人成績表!$A$1 -> 第8回 神奈滋対抗戦 (奈良；キングスポット) | BM71: =●【結果】個人成績表!$A$1 -> 第8回 神奈滋対抗戦 (奈良；キングスポット)
B73: G-No | C73: =●【進行】結果入力表!B57 -> 37 | F73: T-No | K73: G-No | L73: =●【進行】結果入力表!B58 -> 38 | O73: T-No | T73: G-No | U73: =●【進行】結果入力表!B59 -> 39 | X73: T-No | AC73: G-No | AD73: =●【進行】結果入力表!B60 -> 40 | AG73: T-No | AL73: G-No | AM73: =●【進行】結果入力表!B61 -> 41 | AP73: T-No | AU73: G-No | AV73: =●【進行】結果入力表!B62 -> 42 | AY73: T-No | BD73: G-No | BE73: =●【進行】結果入力表!B63 ->  | BH73: T-No | BM73: G-No | BN73: =●【進行】結果入力表!B64 ->  | BQ73: T-No
B75: =VLOOKUP(C73,●【進行】結果入力表!$B$9:$J$80,2,FALSE) -> 兵庫 | E75: 所属 | F75: =VLOOKUP(C73,●【進行】結果入力表!$B$9:$J$80,9,FALSE) -> 奈良 | K75: =VLOOKUP(L73,●【進行】結果入力表!$B$9:$J$80,2,FALSE) -> 兵庫 | N75: 所属 | O75: =VLOOKUP(L73,●【進行】結果入力表!$B$9:$J$80,9,FALSE) -> 奈良 | T75: =VLOOKUP(U73,●【進行】結果入力表!$B$9:$J$80,2,FALSE) -> 兵庫 | W75: 所属 | X75: =VLOOKUP(U73,●【進行】結果入力表!$B$9:$J$80,9,FALSE) -> 奈良 | AC75: =VLOOKUP(AD73,●【進行】結果入力表!$B$9:$J$80,2,FALSE) -> 兵庫 | AF75: 所属 | AG75: =VLOOKUP(AD73,●【進行】結果入力表!$B$9:$J$80,9,FALSE) -> 奈良 | AL75: =VLOOKUP(AM73,●【進行】結果入力表!$B$9:$J$80,2,FALSE) -> 兵庫 | AO75: 所属 | AP75: =VLOOKUP(AM73,●【進行】結果入力表!$B$9:$J$80,9,FALSE) -> 奈良 | AU75: =VLOOKUP(AV73,●【進行】結果入力表!$B$9:$J$80,2,FALSE) -> 兵庫 | AX75: 所属 | AY75: =VLOOKUP(AV73,●【進行】結果入力表!$B$9:$J$80,9,FALSE) -> 奈良 | BD75: =VLOOKUP(BE73,●【進行】結果入力表!$B$9:$J$80,2,FALSE) -> 兵庫 | BG75: 所属 | BH75: =VLOOKUP(BE73,●【進行】結果入力表!$B$9:$J$80,9,FALSE) -> 奈良 | BM75: =VLOOKUP(BN73,●【進行】結果入力表!$B$9:$J$80,2,FALSE) -> 兵庫 | BP75: 所属 | BQ75: =VLOOKUP(BN73,●【進行】結果入力表!$B$9:$J$80,9,FALSE) -> 奈良
B76: =VLOOKUP(C73,●【進行】結果入力表!$B$9:$J$80,3,FALSE) -> 中尾 亮太 | E76: 氏名 | F76: =VLOOKUP(C73,●【進行】結果入力表!$B$9:$J$80,8,FALSE) -> 田尻 哲司 | K76: =VLOOKUP(L73,●【進行】結果入力表!$B$9:$J$80,3,FALSE) -> 平井 洸志 | N76: 氏名 | O76: =VLOOKUP(L73,●【進行】結果入力表!$B$9:$J$80,8,FALSE) -> 吉向 翔平 | T76: =VLOOKUP(U73,●【進行】結果入力表!$B$9:$J$80,3,FALSE) -> 堂園 雅也 | W76: 氏名 | X76: =VLOOKUP(U73,●【進行】結果入力表!$B$9:$J$80,8,FALSE) -> 巽 大地 | AC76: =VLOOKUP(AD73,●【進行】結果入力表!$B$9:$J$80,3,FALSE) -> 藤中 健太郎 | AF76: 氏名 | AG76: =VLOOKUP(AD73,●【進行】結果入力表!$B$9:$J$80,8,FALSE) -> 山田 晃司 | AL76: =VLOOKUP(AM73,●【進行】結果入力表!$B$9:$J$80,3,FALSE) -> 宮本 一 | AO76: 氏名 | AP76: =VLOOKUP(AM73,●【進行】結果入力表!$B$9:$J$80,8,FALSE) -> 鷲尾 隆杜 | AU76: =VLOOKUP(AV73,●【進行】結果入力表!$B$9:$J$80,3,FALSE) -> 鐵山 泰三 | AX76: 氏名 | AY76: =VLOOKUP(AV73,●【進行】結果入力表!$B$9:$J$80,8,FALSE) -> 長谷川 進 | BD76: =VLOOKUP(BE73,●【進行】結果入力表!$B$9:$J$80,3,FALSE) -> 0 | BG76: 氏名 | BH76: =VLOOKUP(BE73,●【進行】結果入力表!$B$9:$J$80,8,FALSE) -> 0 | BM76: =VLOOKUP(BN73,●【進行】結果入力表!$B$9:$J$80,3,FALSE) -> 0 | BP76: 氏名 | BQ76: =VLOOKUP(BN73,●【進行】結果入力表!$B$9:$J$80,8,FALSE) -> 0
E77: 得点 | N77: 得点 | W77: 得点 | AF77: 得点 | AO77: 得点 | AX77: 得点 | BG77: 得点 | BP77: 得点
E78: HR | N78: HR | W78: HR | AF78: HR | AO78: HR | AX78: HR | BG78: HR | BP78: HR
B81: =●【結果】個人成績表!$A$1 -> 第8回 神奈滋対抗戦 (奈良；キングスポット) | K81: =●【結果】個人成績表!$A$1 -> 第8回 神奈滋対抗戦 (奈良；キングスポット) | T81: =●【結果】個人成績表!$A$1 -> 第8回 神奈滋対抗戦 (奈良；キングスポット) | AC81: =●【結果】個人成績表!$A$1 -> 第8回 神奈滋対抗戦 (奈良；キングスポット) | AL81: =●【結果】個人成績表!$A$1 -> 第8回 神奈滋対抗戦 (奈良；キングスポット) | AU81: =●【結果】個人成績表!$A$1 -> 第8回 神奈滋対抗戦 (奈良；キングスポット) | BD81: =●【結果】個人成績表!$A$1 -> 第8回 神奈滋対抗戦 (奈良；キングスポット) | BM81: =●【結果】個人成績表!$A$1 -> 第8回 神奈滋対抗戦 (奈良；キングスポット)
B83: G-No | C83: =●【進行】結果入力表!B65 -> 43 | F83: T-No | K83: G-No | L83: =●【進行】結果入力表!B66 -> 44 | O83: T-No | T83: G-No | U83: =●【進行】結果入力表!B67 -> 45 | X83: T-No | AC83: G-No | AD83: =●【進行】結果入力表!B68 -> 46 | AG83: T-No | AL83: G-No | AM83: =●【進行】結果入力表!B69 -> 47 | AP83: T-No | AU83: G-No | AV83: =●【進行】結果入力表!B70 -> 48 | AY83: T-No | BD83: G-No | BE83: =●【進行】結果入力表!B71 ->  | BH83: T-No | BM83: G-No | BN83: =●【進行】結果入力表!B72 ->  | BQ83: T-No
B85: =VLOOKUP(C83,●【進行】結果入力表!$B$9:$J$80,2,FALSE) -> 兵庫 | E85: 所属 | F85: =VLOOKUP(C83,●【進行】結果入力表!$B$9:$J$80,9,FALSE) -> 滋賀 | K85: =VLOOKUP(L83,●【進行】結果入力表!$B$9:$J$80,2,FALSE) -> 兵庫 | N85: 所属 | O85: =VLOOKUP(L83,●【進行】結果入力表!$B$9:$J$80,9,FALSE) -> 滋賀 | T85: =VLOOKUP(U83,●【進行】結果入力表!$B$9:$J$80,2,FALSE) -> 兵庫 | W85: 所属 | X85: =VLOOKUP(U83,●【進行】結果入力表!$B$9:$J$80,9,FALSE) -> 滋賀 | AC85: =VLOOKUP(AD83,●【進行】結果入力表!$B$9:$J$80,2,FALSE) -> 兵庫 | AF85: 所属 | AG85: =VLOOKUP(AD83,●【進行】結果入力表!$B$9:$J$80,9,FALSE) -> 滋賀 | AL85: =VLOOKUP(AM83,●【進行】結果入力表!$B$9:$J$80,2,FALSE) -> 兵庫 | AO85: 所属 | AP85: =VLOOKUP(AM83,●【進行】結果入力表!$B$9:$J$80,9,FALSE) -> 滋賀 | AU85: =VLOOKUP(AV83,●【進行】結果入力表!$B$9:$J$80,2,FALSE) -> 兵庫 | AX85: 所属 | AY85: =VLOOKUP(AV83,●【進行】結果入力表!$B$9:$J$80,9,FALSE) -> 滋賀 | BD85: =VLOOKUP(BE83,●【進行】結果入力表!$B$9:$J$80,2,FALSE) -> 兵庫 | BG85: 所属 | BH85: =VLOOKUP(BE83,●【進行】結果入力表!$B$9:$J$80,9,FALSE) -> 奈良 | BM85: =VLOOKUP(BN83,●【進行】結果入力表!$B$9:$J$80,2,FALSE) -> 兵庫 | BP85: 所属 | BQ85: =VLOOKUP(BN83,●【進行】結果入力表!$B$9:$J$80,9,FALSE) -> 奈良
B86: =VLOOKUP(C83,●【進行】結果入力表!$B$9:$J$80,3,FALSE) -> 中尾 亮太 | E86: 氏名 | F86: =VLOOKUP(C83,●【進行】結果入力表!$B$9:$J$80,8,FALSE) -> 御手洗 茂 | K86: =VLOOKUP(L83,●【進行】結果入力表!$B$9:$J$80,3,FALSE) -> 平井 洸志 | N86: 氏名 | O86: =VLOOKUP(L83,●【進行】結果入力表!$B$9:$J$80,8,FALSE) -> 高島 太一 | T86: =VLOOKUP(U83,●【進行】結果入力表!$B$9:$J$80,3,FALSE) -> 堂園 雅也 | W86: 氏名 | X86: =VLOOKUP(U83,●【進行】結果入力表!$B$9:$J$80,8,FALSE) -> 大橋 義治 | AC86: =VLOOKUP(AD83,●【進行】結果入力表!$B$9:$J$80,3,FALSE) -> 藤中 健太郎 | AF86: 氏名 | AG86: =VLOOKUP(AD83,●【進行】結果入力表!$B$9:$J$80,8,FALSE) -> 大橋 正寛 | AL86: =VLOOKUP(AM83,●【進行】結果入力表!$B$9:$J$80,3,FALSE) -> 宮本 一 | AO86: 氏名 | AP86: =VLOOKUP(AM83,●【進行】結果入力表!$B$9:$J$80,8,FALSE) -> 西峰 久祐 | AU86: =VLOOKUP(AV83,●【進行】結果入力表!$B$9:$J$80,3,FALSE) -> 鐵山 泰三 | AX86: 氏名 | AY86: =VLOOKUP(AV83,●【進行】結果入力表!$B$9:$J$80,8,FALSE) -> 山中 康寛 | BD86: =VLOOKUP(BE83,●【進行】結果入力表!$B$9:$J$80,3,FALSE) -> 0 | BG86: 氏名 | BH86: =VLOOKUP(BE83,●【進行】結果入力表!$B$9:$J$80,8,FALSE) -> 0 | BM86: =VLOOKUP(BN83,●【進行】結果入力表!$B$9:$J$80,3,FALSE) -> 0 | BP86: 氏名 | BQ86: =VLOOKUP(BN83,●【進行】結果入力表!$B$9:$J$80,8,FALSE) -> 0
E87: 得点 | N87: 得点 | W87: 得点 | AF87: 得点 | AO87: 得点 | AX87: 得点 | BG87: 得点 | BP87: 得点
E88: HR | N88: HR | W88: HR | AF88: HR | AO88: HR | AX88: HR | BG88: HR | BP88: HR
B91: =●【結果】個人成績表!$A$1 -> 第8回 神奈滋対抗戦 (奈良；キングスポット) | K91: =●【結果】個人成績表!$A$1 -> 第8回 神奈滋対抗戦 (奈良；キングスポット) | T91: =●【結果】個人成績表!$A$1 -> 第8回 神奈滋対抗戦 (奈良；キングスポット) | AC91: =●【結果】個人成績表!$A$1 -> 第8回 神奈滋対抗戦 (奈良；キングスポット) | AL91: =●【結果】個人成績表!$A$1 -> 第8回 神奈滋対抗戦 (奈良；キングスポット) | AU91: =●【結果】個人成績表!$A$1 -> 第8回 神奈滋対抗戦 (奈良；キングスポット) | BD91: =●【結果】個人成績表!$A$1 -> 第8回 神奈滋対抗戦 (奈良；キングスポット) | BM91: =●【結果】個人成績表!$A$1 -> 第8回 神奈滋対抗戦 (奈良；キングスポット)
B93: G-No | C93: =●【進行】結果入力表!B73 -> 49 | F93: T-No | K93: G-No | L93: =●【進行】結果入力表!B74 -> 50 | O93: T-No | T93: G-No | U93: =●【進行】結果入力表!B75 -> 51 | X93: T-No | AC93: G-No | AD93: =●【進行】結果入力表!B76 -> 52 | AG93: T-No | AL93: G-No | AM93: =●【進行】結果入力表!B77 -> 53 | AP93: T-No | AU93: G-No | AV93: =●【進行】結果入力表!B78 -> 54 | AY93: T-No | BD93: G-No | BE93: =●【進行】結果入力表!B79 ->  | BH93: T-No | BM93: G-No | BN93: =●【進行】結果入力表!B80 ->  | BQ93: T-No
B95: =VLOOKUP(C93,●【進行】結果入力表!$B$9:$J$80,2,FALSE) -> 滋賀 | E95: 所属 | F95: =VLOOKUP(C93,●【進行】結果入力表!$B$9:$J$80,9,FALSE) -> 奈良 | K95: =VLOOKUP(L93,●【進行】結果入力表!$B$9:$J$80,2,FALSE) -> 滋賀 | N95: 所属 | O95: =VLOOKUP(L93,●【進行】結果入力表!$B$9:$J$80,9,FALSE) -> 奈良 | T95: =VLOOKUP(U93,●【進行】結果入力表!$B$9:$J$80,2,FALSE) -> 滋賀 | W95: 所属 | X95: =VLOOKUP(U93,●【進行】結果入力表!$B$9:$J$80,9,FALSE) -> 奈良 | AC95: =VLOOKUP(AD93,●【進行】結果入力表!$B$9:$J$80,2,FALSE) -> 滋賀 | AF95: 所属 | AG95: =VLOOKUP(AD93,●【進行】結果入力表!$B$9:$J$80,9,FALSE) -> 奈良 | AL95: =VLOOKUP(AM93,●【進行】結果入力表!$B$9:$J$80,2,FALSE) -> 滋賀 | AO95: 所属 | AP95: =VLOOKUP(AM93,●【進行】結果入力表!$B$9:$J$80,9,FALSE) -> 奈良 | AU95: =VLOOKUP(AV93,●【進行】結果入力表!$B$9:$J$80,2,FALSE) -> 滋賀 | AX95: 所属 | AY95: =VLOOKUP(AV93,●【進行】結果入力表!$B$9:$J$80,9,FALSE) -> 奈良 | BD95: =VLOOKUP(BE93,●【進行】結果入力表!$B$9:$J$80,2,FALSE) -> 兵庫 | BG95: 所属 | BH95: =VLOOKUP(BE93,●【進行】結果入力表!$B$9:$J$80,9,FALSE) -> 奈良 | BM95: =VLOOKUP(BN93,●【進行】結果入力表!$B$9:$J$80,2,FALSE) -> 兵庫 | BP95: 所属 | BQ95: =VLOOKUP(BN93,●【進行】結果入力表!$B$9:$J$80,9,FALSE) -> 奈良
B96: =VLOOKUP(C93,●【進行】結果入力表!$B$9:$J$80,3,FALSE) -> 御手洗 茂 | E96: 氏名 | F96: =VLOOKUP(C93,●【進行】結果入力表!$B$9:$J$80,8,FALSE) -> 田尻 哲司 | K96: =VLOOKUP(L93,●【進行】結果入力表!$B$9:$J$80,3,FALSE) -> 高島 太一 | N96: 氏名 | O96: =VLOOKUP(L93,●【進行】結果入力表!$B$9:$J$80,8,FALSE) -> 吉向 翔平 | T96: =VLOOKUP(U93,●【進行】結果入力表!$B$9:$J$80,3,FALSE) -> 大橋 義治 | W96: 氏名 | X96: =VLOOKUP(U93,●【進行】結果入力表!$B$9:$J$80,8,FALSE) -> 巽 大地 | AC96: =VLOOKUP(AD93,●【進行】結果入力表!$B$9:$J$80,3,FALSE) -> 大橋 正寛 | AF96: 氏名 | AG96: =VLOOKUP(AD93,●【進行】結果入力表!$B$9:$J$80,8,FALSE) -> 山田 晃司 | AL96: =VLOOKUP(AM93,●【進行】結果入力表!$B$9:$J$80,3,FALSE) -> 西峰 久祐 | AO96: 氏名 | AP96: =VLOOKUP(AM93,●【進行】結果入力表!$B$9:$J$80,8,FALSE) -> 鷲尾 隆杜 | AU96: =VLOOKUP(AV93,●【進行】結果入力表!$B$9:$J$80,3,FALSE) -> 山中 康寛 | AX96: 氏名 | AY96: =VLOOKUP(AV93,●【進行】結果入力表!$B$9:$J$80,8,FALSE) -> 長谷川 進 | BD96: =VLOOKUP(BE93,●【進行】結果入力表!$B$9:$J$80,3,FALSE) -> 0 | BG96: 氏名 | BH96: =VLOOKUP(BE93,●【進行】結果入力表!$B$9:$J$80,8,FALSE) -> 0 | BM96: =VLOOKUP(BN93,●【進行】結果入力表!$B$9:$J$80,3,FALSE) -> 0 | BP96: 氏名 | BQ96: =VLOOKUP(BN93,●【進行】結果入力表!$B$9:$J$80,8,FALSE) -> 0
E97: 得点 | N97: 得点 | W97: 得点 | AF97: 得点 | AO97: 得点 | AX97: 得点 | BG97: 得点 | BP97: 得点
E98: HR | N98: HR | W98: HR | AF98: HR | AO98: HR | AX98: HR | BG98: HR | BP98: HR

Sheet Sheet1
C1: 3チーム | E1: 1節 | J1: 4チーム | L1: 1節
E2: 2節 | F2: 2節 | G2: 2節 | M2: 2節 | N2: 2節 | O2: 2節
E3: 3節 | G3: 3節 | H3: 3節 | N3: 3節 | O3: 3節 | P3: 3節
C4: 5名 | E4: 1 | F4: 2 | G4: 3 | H4: 5 | J4: 5名 | L4: 1 | M4: 2 | N4: 3 | O4: 4 | P4: 5
E5: 2 | F5: 3 | G5: 4 | H5: 1 | L5: 2 | M5: 3 | N5: 4 | O5: 5 | P5: 1
E6: 3 | F6: 4 | G6: 5 | H6: 2 | L6: 3 | M6: 4 | N6: 5 | O6: 1 | P6: 2
E7: 4 | F7: 5 | G7: 1 | H7: 3 | L7: 4 | M7: 5 | N7: 1 | O7: 2 | P7: 3
E8: 5 | F8: 1 | G8: 2 | H8: 4 | L8: 5 | M8: 1 | N8: 2 | O8: 3 | P8: 4
C10: 6名 | E10: 1 | F10: 2 | G10: 3 | H10: 5 | J10: 6名 | L10: 1 | M10: 2 | N10: 3 | P10: 5
E11: 2 | F11: 3 | G11: 4 | H11: 6 | L11: 2 | M11: 3 | N11: 4 | P11: 6
E12: 3 | F12: 4 | G12: 5 | H12: 1 | L12: 3 | M12: 4 | N12: 5 | P12: 1
E13: 4 | F13: 5 | G13: 6 | H13: 2 | L13: 4 | M13: 5 | N13: 6 | P13: 2
E14: 5 | F14: 6 | G14: 1 | H14: 3 | L14: 5 | M14: 6 | N14: 1 | P14: 3
E15: 6 | F15: 1 | G15: 2 | H15: 4 | L15: 6 | M15: 1 | N15: 2 | P15: 4
C17: 7名 | E17: 1 | F17: 2 | G17: 3 | H17: 5 | J17: 7名 | L17: 1 | M17: 2 | N17: 3 | P17: 5
E18: 2 | F18: 3 | G18: 4 | H18: 6 | L18: 2 | M18: 3 | N18: 4 | P18: 6
E19: 3 | F19: 4 | G19: 5 | H19: 7 | L19: 3 | M19: 4 | N19: 5 | P19: 7
E20: 4 | F20: 5 | G20: 6 | H20: 1 | L20: 4 | M20: 5 | N20: 6 | P20: 1
E21: 5 | F21: 6 | G21: 7 | H21: 2 | L21: 5 | M21: 6 | N21: 7 | P21: 2
E22: 6 | F22: 7 | G22: 1 | H22: 3 | L22: 6 | M22: 7 | N22: 1 | P22: 3
E23: 7 | F23: 1 | G23: 2 | H23: 4 | L23: 7 | M23: 1 | N23: 2 | P23: 4
C25: 8名 | E25: 1 | F25: 2 | G25: 3 | H25: 5 | J25: 8名 | L25: 1 | M25: 2 | N25: 3 | P25: 5
E26: 2 | F26: 3 | G26: 4 | H26: 6 | L26: 2 | M26: 3 | N26: 4 | P26: 6
E27: 3 | F27: 4 | G27: 5 | H27: 7 | L27: 3 | M27: 4 | N27: 5 | P27: 7
E28: 4 | F28: 5 | G28: 6 | H28: 8 | L28: 4 | M28: 5 | N28: 6 | P28: 8
E29: 5 | F29: 6 | G29: 7 | H29: 1 | L29: 5 | M29: 6 | N29: 7 | P29: 1
E30: 6 | F30: 7 | G30: 8 | H30: 2 | L30: 6 | M30: 7 | N30: 8 | P30: 2
E31: 7 | F31: 8 | G31: 1 | H31: 3 | L31: 7 | M31: 8 | N31: 1 | P31: 3
E32: 8 | F32: 1 | G32: 2 | H32: 4 | L32: 8 | M32: 1 | N32: 2 | P32: 4
